Body Name,Date Paid,Transaction Number,Amount,Supplier Name,Supplier Type,Expense Area,Cost Centre Description,Expense Type
Cambridgeshire County Council,02-Oct-23,51301960709,"-21,401.32",HAMPTON COLLEGE,EDUCATION,Recoupment,Other LA Mainstream,Independent School Placements
Cambridgeshire County Council,02-Oct-23,51302058017,503.95,CAMBS COMPRESSOR ENGINEERING LTD,TRADE SUPPLIER,Highways General,Highways,Specialist Equipment For Service Delivery
Cambridgeshire County Council,02-Oct-23,51302058577,504.00,PETERBOROUGH CITY COUNCIL,OTHER PUBLIC BODIES,Childrens L&D,Childrens VQ,Payments to Other Local Authorities
Cambridgeshire County Council,02-Oct-23,51302076637,512.64,GSH Group Company,COMPANY,Commercial Activity,Brunswick House,Building Structural Maintenance - Reactive
Cambridgeshire County Council,02-Oct-23,51302076489,526.50,Redacted Personal Data,INDIVIDUAL,South Child Looked After Team 1,South Child Looked After Team 1,Social Care Transport
Cambridgeshire County Council,02-Oct-23,51302062384,528.60,Powerful Voices Ltd,EDUCATION,Early Years Specialist Support,SEND - Independent Therapy,Independent School Placements
Cambridgeshire County Council,02-Oct-23,51302076539,535.32,EXPRESS CARS,TRADE SUPPLIER,LD - Hunts Locality - Cost of Care,LD - Huntingdonshire - Care,Social Care Transport
Cambridgeshire County Council,02-Oct-23,51302060973,547.66,Busy Bee Recruitment Agency c/o Keen Thinking,COMPANY,Grafham Water,Grafham Water Centre,Agency Staff
Cambridgeshire County Council,02-Oct-23,51302076609,555.00,COASTAL RED LTD T/A LYNX,TRADE SUPPLIER,LAC Transport,LAC Transport - Home to School,Social Care Transport
Cambridgeshire County Council,02-Oct-23,51302058772,562.80,Chess Cybersecurity Limited,TRADE SUPPLIER,ICT Service,ICT Service Sales,Materials for resale
Cambridgeshire County Council,02-Oct-23,51302076557,565.20,Cambridge and Huntingdon Airport Travel Service,COMPANY,LD - Young Adults Team,LD - Young Adults - Care,Social Care Transport
Cambridgeshire County Council,02-Oct-23,51302060927,565.20,BARRACUDAS ACTIVITY DAY CAMP T/A YOUNG WORLD LEISURE GROUP,LOCAL CLUBS & GROUPS,Early Years Specialist Support,SEND - Childcare Access Funding,Independent School Placements
Cambridgeshire County Council,02-Oct-23,51302076592,568.97,T & T PRIVATE HIRE LTD,TRADE SUPPLIER,LAC Transport,LAC Transport -  Short Breaks,Social Care Transport
Cambridgeshire County Council,02-Oct-23,51302076584,576.00,ASH SCHOOL TRANSPORT,TRADE SUPPLIER,LD - Hunts Locality - Cost of Care,LD - Huntingdonshire - Care,Social Care Transport
Cambridgeshire County Council,02-Oct-23,51302076538,576.00,Dash Travel UK Ltd,COMPANY,Early Years Service - HAF,HAF Grant,Home to School - Contract
Cambridgeshire County Council,02-Oct-23,51302076560,583.20,Cambridge and Huntingdon Airport Travel Service,COMPANY,LD - Young Adults Team,LD - Young Adults - Care,Social Care Transport
Cambridgeshire County Council,02-Oct-23,51302076605,583.37,T & T PRIVATE HIRE LTD,TRADE SUPPLIER,LAC Transport,LAC Transport  - Contact Visits,Social Care Transport
Cambridgeshire County Council,02-Oct-23,51302069495,600.00,Parker Clinical Psychology Limited,EDUCATION,Regional Adoption Agency,Adoption Support Fund,Professional Fees and Hired Services
Cambridgeshire County Council,02-Oct-23,51302058895,600.00,MERIDIAN PRIMARY SCHOOL,EDUCATION,Disability Clubs,CamPlay Holiday Clubs,Casual hire of facilities
Cambridgeshire County Council,02-Oct-23,51302076608,610.20,Panther Cambridge Ltd,COMPANY,LD - Young Adults Team,LD - Young Adults - Care,Social Care Transport
Cambridgeshire County Council,02-Oct-23,51302062417,625.00,SEND Education Ltd,EDUCATION,SIS Head of Service,SIS - Intervention,Professional Fees and Hired Services
Cambridgeshire County Council,02-Oct-23,51302076638,628.00,KIDS CLUB ELY,NURSERY,Early Years Specialist Support,SEND - Childcare Access Funding,Independent School Placements
Cambridgeshire County Council,02-Oct-23,51302076452,646.00,Redacted Personal Data,INDIVIDUAL,Registrars,Registrars General,Non Staff expenses
Cambridgeshire County Council,02-Oct-23,51302076543,646.80,ADAMS CABS,TRADE SUPPLIER,LD - South Locality - Cost of Care,LD - South Cambs - Care,Social Care Transport
Cambridgeshire County Council,02-Oct-23,51302076544,646.80,ADAMS CABS,TRADE SUPPLIER,LD - City Locality - Staffing,LD - City - Staffing,Social Care Transport
Cambridgeshire County Council,02-Oct-23,51302042367,652.32,Pathfinder Legal Services Limited,TRADE SUPPLIER,Highway Records and Definitive Map Team,Highways Records,External Legal Fees
Cambridgeshire County Council,02-Oct-23,51302076571,660.00,Cambridge and Huntingdon Airport Travel Service,COMPANY,LD - Young Adults Team,LD - Young Adults - Care,Social Care Transport
Cambridgeshire County Council,02-Oct-23,51302062396,663.00,1ST REACTION SECURITY LIMITED,TRADE SUPPLIER,Corporate Offices,County Offices General,Security Equipment
Cambridgeshire County Council,02-Oct-23,51302076672,666.79,THOMAS RIDLEY & SON LTD,TRADE SUPPLIER,Burwell House,Burwell House Residential Centre,Catering Provisions
Cambridgeshire County Council,02-Oct-23,51302059992,673.20,Pathfinder Legal Services Limited,TRADE SUPPLIER,Highway Records and Definitive Map Team,Definitive Map Team,External Legal Fees
Cambridgeshire County Council,02-Oct-23,51302076255,675.00,CITY COLLEGE PETERBOROUGH,EDUCATION,Anti-Poverty,Household Support Fund Grant,Grants
Cambridgeshire County Council,02-Oct-23,51302076566,695.52,Cambridge and Huntingdon Airport Travel Service,COMPANY,South Child Looked After Team 2,South Child Looked After Team 2,Social Care Transport
Cambridgeshire County Council,02-Oct-23,51302062970,706.00,OCR,TRADE SUPPLIER,Apprenticeship Training Provider,Apprenticeship Training Provider,Professional Fees and Hired Services
Cambridgeshire County Council,02-Oct-23,51302069477,720.00,Parker Clinical Psychology Limited,EDUCATION,Regional Adoption Agency,Adoption Support Fund,Professional Fees and Hired Services
Cambridgeshire County Council,02-Oct-23,51302076585,720.00,Smart Cars UK,COMPANY,Early Years Service - HAF,HAF Grant,Home to School - Contract
Cambridgeshire County Council,02-Oct-23,51302062604,744.19,D HAIRD & CO LTD,COMPANY,County Farms,County Farms,County Farms Maintenance unplanned
Cambridgeshire County Council,02-Oct-23,51302076556,774.00,Cambridge and Huntingdon Airport Travel Service,COMPANY,LD - City Locality - Staffing,LD - City - Staffing,Social Care Transport
Cambridgeshire County Council,02-Oct-23,51302076265,780.00,Crown Social Care Ltd,CARE ESTABLISHMENT,Unaccompanied Asylum Seeking Children,Separated Migrant Children > 18,Living Spport Grants - Financial Assistance 18+
Cambridgeshire County Council,02-Oct-23,51302076552,789.60,ADAMS CABS,TRADE SUPPLIER,LD - East Locality - Cost of Care,LD - East Cambs - Care,Social Care Transport
Cambridgeshire County Council,02-Oct-23,51302076553,789.60,ADAMS CABS,TRADE SUPPLIER,LD - City Locality - Cost of Care,LD - City - Care,Social Care Transport
Cambridgeshire County Council,02-Oct-23,51302076536,790.20,Smart Cars UK,COMPANY,LD - Hunts Locality - Cost of Care,LD - Huntingdonshire - Care,Social Care Transport
Cambridgeshire County Council,02-Oct-23,51302058406,819.65,Conduent Public Sector LTD,TRADE SUPPLIER,Parking Enforcement,Bus Route Enforcement,Professional Fees and Hired Services
Cambridgeshire County Council,02-Oct-23,51302076263,822.85,Crown Social Care Ltd,CARE ESTABLISHMENT,Unaccompanied Asylum Seeking Children,Separated Migrant Children > 18,Living Spport Grants - Financial Assistance 18+
Cambridgeshire County Council,02-Oct-23,51302076683,839.00,Redacted Personal Data,INDIVIDUAL,Children's Disability Direct Payments,CSC Direct Payments,Direct Payments
Cambridgeshire County Council,02-Oct-23,51302074082,863.50,Grow with Us,EDUCATION,Early Years Specialist Support,SEND - Childcare Access Funding,Independent School Placements
Cambridgeshire County Council,02-Oct-23,51302076541,866.88,ADAMS CABS,TRADE SUPPLIER,LAC Transport,LAC Transport - Home to School,Social Care Transport
Cambridgeshire County Council,02-Oct-23,51302076640,867.42,Butterflies Forest School,NURSERY,Early Years Specialist Support,SEND - Childcare Access Funding,Independent School Placements
Cambridgeshire County Council,02-Oct-23,51302076587,882.42,T & T PRIVATE HIRE LTD,TRADE SUPPLIER,LAC Transport,LAC Transport -  Short Breaks,Social Care Transport
Cambridgeshire County Council,02-Oct-23,51302076696,884.00,Redacted Personal Data,INDIVIDUAL,Children's Disability Direct Payments,CSC Direct Payments,Direct Payments
Cambridgeshire County Council,02-Oct-23,51302062393,890.58,Ackerman Pierce Limited,COMPANY,Out of School Tuition,Out of School Provision EHCPs,Independent School Placements
Cambridgeshire County Council,02-Oct-23,51302076550,892.80,ADAMS CABS,TRADE SUPPLIER,LD - South Locality - Cost of Care,LD - South Cambs - Care,Social Care Transport
Cambridgeshire County Council,02-Oct-23,51302076549,892.80,ADAMS CABS,TRADE SUPPLIER,LD - City Locality - Staffing,LD - City - Staffing,Social Care Transport
Cambridgeshire County Council,02-Oct-23,51302076551,892.80,ADAMS CABS,TRADE SUPPLIER,LD - City Locality - Cost of Care,LD - City - Care,Social Care Transport
Cambridgeshire County Council,02-Oct-23,51302076304,900.00,PCH Integration Services Ltd.,CARE ESTABLISHMENT,Unaccompanied Asylum Seeking Children,Separated Migrant Children < 18,Asylum Seekers
Cambridgeshire County Council,02-Oct-23,51302071345,931.58,Pathfinder Legal Services Limited,TRADE SUPPLIER,Large Energy Projects - Solar Farms,North Angle Solar Farm,Utilities Set Up
Cambridgeshire County Council,02-Oct-23,51302076614,951.79,PARKERS OF WISBECH LTD,TRADE SUPPLIER,LD - East Locality - Cost of Care,LD - East Cambs - Care,Social Care Transport
Cambridgeshire County Council,02-Oct-23,51302058473,952.00,CHURCH FARM,TRADE SUPPLIER,Wisbech Child and Family Centres,EH Child and Family Centre - Wisbech,Educational visits
Cambridgeshire County Council,02-Oct-23,51302076603,976.80,KHOLYO CARS,TRADE SUPPLIER,LD - East Locality - Cost of Care,LD - East Cambs - Care,Social Care Transport
Cambridgeshire County Council,02-Oct-23,51302058067,989.52,Ackerman Pierce Limited,COMPANY,Out of School Tuition,Out of School Provision EHCPs,Independent School Placements
Cambridgeshire County Council,02-Oct-23,51302076491,"1,026.59",Redacted Personal Data,INDIVIDUAL,LAC Transport,LAC Transport - Home to School,Social Care Transport
Cambridgeshire County Council,02-Oct-23,51302062830,"1,032.00",Powerful Voices Ltd,EDUCATION,Early Years Specialist Support,SEND - Independent Therapy,Independent School Placements
Cambridgeshire County Council,02-Oct-23,51302076487,"1,036.35",Redacted Personal Data,INDIVIDUAL,LAC Transport,LAC Transport - Home to School,Social Care Transport
Cambridgeshire County Council,02-Oct-23,51302059018,"1,036.96",G2V Recruitment Group Limited t/a G2 Recruitment Solutions,COMPANY,"County Planning, Minerals & Waste","County Planning, Minerals & Waste",Agency Staff
Cambridgeshire County Council,02-Oct-23,51302076698,"1,040.00",Redacted Personal Data,PARENT/GUARDIAN,Children's Disability Direct Payments,CSC Direct Payments,Direct Payments
Cambridgeshire County Council,02-Oct-23,51302061753,"1,042.80",Barley Barkway (VA) CofE First Schools Federation,EDUCATION,Recoupment,Other LA Mainstream,Independent School Placements
Cambridgeshire County Council,02-Oct-23,51302059848,"1,050.00",EDGE TRAINING AND CONSULTANCY LTD,TRADE SUPPLIER,Adults L&D,L&D Adult's,Professional Fees and Hired Services
Cambridgeshire County Council,02-Oct-23,51302058411,"1,067.88",Conduent Public Sector LTD,TRADE SUPPLIER,Parking Enforcement,On Street Parking,Professional Fees and Hired Services
Cambridgeshire County Council,02-Oct-23,51302076695,"1,075.00",Redacted Personal Data,INDIVIDUAL,Children's Disability Direct Payments,CSC Direct Payments,Direct Payments
Cambridgeshire County Council,02-Oct-23,51302076493,"1,087.65",Redacted Personal Data,INDIVIDUAL,LD - East Locality - Cost of Care,LD - East Cambs - Care,Social Care Transport
Cambridgeshire County Council,02-Oct-23,51302076542,"1,094.40",ADAMS CABS,TRADE SUPPLIER,LD - Young Adults Team,LD - Young Adults - Care,Social Care Transport
Cambridgeshire County Council,02-Oct-23,51302061032,"1,107.12",David Levenson,SOLETRADER,Grafham Water,Grafham Water Centre,Advertising / Publicity (non Recruitment)
Cambridgeshire County Council,02-Oct-23,51302076540,"1,187.04",ADAMS CABS,TRADE SUPPLIER,LD - Young Adults Team,LD - Young Adults - Care,Social Care Transport
Cambridgeshire County Council,02-Oct-23,51302076478,"1,190.70",Redacted Personal Data,INDIVIDUAL,Home to School Transport - Special,Home to School Transport Special - Out of County,Social Care Transport
Cambridgeshire County Council,02-Oct-23,51302076573,"1,196.00",ALANS TAXI LTD,TRADE SUPPLIER,LD - East Locality - Cost of Care,LD - East Cambs - Care,Social Care Transport
Cambridgeshire County Council,02-Oct-23,51302076572,"1,196.00",ALANS TAXI LTD,TRADE SUPPLIER,LD - East Locality - Cost of Care,LD - East Cambs - Care,Social Care Transport
Cambridgeshire County Council,02-Oct-23,51302076574,"1,196.00",ALANS TAXI LTD,TRADE SUPPLIER,LD - East Locality - Cost of Care,LD - East Cambs - Care,Social Care Transport
Cambridgeshire County Council,02-Oct-23,51302076570,"1,223.28",Cambridge and Huntingdon Airport Travel Service,COMPANY,LD - Young Adults Team,LD - Young Adults - Care,Social Care Transport
Cambridgeshire County Council,02-Oct-23,51302076480,"1,226.25",Redacted Personal Data,INDIVIDUAL,LAC Transport,LAC Transport - Home to School,Social Care Transport
Cambridgeshire County Council,02-Oct-23,51302060441,"1,230.00",Up To Speed Training & Assessment Ltd,COMPANY,Highways General,Highways,Staff Training & Development
Cambridgeshire County Council,02-Oct-23,51302062276,"1,265.61",J & G GROUNDWORKS & SURFACING,COMPANY,Highways - Rights of Way,Highways - Rights of Way,Highways - Bridges
Cambridgeshire County Council,02-Oct-23,51302076564,"1,293.60",Cambridge and Huntingdon Airport Travel Service,COMPANY,LD - Young Adults Team,LD - Young Adults - Care,Social Care Transport
Cambridgeshire County Council,02-Oct-23,51302076575,"1,300.00",ALANS TAXI LTD,TRADE SUPPLIER,LD - South Locality - Cost of Care,LD - South Cambs - Care,Social Care Transport
Cambridgeshire County Council,02-Oct-23,51302076682,"1,324.20",VIRGIN MEDIA LTD,COMPANY,March Area Transport Study,March Area Transport Study,"New Construction, Conversion and Renovation"
Cambridgeshire County Council,02-Oct-23,51302076680,"1,324.30",VIRGIN MEDIA LTD,COMPANY,March Area Transport Study,March Area Transport Study,"New Construction, Conversion and Renovation"
Cambridgeshire County Council,02-Oct-23,51302076558,"1,340.10",Cambridge and Huntingdon Airport Travel Service,COMPANY,LD - South Locality - Cost of Care,LD - South Cambs - Care,Social Care Transport
Cambridgeshire County Council,02-Oct-23,51302076581,"1,342.50",J&A Airport Transport Service,TRADE SUPPLIER,LAC Transport,LAC Transport - Home to School,Social Care Transport
Cambridgeshire County Council,02-Oct-23,51302076561,"1,349.10",Cambridge and Huntingdon Airport Travel Service,COMPANY,LD - City Locality - Staffing,LD - City - Staffing,Social Care Transport
Cambridgeshire County Council,02-Oct-23,51302076305,"1,350.00",PCH Integration Services Ltd.,CARE ESTABLISHMENT,Unaccompanied Asylum Seeking Children,Separated Migrant Children < 18,Asylum Seekers
Cambridgeshire County Council,02-Oct-23,51302076586,"1,382.40",Smart Cars UK,COMPANY,Early Years Service - HAF,HAF Grant,Home to School - Contract
Cambridgeshire County Council,02-Oct-23,51302076547,"1,411.20",ADAMS CABS,TRADE SUPPLIER,LD - South Locality - Cost of Care,LD - South Cambs - Care,Social Care Transport
Cambridgeshire County Council,02-Oct-23,51302076593,"1,411.87",T & T PRIVATE HIRE LTD,TRADE SUPPLIER,LD - City Locality - Staffing,LD - City - Staffing,Social Care Transport
Cambridgeshire County Council,02-Oct-23,51302076258,"1,425.00",Redacted Personal Data,PARENT/GUARDIAN,Children's Disability Direct Payments,CSC Direct Payments,Direct Payments
Cambridgeshire County Council,02-Oct-23,51302061721,"1,554.00",TMLEP,OTHER PUBLIC BODIES,Coroners,Coroners General,Court Costs
Cambridgeshire County Council,02-Oct-23,51302062382,"1,561.50",Powerful Voices Ltd,EDUCATION,Early Years Specialist Support,SEND - Independent Therapy,Independent School Placements
Cambridgeshire County Council,02-Oct-23,51302059027,"1,600.00",CAMBRIDGE PRINGLE GROUP,CHARITY,Mental Health Commissioning,Mental Health Commissioning,Residential Care - Property Voids
Cambridgeshire County Council,02-Oct-23,51302076484,"1,611.72",Redacted Personal Data,INDIVIDUAL,LAC Transport,LAC Transport - Home to School,Social Care Transport
Cambridgeshire County Council,02-Oct-23,51302074289,"1,662.00",Wealden leisure limited trading as Freedom Leisure,CHARITY,"General Prevention, Traveller Health",Travellers Project,Casual hire of facilities
Cambridgeshire County Council,02-Oct-23,51302076469,"1,710.00",Redacted Personal Data,INDIVIDUAL,LAC Transport,LAC Transport - Home to School,Social Care Transport
Cambridgeshire County Council,02-Oct-23,51302058408,"1,722.59",Conduent Public Sector LTD,TRADE SUPPLIER,Parking Enforcement,Civil Parking Enforcement,Professional Fees and Hired Services
Cambridgeshire County Council,02-Oct-23,51302062926,"1,740.00",ALAN FLETCHER MEDICAL REPORTS LTD,OTHER PUBLIC BODIES,Coroners,Coroners General,Court Costs
Cambridgeshire County Council,02-Oct-23,51302076288,"1,800.00",Crown Social Care Ltd,CARE ESTABLISHMENT,Unaccompanied Asylum Seeking Children,Separated Migrant Children > 18,Living Spport Grants - Financial Assistance 18+
Cambridgeshire County Council,02-Oct-23,51302076267,"1,800.00",Crown Social Care Ltd,CARE ESTABLISHMENT,Unaccompanied Asylum Seeking Children,Separated Migrant Children > 18,Living Spport Grants - Financial Assistance 18+
Cambridgeshire County Council,02-Oct-23,51302076278,"1,800.00",Crown Social Care Ltd,CARE ESTABLISHMENT,Unaccompanied Asylum Seeking Children,Separated Migrant Children > 18,Living Spport Grants - Financial Assistance 18+
Cambridgeshire County Council,02-Oct-23,51302076266,"1,800.00",Crown Social Care Ltd,CARE ESTABLISHMENT,Unaccompanied Asylum Seeking Children,Separated Migrant Children > 18,Living Spport Grants - Financial Assistance 18+
Cambridgeshire County Council,02-Oct-23,51302076298,"1,875.00",PCH Integration Services Ltd.,CARE ESTABLISHMENT,Unaccompanied Asylum Seeking Children,Separated Migrant Children < 18,Asylum Seekers
Cambridgeshire County Council,02-Oct-23,51302076582,"1,908.00",Sam Private Hire,COMPANY,LAC Transport,LAC Transport - Home to School,Social Care Transport
Cambridgeshire County Council,02-Oct-23,51302076472,"1,908.00",Redacted Personal Data,INDIVIDUAL,LAC Transport,LAC Transport - Home to School,Social Care Transport
Cambridgeshire County Council,02-Oct-23,51302076548,"1,929.60",ADAMS CABS,TRADE SUPPLIER,LD - Young Adults Team,LD - Young Adults - Care,Social Care Transport
Cambridgeshire County Council,02-Oct-23,51302058822,"1,936.07",ATKINS LTD,COMPANY,GCP St.Ives Greenway,GCP St.Ives Greenway,Construction - External Professional Fees
Cambridgeshire County Council,02-Oct-23,51302076147,"1,941.00",Pathfinder Legal Services Limited,TRADE SUPPLIER,Legal Proceedings,Legal Proceedings,External Legal Fees
Cambridgeshire County Council,02-Oct-23,51302058068,"1,944.00",Ackerman Pierce Limited,COMPANY,Out of School Tuition,Out of School Provision EHCPs,Independent School Placements
Cambridgeshire County Council,02-Oct-23,51302076562,"1,972.80",Cambridge and Huntingdon Airport Travel Service,COMPANY,LD - South Locality - Cost of Care,LD - South Cambs - Care,Social Care Transport
Cambridgeshire County Council,02-Oct-23,51302076611,"1,987.38",PARKERS OF WISBECH LTD,TRADE SUPPLIER,OPPD - Cost of Care - Fenland - Over 65,Older People - Fenland - Care,Social Care Transport
Cambridgeshire County Council,02-Oct-23,51302076681,"2,005.21",VIRGIN MEDIA LTD,COMPANY,March Area Transport Study,March Area Transport Study,"New Construction, Conversion and Renovation"
Cambridgeshire County Council,02-Oct-23,51302058578,"2,016.00",PETERBOROUGH CITY COUNCIL,OTHER PUBLIC BODIES,Childrens L&D,Childrens VQ,Payments to Other Local Authorities
Cambridgeshire County Council,02-Oct-23,51302076583,"2,040.00",Sam Private Hire,COMPANY,LAC Transport,LAC Transport  - Contact Visits,Social Care Transport
Cambridgeshire County Council,02-Oct-23,51302058410,"2,095.24",Conduent Public Sector LTD,TRADE SUPPLIER,Parking Enforcement,Bus Route Enforcement,Professional Fees and Hired Services
Cambridgeshire County Council,02-Oct-23,51302076580,"2,100.00",J&A Airport Transport Service,TRADE SUPPLIER,LD - South Locality - Cost of Care,LD - South Cambs - Care,Social Care Transport
Cambridgeshire County Council,02-Oct-23,51302076568,"2,105.22",Cambridge and Huntingdon Airport Travel Service,COMPANY,LAC Transport,LAC Transport  - Contact Visits,Social Care Transport
Cambridgeshire County Council,02-Oct-23,51302058966,"2,112.00",Panoramic Associates,COMPANY,PH COMF,PH - Contain Outbreak Management Fund,Professional Fees and Hired Services
Cambridgeshire County Council,02-Oct-23,51302076569,"2,116.80",Cambridge and Huntingdon Airport Travel Service,COMPANY,LD - Young Adults Team,LD - Young Adults - Care,Social Care Transport
Cambridgeshire County Council,02-Oct-23,51302058880,"2,170.74",OCS UK&I Limited,COMPANY,Corporate Offices,Shire Hall Area,Grounds Maintenance
Cambridgeshire County Council,02-Oct-23,51302061643,"2,175.12",CHS GROUP,CARE ESTABLISHMENT,LD - Head of Service,Head of LDP,Domiciliary Care
Cambridgeshire County Council,02-Oct-23,51302076599,"2,179.87",T & T PRIVATE HIRE LTD,TRADE SUPPLIER,LD - South Locality - Cost of Care,LD - South Cambs - Care,Social Care Transport
Cambridgeshire County Council,02-Oct-23,51302058795,"2,200.00",NOISE SOLUTION,TRADE SUPPLIER,Out of School Tuition,Out of School Provision EHCPs,Independent School Placements
Cambridgeshire County Council,02-Oct-23,51302076537,"2,232.00",Smart Cars UK,COMPANY,LD - Young Adults Team,LD - Young Adults - Care,Social Care Transport
Cambridgeshire County Council,02-Oct-23,51302076303,"2,250.00",PCH Integration Services Ltd.,CARE ESTABLISHMENT,Unaccompanied Asylum Seeking Children,Separated Migrant Children < 18,Asylum Seekers
Cambridgeshire County Council,02-Oct-23,51302076297,"2,250.00",PCH Integration Services Ltd.,CARE ESTABLISHMENT,Unaccompanied Asylum Seeking Children,Separated Migrant Children < 18,Asylum Seekers
Cambridgeshire County Council,02-Oct-23,51302076311,"2,250.00",PCH Integration Services Ltd.,CARE ESTABLISHMENT,Unaccompanied Asylum Seeking Children,Separated Migrant Children < 18,Asylum Seekers
Cambridgeshire County Council,02-Oct-23,51302076306,"2,250.00",PCH Integration Services Ltd.,CARE ESTABLISHMENT,Unaccompanied Asylum Seeking Children,Separated Migrant Children < 18,Asylum Seekers
Cambridgeshire County Council,02-Oct-23,51302076299,"2,250.00",PCH Integration Services Ltd.,CARE ESTABLISHMENT,Unaccompanied Asylum Seeking Children,Separated Migrant Children < 18,Asylum Seekers
Cambridgeshire County Council,02-Oct-23,51302076302,"2,250.00",PCH Integration Services Ltd.,CARE ESTABLISHMENT,Unaccompanied Asylum Seeking Children,Separated Migrant Children < 18,Asylum Seekers
Cambridgeshire County Council,02-Oct-23,51302076296,"2,250.00",PCH Integration Services Ltd.,CARE ESTABLISHMENT,Unaccompanied Asylum Seeking Children,Separated Migrant Children < 18,Asylum Seekers
Cambridgeshire County Council,02-Oct-23,51302076290,"2,250.00",PCH Integration Services Ltd.,CARE ESTABLISHMENT,Unaccompanied Asylum Seeking Children,Separated Migrant Children < 18,Asylum Seekers
Cambridgeshire County Council,02-Oct-23,51302076294,"2,250.00",PCH Integration Services Ltd.,CARE ESTABLISHMENT,Unaccompanied Asylum Seeking Children,Separated Migrant Children < 18,Asylum Seekers
Cambridgeshire County Council,02-Oct-23,51302076295,"2,250.00",PCH Integration Services Ltd.,CARE ESTABLISHMENT,Unaccompanied Asylum Seeking Children,Separated Migrant Children < 18,Asylum Seekers
Cambridgeshire County Council,02-Oct-23,51302076300,"2,250.00",PCH Integration Services Ltd.,CARE ESTABLISHMENT,Unaccompanied Asylum Seeking Children,Separated Migrant Children < 18,Asylum Seekers
Cambridgeshire County Council,02-Oct-23,51302076289,"2,250.00",PCH Integration Services Ltd.,CARE ESTABLISHMENT,Unaccompanied Asylum Seeking Children,Separated Migrant Children < 18,Asylum Seekers
Cambridgeshire County Council,02-Oct-23,51302076308,"2,250.00",PCH Integration Services Ltd.,CARE ESTABLISHMENT,Unaccompanied Asylum Seeking Children,Separated Migrant Children < 18,Asylum Seekers
Cambridgeshire County Council,02-Oct-23,51302076293,"2,250.00",PCH Integration Services Ltd.,CARE ESTABLISHMENT,Unaccompanied Asylum Seeking Children,Separated Migrant Children < 18,Asylum Seekers
Cambridgeshire County Council,02-Oct-23,51302076292,"2,250.00",PCH Integration Services Ltd.,CARE ESTABLISHMENT,Unaccompanied Asylum Seeking Children,Separated Migrant Children < 18,Asylum Seekers
Cambridgeshire County Council,02-Oct-23,51302076545,"2,260.44",ADAMS CABS,TRADE SUPPLIER,LD - South Locality - Cost of Care,LD - South Cambs - Care,Social Care Transport
Cambridgeshire County Council,02-Oct-23,51302059904,"2,290.57",CARTER JONAS LLP,TRADE SUPPLIER,Corporate Offices,Signet Court,Service Charges
Cambridgeshire County Council,02-Oct-23,51302076576,"2,340.00",ALANS TAXI LTD,TRADE SUPPLIER,LD - South Locality - Cost of Care,LD - South Cambs - Care,Social Care Transport
Cambridgeshire County Council,02-Oct-23,51302076604,"2,371.87",T & T PRIVATE HIRE LTD,TRADE SUPPLIER,LD - Young Adults Team,LD - Young Adults - Care,Social Care Transport
Cambridgeshire County Council,02-Oct-23,51302061316,"2,374.85",Ackerman Pierce Limited,COMPANY,SEND - PEX support,SEND - Support for PEX without EHCP,Professional Fees and Hired Services
Cambridgeshire County Council,02-Oct-23,51302058861,"2,394.00",CAMBRIDGE EAL,EDUCATION,Out of School Tuition,Out of School Provision EHCPs,Independent School Placements
Cambridgeshire County Council,02-Oct-23,51302058504,"2,400.00",Gary Luffman T/A Think Change Consulting Ltd,COMPANY,L&D Team,L&D Team,Staff Training & Development
Cambridgeshire County Council,02-Oct-23,51302076208,"2,400.00",Deyton Bell Limited,COMPANY,Large Energy Projects - Park & Ride,St Ives SEG,Professional Fees and Hired Services
Cambridgeshire County Council,02-Oct-23,51302076273,"2,468.57",Crown Social Care Ltd,CARE ESTABLISHMENT,Unaccompanied Asylum Seeking Children,Separated Migrant Children > 18,Living Spport Grants - Financial Assistance 18+
Cambridgeshire County Council,02-Oct-23,51302076262,"2,468.57",Crown Social Care Ltd,CARE ESTABLISHMENT,Unaccompanied Asylum Seeking Children,Separated Migrant Children > 18,Living Spport Grants - Financial Assistance 18+
Cambridgeshire County Council,02-Oct-23,51302076269,"2,468.57",Crown Social Care Ltd,CARE ESTABLISHMENT,Unaccompanied Asylum Seeking Children,Separated Migrant Children < 18,Asylum Seekers
Cambridgeshire County Council,02-Oct-23,51302076281,"2,468.57",Crown Social Care Ltd,CARE ESTABLISHMENT,Unaccompanied Asylum Seeking Children,Separated Migrant Children < 18,Asylum Seekers
Cambridgeshire County Council,02-Oct-23,51302076285,"2,468.57",Crown Social Care Ltd,CARE ESTABLISHMENT,Unaccompanied Asylum Seeking Children,Separated Migrant Children < 18,Asylum Seekers
Cambridgeshire County Council,02-Oct-23,51302076287,"2,468.57",Crown Social Care Ltd,CARE ESTABLISHMENT,Unaccompanied Asylum Seeking Children,Separated Migrant Children < 18,Asylum Seekers
Cambridgeshire County Council,02-Oct-23,51302076283,"2,468.57",Crown Social Care Ltd,CARE ESTABLISHMENT,Unaccompanied Asylum Seeking Children,Separated Migrant Children < 18,Asylum Seekers
Cambridgeshire County Council,02-Oct-23,51302076277,"2,468.57",Crown Social Care Ltd,CARE ESTABLISHMENT,Unaccompanied Asylum Seeking Children,Separated Migrant Children < 18,Asylum Seekers
Cambridgeshire County Council,02-Oct-23,51302076275,"2,468.57",Crown Social Care Ltd,CARE ESTABLISHMENT,Unaccompanied Asylum Seeking Children,Separated Migrant Children < 18,Asylum Seekers
Cambridgeshire County Council,02-Oct-23,51302076446,"2,742.90",HEALTH AND SAFETY EXECUTIVE,OTHER PUBLIC BODIES,"School Condition, Maintenance & Suitability","School Condition, Maintenance & Suitability",Environmental Works
Cambridgeshire County Council,02-Oct-23,51302057992,"2,792.01",Vibrant Colour Limited,COMPANY,Flood Risk Management,Flood Risk Management Programme,Printing
Cambridgeshire County Council,02-Oct-23,51302076563,"2,808.00",Cambridge and Huntingdon Airport Travel Service,COMPANY,LD - Young Adults Team,LD - Young Adults - Care,Social Care Transport
Cambridgeshire County Council,02-Oct-23,51302060408,"2,850.00",Provident Recruitment Ltd T/A Psychology People,COMPANY,SEND Specialist Services - Education Psychology,SEND Specialist Services - Education Psychology,Professional Fees and Hired Services
Cambridgeshire County Council,02-Oct-23,51302076597,"2,851.87",T & T PRIVATE HIRE LTD,TRADE SUPPLIER,LD - South Locality - Cost of Care,LD - South Cambs - Care,Social Care Transport
Cambridgeshire County Council,02-Oct-23,51302060454,"2,907.36",JACK & JILL PLAYGROUP,EDUCATION,SEND High Needs Top Up,High Needs Top Up - Early Years,Independent School Placements
Cambridgeshire County Council,02-Oct-23,51302076271,"2,931.43",Crown Social Care Ltd,CARE ESTABLISHMENT,Unaccompanied Asylum Seeking Children,Separated Migrant Children < 18,Asylum Seekers
Cambridgeshire County Council,02-Oct-23,51302062309,"2,934.32",ZURICH INSURANCE CO,TRADE SUPPLIER,"Northstowe secondary, phase 2","Northstowe secondary, phase 2",Construction - External Professional Fees
Cambridgeshire County Council,02-Oct-23,51302076596,"2,991.58",T & T PRIVATE HIRE LTD,TRADE SUPPLIER,LAC Transport,LAC Transport - Home to School,Social Care Transport
Cambridgeshire County Council,02-Oct-23,51302076589,"3,208.36",T & T PRIVATE HIRE LTD,TRADE SUPPLIER,LAC Transport,LAC Transport -  Short Breaks,Social Care Transport
Cambridgeshire County Council,02-Oct-23,51302058434,"3,264.00",DKO WHEATLEY,SOLETRADER,County Farms,County Farms,Specialist Works and Repairs
Cambridgeshire County Council,02-Oct-23,51302061981,"3,300.00",CARTER JONAS LLP,TRADE SUPPLIER,Corporate Offices,Queen Mary Centre,Professional Fees and Hired Services
Cambridgeshire County Council,02-Oct-23,51302076588,"3,401.89",T & T PRIVATE HIRE LTD,TRADE SUPPLIER,LAC Transport,LAC Transport - Home to School,Social Care Transport
Cambridgeshire County Council,02-Oct-23,51302046951,"3,415.28",NORTHROW LIMITED,TRADE SUPPLIER,System Licences,System Software & Licences,Computer software - purchase
Cambridgeshire County Council,02-Oct-23,51302076260,"3,428.57",Bridging Gaps Fostering,COMPANY,Unaccompanied Asylum Seeking Children,Separated Migrant Children < 18,Agency Placements - Out of  County
Cambridgeshire County Council,02-Oct-23,51302076679,"3,442.00",Openreach,COMPANY,March Area Transport Study,March Area Transport Study,"New Construction, Conversion and Renovation"
Cambridgeshire County Council,02-Oct-23,51302058069,"3,499.20",Ackerman Pierce Limited,COMPANY,Out of School Tuition,Out of School Provision EHCPs,Independent School Placements
Cambridgeshire County Council,02-Oct-23,51302076595,"3,557.89",T & T PRIVATE HIRE LTD,TRADE SUPPLIER,LAC Transport,LAC Transport - Home to School,Social Care Transport
Cambridgeshire County Council,02-Oct-23,51302076613,"3,718.43",PARKERS OF WISBECH LTD,TRADE SUPPLIER,LD - Young Adults Team,LD - Young Adults - Care,Social Care Transport
Cambridgeshire County Council,02-Oct-23,51302061344,"3,740.46",ROYAL MAIL,TRADE SUPPLIER,Information Management,Resources Franking Machine,Postage & Carriage
Cambridgeshire County Council,02-Oct-23,51302059973,"3,816.60",CAE Technology Servcies,COMPANY,ICT Service,ICT Service Sales,Materials for resale
Cambridgeshire County Council,02-Oct-23,51302058560,"3,844.80",Tile Hill Interim & Executive Ltd,COMPANY,Executive Director,Executive Director CEF,Agency Staff
Cambridgeshire County Council,02-Oct-23,51302033935,"3,880.74",HAMPTON COLLEGE,EDUCATION,Recoupment,Other LA Mainstream,Independent School Placements
Cambridgeshire County Council,02-Oct-23,51302076606,"4,020.23",T & T PRIVATE HIRE LTD,TRADE SUPPLIER,LD - City Locality - Cost of Care,LD - City - Care,Social Care Transport
Cambridgeshire County Council,02-Oct-23,51302076598,"4,040.63",T & T PRIVATE HIRE LTD,TRADE SUPPLIER,LD - Young Adults Team,LD - Young Adults - Care,Social Care Transport
Cambridgeshire County Council,02-Oct-23,51302076448,"4,095.00",BEWICK BRIDGE COMMUNITY PRIMARY SCHOOL,EDUCATION,Corporate Offices,Cherry Hinton Children's Centre,Service Charges
Cambridgeshire County Council,02-Oct-23,51302058481,"4,356.00",C JACKSON & SONS (JACKSON ENVIRONMENTAL LTD),COMPANY,Corporate Offices,Shire Hall Area,Other Term maintenance contracts
Cambridgeshire County Council,02-Oct-23,51302076601,"4,375.26",T & T PRIVATE HIRE LTD,TRADE SUPPLIER,LAC Transport,LAC Transport - Home to School,Social Care Transport
Cambridgeshire County Council,02-Oct-23,51302060930,"4,452.84",Ackerman Pierce Limited,COMPANY,Out of School Tuition,Out of School Provision EHCPs,Independent School Placements
Cambridgeshire County Council,02-Oct-23,51302076600,"4,462.16",T & T PRIVATE HIRE LTD,TRADE SUPPLIER,LD - City Locality - Staffing,LD - City - Staffing,Social Care Transport
Cambridgeshire County Council,02-Oct-23,51302076607,"4,465.26",T & T PRIVATE HIRE LTD,TRADE SUPPLIER,LAC Transport,LAC Transport -  Short Breaks,Social Care Transport
Cambridgeshire County Council,02-Oct-23,51302076590,"4,649.89",T & T PRIVATE HIRE LTD,TRADE SUPPLIER,LAC Transport,LAC Transport -  Short Breaks,Social Care Transport
Cambridgeshire County Council,02-Oct-23,51302058076,"4,737.60",Ackerman Pierce Limited,COMPANY,Out of School Tuition,Out of School Provision EHCPs,Independent School Placements
Cambridgeshire County Council,02-Oct-23,51302076622,"4,914.00",CANDLE (COMMUNICATION AND LEARNING ENTERPRISES LTD),TRADE SUPPLIER,Early Years Specialist Support,SEND - Independent Therapy,Independent School Placements
Cambridgeshire County Council,02-Oct-23,51302059937,"5,111.20",OCS GROUP UK LTD,TRADE SUPPLIER,Parking Enforcement,Bus Route Enforcement,Professional Fees and Hired Services
Cambridgeshire County Council,02-Oct-23,51302076591,"5,117.89",T & T PRIVATE HIRE LTD,TRADE SUPPLIER,LAC Transport,LAC Transport - Out of county,Social Care Transport
Cambridgeshire County Council,02-Oct-23,51302076612,"5,240.92",PARKERS OF WISBECH LTD,TRADE SUPPLIER,LD - Fenland Locality - Cost of Care,LD - Fenland  - Care,Social Care Transport
Cambridgeshire County Council,02-Oct-23,51302058597,"5,246.47",COMPASS MINERALS UK LIMITED,TRADE SUPPLIER,Winter Maintenance,East Winter,Salt for Highways
Cambridgeshire County Council,02-Oct-23,51302058534,"5,343.41",Ackerman Pierce Limited,COMPANY,Out of School Tuition,Out of School Provision EHCPs,Independent School Placements
Cambridgeshire County Council,02-Oct-23,51302058066,"5,343.41",Ackerman Pierce Limited,COMPANY,Out of School Tuition,Out of School Provision EHCPs,Independent School Placements
Cambridgeshire County Council,02-Oct-23,51302061289,"5,343.41",Ackerman Pierce Limited,COMPANY,Out of School Tuition,Out of School Provision EHCPs,Independent School Placements
Cambridgeshire County Council,02-Oct-23,51302061292,"5,343.41",Ackerman Pierce Limited,COMPANY,Out of School Tuition,Out of School Provision EHCPs,Independent School Placements
Cambridgeshire County Council,02-Oct-23,51302061295,"5,343.41",Ackerman Pierce Limited,COMPANY,Out of School Tuition,Out of School Provision EHCPs,Independent School Placements
Cambridgeshire County Council,02-Oct-23,51302061299,"5,343.41",Ackerman Pierce Limited,COMPANY,Out of School Tuition,Out of School Provision EHCPs,Independent School Placements
Cambridgeshire County Council,02-Oct-23,51302061290,"5,343.41",Ackerman Pierce Limited,COMPANY,Out of School Tuition,Out of School Provision EHCPs,Independent School Placements
Cambridgeshire County Council,02-Oct-23,51302058402,"5,676.71",ATKINS LTD,COMPANY,A141 and St Ives Improvement - CPCA,A141 and St Ives Improvement - CPCA,Construction - External Professional Fees
Cambridgeshire County Council,02-Oct-23,51302058041,"5,798.40",ATKINS LTD,COMPANY,Large Energy Projects - Heat Projects,Swaffham Prior Energy Project,Construction - External Professional Fees
Cambridgeshire County Council,02-Oct-23,51302076209,"6,171.42",Deyton Bell Limited,COMPANY,Large Energy Projects - Park & Ride,St Ives SEG,Professional Fees and Hired Services
Cambridgeshire County Council,02-Oct-23,51302058075,"6,530.83",Ackerman Pierce Limited,COMPANY,Out of School Tuition,Out of School Provision EHCPs,Independent School Placements
Cambridgeshire County Council,02-Oct-23,51302076621,"6,955.08",Pathfinder Legal Services Limited,TRADE SUPPLIER,Large Energy Projects - Solar Farms,North Angle Solar Farm,Construction - External Professional Fees
Cambridgeshire County Council,02-Oct-23,51302076257,"7,487.44",Redacted Personal Data,INDIVIDUAL,Children's Disability Direct Payments,CSC Direct Payments,Direct Payments
Cambridgeshire County Council,02-Oct-23,51302058074,"7,962.83",Ackerman Pierce Limited,COMPANY,Out of School Tuition,Out of School Provision EHCPs,Independent School Placements
Cambridgeshire County Council,02-Oct-23,51302061421,"7,962.84",Ackerman Pierce Limited,COMPANY,SEND - PEX support,SEND - Support for PEX without EHCP,Professional Fees and Hired Services
Cambridgeshire County Council,02-Oct-23,51302069127,"9,123.41",P WOODS CONSTRUCTION LTD,COMPANY,"School Condition, Maintenance & Suitability","School Condition, Maintenance & Suitability","New Construction, Conversion and Renovation"
Cambridgeshire County Council,02-Oct-23,51302059006,"9,555.41",Ackerman Pierce Limited,COMPANY,SEND - PEX support,SEND - Support for PEX without EHCP,Professional Fees and Hired Services
Cambridgeshire County Council,02-Oct-23,51302058073,"9,555.41",Ackerman Pierce Limited,COMPANY,Out of School Tuition,Out of School Provision EHCPs,Independent School Placements
Cambridgeshire County Council,02-Oct-23,51302058774,"9,999.00",RED BALLOON OF THE AIR,CARE ESTABLISHMENT,SEN Placements,Independent Education Placements,Independent School Placements
Cambridgeshire County Council,02-Oct-23,51302058986,"9,999.00",RED BALLOON OF THE AIR,CARE ESTABLISHMENT,SEN Placements,Independent Education Placements,Independent School Placements
Cambridgeshire County Council,02-Oct-23,51302059009,"9,999.00",RED BALLOON OF THE AIR,CARE ESTABLISHMENT,SEN Placements,Independent Education Placements,Independent School Placements
Cambridgeshire County Council,02-Oct-23,51302058401,"10,562.67",COMPASS MINERALS UK LIMITED,TRADE SUPPLIER,Winter Maintenance,East Winter,Salt for Highways
Cambridgeshire County Council,02-Oct-23,51302069158,"12,317.80",Broadlands Hall,EDUCATION,SEN Placements,Independent Education Placements,Independent School Placements
Cambridgeshire County Council,02-Oct-23,51302076184,"12,749.40",MOTT MACDONALD LTD,TRADE SUPPLIER,GCP - Cambridge South East (A1307),GCP - Cambridge South East (A1307),Construction - External Professional Fees
Cambridgeshire County Council,02-Oct-23,51302076625,"12,942.00",CANDLE (COMMUNICATION AND LEARNING ENTERPRISES LTD),TRADE SUPPLIER,Early Years Specialist Support,SEND - Independent Therapy,Independent School Placements
Cambridgeshire County Council,02-Oct-23,51302058555,"13,194.00",ATKINS LTD,COMPANY,GCP Melbourn Greenway,GCP Melbourn Greenway,Construction - External Professional Fees
Cambridgeshire County Council,02-Oct-23,51302058403,"13,203.88",ATKINS LTD,COMPANY,A141 and St Ives Improvement - CPCA,A141 and St Ives Improvement - CPCA,Construction - External Professional Fees
Cambridgeshire County Council,02-Oct-23,51302058559,"13,743.60",ATKINS LTD,COMPANY,GCP Sawston Greenway,GCP Sawston Greenway,Construction - External Professional Fees
Cambridgeshire County Council,02-Oct-23,51302058796,"14,439.65",ATKINS LTD,COMPANY,GCP Waterbeach Greenway,GCP Waterbeach Greenway,Construction - External Professional Fees
Cambridgeshire County Council,02-Oct-23,51302076259,"15,089.58",Beaumont HEALTHCARE LTD,CARE ESTABLISHMENT,Children's Disability Direct Payments,CSC Direct Payments,Direct Payments
Cambridgeshire County Council,02-Oct-23,51302058327,"15,508.80",Technical Outdoor Solutions Ltd,EDUCATION,Burwell House,Burwell House Residential Centre,Educational equipment
Cambridgeshire County Council,02-Oct-23,51302076623,"16,440.00",CANDLE (COMMUNICATION AND LEARNING ENTERPRISES LTD),TRADE SUPPLIER,Early Years Specialist Support,SEND - Independent Therapy,Independent School Placements
Cambridgeshire County Council,02-Oct-23,51302076665,"17,000.00",Hope Tree School,EDUCATION,SEN Placements,Independent Education Placements,Independent School Placements
Cambridgeshire County Council,02-Oct-23,51302059969,"17,274.17",On Track Education Services Limited,EDUCATION,SEN Placements,Independent Education Placements,Independent School Placements
Cambridgeshire County Council,02-Oct-23,51302076610,"20,904.75",PARKERS OF WISBECH LTD,TRADE SUPPLIER,Adults - Central Transport,Adults: LD & OPPD Transport,Social Care Transport
Cambridgeshire County Council,02-Oct-23,51302058464,"22,104.00",C JACKSON & SONS (JACKSON ENVIRONMENTAL LTD),COMPANY,"School Condition, Maintenance & Suitability","School Condition, Maintenance & Suitability",Environmental Works
Cambridgeshire County Council,02-Oct-23,51302058506,"22,762.20",Broadlands Hall,EDUCATION,SEN Placements,Independent Education Placements,Independent School Placements
Cambridgeshire County Council,02-Oct-23,51302076256,"23,566.84",Redacted Personal Data,INDIVIDUAL,Children's Disability Direct Payments,CSC Direct Payments,Direct Payments
Cambridgeshire County Council,02-Oct-23,51302060962,"25,489.63",ATKINS LTD,COMPANY,Combined Authority Schemes,Combined Authority Schemes,Construction - External Professional Fees
Cambridgeshire County Council,02-Oct-23,51302069162,"25,499.66",Acorn Care & Education Ltd,EDUCATION,SEN Placements,Independent Education Placements,Independent School Placements
Cambridgeshire County Council,02-Oct-23,51302061301,"27,374.29",WSP UK LTD T/A WSP INTEGRATED BUILDING SERVICES,TRADE SUPPLIER,Combined Authority Schemes,Combined Authority Schemes,Construction - External Professional Fees
Cambridgeshire County Council,02-Oct-23,51302060971,"43,620.00",DELL COMPUTER CORPORATION LTD,TRADE SUPPLIER,Corporate IT Managed,Hardware & Infrastructure,Computer hardware - purchase
Cambridgeshire County Council,02-Oct-23,51302061288,"43,620.00",DELL COMPUTER CORPORATION LTD,TRADE SUPPLIER,Corporate IT Managed,Hardware & Infrastructure,Computer hardware - purchase
Cambridgeshire County Council,02-Oct-23,51302060969,"43,620.00",DELL COMPUTER CORPORATION LTD,TRADE SUPPLIER,Corporate IT Managed,Hardware & Infrastructure,Computer hardware - purchase
Cambridgeshire County Council,02-Oct-23,51302060970,"43,620.00",DELL COMPUTER CORPORATION LTD,TRADE SUPPLIER,Corporate IT Managed,Hardware & Infrastructure,Computer hardware - purchase
Cambridgeshire County Council,02-Oct-23,51302071328,"43,710.68",HAMPTON COLLEGE,EDUCATION,Recoupment,Other LA Mainstream,Independent School Placements
Cambridgeshire County Council,02-Oct-23,51302058584,"44,066.59",DELL COMPUTER CORPORATION LTD,TRADE SUPPLIER,Corporate IT Managed,Hardware & Infrastructure,Computer hardware - purchase
Cambridgeshire County Council,02-Oct-23,51302069161,"48,149.38",Ruskin Mill Trust,EDUCATION,SEN Placements,Independent Education Placements,Independent School Placements
Cambridgeshire County Council,02-Oct-23,51302058412,"49,275.61",ATKINS LTD,COMPANY,GCP - Cambridge South East (A1307),GCP - Cambridge South East (A1307),Construction - External Professional Fees
Cambridgeshire County Council,02-Oct-23,51302059938,"70,661.04",OCS GROUP UK LTD,TRADE SUPPLIER,Parking Enforcement,Civil Parking Enforcement,Professional Fees and Hired Services
Cambridgeshire County Council,02-Oct-23,51302058413,"120,000.00",ATKINS LTD,COMPANY,GCP - Science Park to Waterbeach (A10 North Study),GCP - Science Park to Waterbeach (A10 North Study),Construction - External Professional Fees
Cambridgeshire County Council,02-Oct-23,51302058397,"140,955.42",CAMBRIDGESHIRE COMMUNITY SERVICES NHS TRUST,TRUST (OTHER),Community Sexual Health,SH STI  -  Community Sexual Health Services,Professional Fees and Hired Services
Cambridgeshire County Council,02-Oct-23,51302058396,"291,820.58",CAMBRIDGESHIRE COMMUNITY SERVICES NHS TRUST,TRUST (OTHER),Community Sexual Health,SH STI  -  Community Sexual Health Services,Professional Fees and Hired Services
Cambridgeshire County Council,02-Oct-23,51302076222,"371,090.69",OPUS LGSS (PEOPLE SOLUTIONS) LTD,TRADE SUPPLIER,Corporate Services Default,Opus agency charges - central allocation,Agency Staff
Cambridgeshire County Council,02-Oct-23,51302058398,"760,509.00",CAMBRIDGESHIRE COMMUNITY SERVICES NHS TRUST,TRUST (OTHER),PH Children 0-5 PH Programme,Children 0 - 5 PH Programme,Professional Fees and Hired Services
Cambridgeshire County Council,02-Oct-23,51301947977,"987,868.00",Cambridgeshire and Peterborough Combined Authority,OTHER PUBLIC BODIES,Financing items,Combined Authority,Agency Precepts and Levies
Cambridgeshire County Council,04-Oct-23,51302077037,"-18,000.00",Serenity Welfare Limited,CARE ESTABLISHMENT,LAC Placements,Placements - residential homes,Agency Placements - Out of  County
Cambridgeshire County Council,04-Oct-23,51302076931,"-1,142.97",Redacted Personal Data,SERVICE USER,OPPD - Cost of Care - City South - Over 65,Older People - City & South - Care,Direct Payments
Cambridgeshire County Council,04-Oct-23,51302076931,"-1,142.97",Redacted Personal Data,SERVICE USER,OPPD - Cost of Care - City South - Over 65,Older People - City & South - Care,Direct Payments
Cambridgeshire County Council,04-Oct-23,51302076931,"-1,142.97",Redacted Personal Data,SERVICE USER,OPPD - Cost of Care - City South - Over 65,Older People - City & South - Care,Direct Payments
Cambridgeshire County Council,04-Oct-23,51302076931,"-1,142.97",Redacted Personal Data,SERVICE USER,OPPD - Cost of Care - City South - Over 65,Older People - City & South - Care,Direct Payments
Cambridgeshire County Council,04-Oct-23,51302076931,"-1,142.97",Redacted Personal Data,SERVICE USER,OPPD - Cost of Care - City South - Over 65,Older People - City & South - Care,Direct Payments
Cambridgeshire County Council,04-Oct-23,51302076931,"-1,142.97",Redacted Personal Data,SERVICE USER,OPPD - Cost of Care - City South - Over 65,Older People - City & South - Care,Direct Payments
Cambridgeshire County Council,04-Oct-23,51302076931,"-1,142.97",Redacted Personal Data,SERVICE USER,OPPD - Cost of Care - City South - Over 65,Older People - City & South - Care,Direct Payments
Cambridgeshire County Council,04-Oct-23,51302076931,"-1,142.97",Redacted Personal Data,SERVICE USER,OPPD - Cost of Care - City South - Over 65,Older People - City & South - Care,Direct Payments
Cambridgeshire County Council,04-Oct-23,51302076929,-601.88,Redacted Personal Data,INDIVIDUAL,LD - Young Adults Team,LD - Young Adults - Care,Direct Payments
Cambridgeshire County Council,04-Oct-23,51302076929,-601.88,Redacted Personal Data,INDIVIDUAL,LD - Young Adults Team,LD - Young Adults - Care,Direct Payments
Cambridgeshire County Council,04-Oct-23,51302076929,-601.88,Redacted Personal Data,INDIVIDUAL,LD - Young Adults Team,LD - Young Adults - Care,Direct Payments
Cambridgeshire County Council,04-Oct-23,51302076929,-601.88,Redacted Personal Data,INDIVIDUAL,LD - Young Adults Team,LD - Young Adults - Care,Direct Payments
Cambridgeshire County Council,04-Oct-23,51302076929,-601.88,Redacted Personal Data,INDIVIDUAL,LD - Young Adults Team,LD - Young Adults - Care,Direct Payments
Cambridgeshire County Council,04-Oct-23,51302076929,-601.88,Redacted Personal Data,INDIVIDUAL,LD - Young Adults Team,LD - Young Adults - Care,Direct Payments
Cambridgeshire County Council,04-Oct-23,51302076929,-601.88,Redacted Personal Data,INDIVIDUAL,LD - Young Adults Team,LD - Young Adults - Care,Direct Payments
Cambridgeshire County Council,04-Oct-23,51302076929,-601.88,Redacted Personal Data,INDIVIDUAL,LD - Young Adults Team,LD - Young Adults - Care,Direct Payments
Cambridgeshire County Council,04-Oct-23,51302076929,-601.88,Redacted Personal Data,INDIVIDUAL,LD - Young Adults Team,LD - Young Adults - Care,Direct Payments
Cambridgeshire County Council,04-Oct-23,51302076929,-601.88,Redacted Personal Data,INDIVIDUAL,LD - Young Adults Team,LD - Young Adults - Care,Direct Payments
Cambridgeshire County Council,04-Oct-23,51302076929,-601.88,Redacted Personal Data,INDIVIDUAL,LD - Young Adults Team,LD - Young Adults - Care,Direct Payments
Cambridgeshire County Council,04-Oct-23,51302076929,-601.88,Redacted Personal Data,INDIVIDUAL,LD - Young Adults Team,LD - Young Adults - Care,Direct Payments
Cambridgeshire County Council,04-Oct-23,51302076929,-601.88,Redacted Personal Data,INDIVIDUAL,LD - Young Adults Team,LD - Young Adults - Care,Direct Payments
Cambridgeshire County Council,04-Oct-23,51302076929,-601.88,Redacted Personal Data,INDIVIDUAL,LD - Young Adults Team,LD - Young Adults - Care,Direct Payments
Cambridgeshire County Council,04-Oct-23,51302076929,-601.88,Redacted Personal Data,INDIVIDUAL,LD - Young Adults Team,LD - Young Adults - Care,Direct Payments
Cambridgeshire County Council,04-Oct-23,51302076929,-601.88,Redacted Personal Data,INDIVIDUAL,LD - Young Adults Team,LD - Young Adults - Care,Direct Payments
Cambridgeshire County Council,04-Oct-23,51302076929,-601.88,Redacted Personal Data,INDIVIDUAL,LD - Young Adults Team,LD - Young Adults - Care,Direct Payments
Cambridgeshire County Council,04-Oct-23,51302076929,-601.88,Redacted Personal Data,INDIVIDUAL,LD - Young Adults Team,LD - Young Adults - Care,Direct Payments
Cambridgeshire County Council,04-Oct-23,51302076929,-601.88,Redacted Personal Data,INDIVIDUAL,LD - Young Adults Team,LD - Young Adults - Care,Direct Payments
Cambridgeshire County Council,04-Oct-23,51302076924,-532.31,Redacted Personal Data,INDIVIDUAL,OPPD - Under 65 - City South,OPPD - Under 65 - City South,Direct Payments
Cambridgeshire County Council,04-Oct-23,51302076924,-532.31,Redacted Personal Data,INDIVIDUAL,OPPD - Under 65 - City South,OPPD - Under 65 - City South,Direct Payments
Cambridgeshire County Council,04-Oct-23,51302076924,-532.31,Redacted Personal Data,INDIVIDUAL,OPPD - Under 65 - City South,OPPD - Under 65 - City South,Direct Payments
Cambridgeshire County Council,04-Oct-23,51302076924,-532.31,Redacted Personal Data,INDIVIDUAL,OPPD - Under 65 - City South,OPPD - Under 65 - City South,Direct Payments
Cambridgeshire County Council,04-Oct-23,51302076924,-532.31,Redacted Personal Data,INDIVIDUAL,OPPD - Under 65 - City South,OPPD - Under 65 - City South,Direct Payments
Cambridgeshire County Council,04-Oct-23,51302076924,-532.31,Redacted Personal Data,INDIVIDUAL,OPPD - Under 65 - City South,OPPD - Under 65 - City South,Direct Payments
Cambridgeshire County Council,04-Oct-23,51302076924,-532.31,Redacted Personal Data,INDIVIDUAL,OPPD - Under 65 - City South,OPPD - Under 65 - City South,Direct Payments
Cambridgeshire County Council,04-Oct-23,51302076924,-532.31,Redacted Personal Data,INDIVIDUAL,OPPD - Under 65 - City South,OPPD - Under 65 - City South,Direct Payments
Cambridgeshire County Council,04-Oct-23,51302076929,-515.90,Redacted Personal Data,INDIVIDUAL,LD - Young Adults Team,LD - Young Adults - Care,Direct Payments
Cambridgeshire County Council,04-Oct-23,51302076929,515.90,Redacted Personal Data,INDIVIDUAL,LD - Young Adults Team,LD - Young Adults - Care,Direct Payments
Cambridgeshire County Council,04-Oct-23,51302076639,533.80,ALL SAINTS INTER-CHURCH ACADEMY,EDUCATION,Early Years Specialist Support,SEND - Childcare Access Funding,Independent School Placements
Cambridgeshire County Council,04-Oct-23,51302076747,542.81,Redacted Personal Data,INDIVIDUAL,Fostering,FCP allowances,Adoption Allowances
Cambridgeshire County Council,04-Oct-23,51302077123,544.32,Advanced Assessment & Solution,COMPANY,South Cambs Children's Team 2,South Cambs Children's Team 2,Grants and Support for other Service Users
Cambridgeshire County Council,04-Oct-23,51302068226,562.79,Pathfinder Legal Services Limited,TRADE SUPPLIER,Kennett Primary,Kennett Primary,Construction - External Professional Fees
Cambridgeshire County Council,04-Oct-23,51302076929,601.88,Redacted Personal Data,INDIVIDUAL,LD - Young Adults Team,LD - Young Adults - Care,Direct Payments
Cambridgeshire County Council,04-Oct-23,51302076929,601.88,Redacted Personal Data,INDIVIDUAL,LD - Young Adults Team,LD - Young Adults - Care,Direct Payments
Cambridgeshire County Council,04-Oct-23,51302076929,601.88,Redacted Personal Data,INDIVIDUAL,LD - Young Adults Team,LD - Young Adults - Care,Direct Payments
Cambridgeshire County Council,04-Oct-23,51302076929,601.88,Redacted Personal Data,INDIVIDUAL,LD - Young Adults Team,LD - Young Adults - Care,Direct Payments
Cambridgeshire County Council,04-Oct-23,51302076929,601.88,Redacted Personal Data,INDIVIDUAL,LD - Young Adults Team,LD - Young Adults - Care,Direct Payments
Cambridgeshire County Council,04-Oct-23,51302076929,601.88,Redacted Personal Data,INDIVIDUAL,LD - Young Adults Team,LD - Young Adults - Care,Direct Payments
Cambridgeshire County Council,04-Oct-23,51302076929,601.88,Redacted Personal Data,INDIVIDUAL,LD - Young Adults Team,LD - Young Adults - Care,Direct Payments
Cambridgeshire County Council,04-Oct-23,51302076929,601.88,Redacted Personal Data,INDIVIDUAL,LD - Young Adults Team,LD - Young Adults - Care,Direct Payments
Cambridgeshire County Council,04-Oct-23,51302076929,601.88,Redacted Personal Data,INDIVIDUAL,LD - Young Adults Team,LD - Young Adults - Care,Direct Payments
Cambridgeshire County Council,04-Oct-23,51302076929,601.88,Redacted Personal Data,INDIVIDUAL,LD - Young Adults Team,LD - Young Adults - Care,Direct Payments
Cambridgeshire County Council,04-Oct-23,51302076929,601.88,Redacted Personal Data,INDIVIDUAL,LD - Young Adults Team,LD - Young Adults - Care,Direct Payments
Cambridgeshire County Council,04-Oct-23,51302076929,601.88,Redacted Personal Data,INDIVIDUAL,LD - Young Adults Team,LD - Young Adults - Care,Direct Payments
Cambridgeshire County Council,04-Oct-23,51302076929,601.88,Redacted Personal Data,INDIVIDUAL,LD - Young Adults Team,LD - Young Adults - Care,Direct Payments
Cambridgeshire County Council,04-Oct-23,51302076929,601.88,Redacted Personal Data,INDIVIDUAL,LD - Young Adults Team,LD - Young Adults - Care,Direct Payments
Cambridgeshire County Council,04-Oct-23,51302076929,601.88,Redacted Personal Data,INDIVIDUAL,LD - Young Adults Team,LD - Young Adults - Care,Direct Payments
Cambridgeshire County Council,04-Oct-23,51302076929,601.88,Redacted Personal Data,INDIVIDUAL,LD - Young Adults Team,LD - Young Adults - Care,Direct Payments
Cambridgeshire County Council,04-Oct-23,51302076929,601.88,Redacted Personal Data,INDIVIDUAL,LD - Young Adults Team,LD - Young Adults - Care,Direct Payments
Cambridgeshire County Council,04-Oct-23,51302076929,601.88,Redacted Personal Data,INDIVIDUAL,LD - Young Adults Team,LD - Young Adults - Care,Direct Payments
Cambridgeshire County Council,04-Oct-23,51302076929,601.88,Redacted Personal Data,INDIVIDUAL,LD - Young Adults Team,LD - Young Adults - Care,Direct Payments
Cambridgeshire County Council,04-Oct-23,51302076914,614.40,HEMINGFORD SPORTS & SOCIAL CLUB,LOCAL CLUBS & GROUPS,SEND Specialist Services - SEND Training,SEND Specialist Services - SEND Training,Casual hire of facilities
Cambridgeshire County Council,04-Oct-23,51302076215,619.20,REED SPECIALIST RECRUITMENT LTD,TRADE SUPPLIER,Community Support Service,Community Support Service ECF,Grants to Voluntary Bodies
Cambridgeshire County Council,04-Oct-23,51302076924,624.96,Redacted Personal Data,INDIVIDUAL,OPPD - Under 65 - City South,OPPD - Under 65 - City South,Direct Payments
Cambridgeshire County Council,04-Oct-23,51302076924,624.96,Redacted Personal Data,INDIVIDUAL,OPPD - Under 65 - City South,OPPD - Under 65 - City South,Direct Payments
Cambridgeshire County Council,04-Oct-23,51302076924,624.96,Redacted Personal Data,INDIVIDUAL,OPPD - Under 65 - City South,OPPD - Under 65 - City South,Direct Payments
Cambridgeshire County Council,04-Oct-23,51302076924,624.96,Redacted Personal Data,INDIVIDUAL,OPPD - Under 65 - City South,OPPD - Under 65 - City South,Direct Payments
Cambridgeshire County Council,04-Oct-23,51302076924,624.96,Redacted Personal Data,INDIVIDUAL,OPPD - Under 65 - City South,OPPD - Under 65 - City South,Direct Payments
Cambridgeshire County Council,04-Oct-23,51302076924,624.96,Redacted Personal Data,INDIVIDUAL,OPPD - Under 65 - City South,OPPD - Under 65 - City South,Direct Payments
Cambridgeshire County Council,04-Oct-23,51302076924,624.96,Redacted Personal Data,INDIVIDUAL,OPPD - Under 65 - City South,OPPD - Under 65 - City South,Direct Payments
Cambridgeshire County Council,04-Oct-23,51302076924,624.96,Redacted Personal Data,INDIVIDUAL,OPPD - Under 65 - City South,OPPD - Under 65 - City South,Direct Payments
Cambridgeshire County Council,04-Oct-23,51302076930,635.04,Redacted Personal Data,INDIVIDUAL,OPPD - Cost of Care - City South - Over 65,Older People - City & South - Care,Direct Payments
Cambridgeshire County Council,04-Oct-23,51302076930,635.04,Redacted Personal Data,INDIVIDUAL,OPPD - Cost of Care - City South - Over 65,Older People - City & South - Care,Direct Payments
Cambridgeshire County Council,04-Oct-23,51302076930,635.04,Redacted Personal Data,INDIVIDUAL,OPPD - Cost of Care - City South - Over 65,Older People - City & South - Care,Direct Payments
Cambridgeshire County Council,04-Oct-23,51302076930,635.04,Redacted Personal Data,INDIVIDUAL,OPPD - Cost of Care - City South - Over 65,Older People - City & South - Care,Direct Payments
Cambridgeshire County Council,04-Oct-23,51302076930,635.04,Redacted Personal Data,INDIVIDUAL,OPPD - Cost of Care - City South - Over 65,Older People - City & South - Care,Direct Payments
Cambridgeshire County Council,04-Oct-23,51302076930,635.04,Redacted Personal Data,INDIVIDUAL,OPPD - Cost of Care - City South - Over 65,Older People - City & South - Care,Direct Payments
Cambridgeshire County Council,04-Oct-23,51302076930,635.04,Redacted Personal Data,INDIVIDUAL,OPPD - Cost of Care - City South - Over 65,Older People - City & South - Care,Direct Payments
Cambridgeshire County Council,04-Oct-23,51302076930,635.04,Redacted Personal Data,INDIVIDUAL,OPPD - Cost of Care - City South - Over 65,Older People - City & South - Care,Direct Payments
Cambridgeshire County Council,04-Oct-23,51302076930,635.04,Redacted Personal Data,INDIVIDUAL,OPPD - Cost of Care - City South - Over 65,Older People - City & South - Care,Direct Payments
Cambridgeshire County Council,04-Oct-23,51302076212,641.84,BEAUMONT HEALTHCARE LTD,CARE ESTABLISHMENT,Community Support Service,Community Support Service ECF,Grants to Voluntary Bodies
Cambridgeshire County Council,04-Oct-23,51302062839,650.00,RH ACUITY LIMITED,TRADE SUPPLIER,Fostering,Foster Care Panels,Professional Fees and Hired Services
Cambridgeshire County Council,04-Oct-23,51302076734,653.64,Redacted Personal Data,FOSTER PARENT,Fostering,FCP allowances,Living support grants
Cambridgeshire County Council,04-Oct-23,51302076913,657.60,HEMINGFORD SPORTS & SOCIAL CLUB,LOCAL CLUBS & GROUPS,SEND Specialist Services - SEND Training,SEND Specialist Services - SEND Training,Casual hire of facilities
Cambridgeshire County Council,04-Oct-23,51302076778,674.59,Redacted Personal Data,INDIVIDUAL,Fostering,FCP allowances,Adoption Allowances
Cambridgeshire County Council,04-Oct-23,51302076787,679.25,Redacted Personal Data,FOSTER PARENT,Fostering,FCP allowances,Adoption Allowances
Cambridgeshire County Council,04-Oct-23,51302058916,684.48,Pathfinder Legal Services Limited,TRADE SUPPLIER,Kennett Primary,Kennett Primary,Construction - External Professional Fees
Cambridgeshire County Council,04-Oct-23,51302076898,700.00,Redacted Personal Data,PARENT/GUARDIAN,Children's Disability Direct Payments,CSC Direct Payments,Direct Payments
Cambridgeshire County Council,04-Oct-23,51302076709,700.07,Redacted Personal Data,FOSTER PARENT,Fostering,FCP allowances,Living support grants
Cambridgeshire County Council,04-Oct-23,51302076775,701.65,Redacted Personal Data,FOSTER PARENT,Fostering,FCP allowances,Adoption Allowances
Cambridgeshire County Council,04-Oct-23,51302076738,706.79,Redacted Personal Data,FOSTER PARENT,Fostering,FCP allowances,Living support grants
Cambridgeshire County Council,04-Oct-23,51302076710,706.79,Redacted Personal Data,FOSTER PARENT,Fostering,FCP allowances,Living support grants
Cambridgeshire County Council,04-Oct-23,51302076711,706.79,Redacted Personal Data,FOSTER PARENT,Fostering,FCP allowances,Living support grants
Cambridgeshire County Council,04-Oct-23,51302076722,719.47,Redacted Personal Data,FOSTER PARENT,Fostering,FCP allowances,Living support grants
Cambridgeshire County Council,04-Oct-23,51302062570,720.00,Cornerstone Training and Support Limited,EDUCATION,Childrens L&D,Childrens VQ,Professional Fees and Hired Services
Cambridgeshire County Council,04-Oct-23,51302076966,721.00,Redacted Personal Data,INDIVIDUAL,North Care Leaving Team 1,North Care Leaving Team 1,Leaving Care Grants
Cambridgeshire County Council,04-Oct-23,51302076729,724.64,Redacted Personal Data,FOSTER PARENT,Fostering,FCP allowances,Living support grants
Cambridgeshire County Council,04-Oct-23,51302059944,738.48,ESPO,TRADE SUPPLIER,Capability Fund - School travel planning,Capability Fund-School travel planning,Educational Materials
Cambridgeshire County Council,04-Oct-23,51302059916,750.00,WF Education Group Ltd,COMPANY,Libraries - Hunts,Libraries - Warboys,Furniture
Cambridgeshire County Council,04-Oct-23,51302076741,753.42,Redacted Personal Data,FOSTER PARENT,Fostering,FCP allowances,Adoption Allowances
Cambridgeshire County Council,04-Oct-23,51302076964,780.00,Redacted Personal Data,SERVICE USER,OPPD - Cost of Care - Fenland - Under 65,OPPD - Under 65 - Fenland,Direct Payments
Cambridgeshire County Council,04-Oct-23,51302076782,781.42,Redacted Personal Data,FOSTER PARENT,Fostering,FCP allowances,Adoption Allowances
Cambridgeshire County Council,04-Oct-23,51302077018,825.00,PCH Integration Services Ltd.,CARE ESTABLISHMENT,Unaccompanied Asylum Seeking Children,Separated Migrant Children < 18,Asylum Seekers
Cambridgeshire County Council,04-Oct-23,51302062460,826.09,BT OPENREACH,TRADE SUPPLIER,PD - Cycling DTSA,MID - Cycling DTSA,Construction - External Professional Fees
Cambridgeshire County Council,04-Oct-23,51302058918,877.92,Pathfinder Legal Services Limited,TRADE SUPPLIER,School Organisation and Planning - Head of Service,Head of Infrastructure,External Legal Fees
Cambridgeshire County Council,04-Oct-23,51302077098,881.00,LITTLE PAXTON PRE-SCHOOL,NURSERY,Nursery Schools,Early Years - Funded 3s/4s,Care & Ed Childcare Settings
Cambridgeshire County Council,04-Oct-23,51302077096,881.00,DITTON LODGE COMMUNITY NURSERY,EDUCATION,Nursery Schools,Early Years - Funded 3s/4s,Care & Ed Childcare Settings
Cambridgeshire County Council,04-Oct-23,51302077099,881.00,LONGSTANTON PRE-SCHOOL & OUT OF SCHOOL CLUBS,EDUCATION,Nursery Schools,Early Years - Funded 3s/4s,Care & Ed Childcare Settings
Cambridgeshire County Council,04-Oct-23,51302077094,881.00,Redacted Personal Data,INDIVIDUAL,Nursery Schools,Early Years - Funded 3s/4s,Care & Ed Childcare Settings
Cambridgeshire County Council,04-Oct-23,51302077095,881.00,CHILDREN'S MONTESSORI NURSERY,NURSERY,Nursery Schools,Early Years - Funded 3s/4s,Care & Ed Childcare Settings
Cambridgeshire County Council,04-Oct-23,51302076703,897.26,Redacted Personal Data,FOSTER PARENT,Fostering,FCP allowances,Living support grants
Cambridgeshire County Council,04-Oct-23,51302076927,900.00,Redacted Personal Data,INDIVIDUAL,OPPD - Cost of Care - Fenland - Over 65,Older People - Fenland - Care,Direct Payments
Cambridgeshire County Council,04-Oct-23,51302057668,900.30,RSP LTD,TRADE SUPPLIER,Safeguarding Hunts and Fenland,Family Safeguarding Hunts and Fenland,Concessions - payments to transport operators
Cambridgeshire County Council,04-Oct-23,51302076910,915.67,Clearwater Technology Limited,COMPANY,Health & Safety,POD - Health & Safety,Building Structural Maintenance - Reactive
Cambridgeshire County Council,04-Oct-23,51302076207,916.66,CAMBRIDGESHIRE HOMECARE (J&M CARE LTD),CARE ESTABLISHMENT,Community Support Service,Community Support Service ECF,Grants to Voluntary Bodies
Cambridgeshire County Council,04-Oct-23,51302073918,942.00,CAMBRIDGE KIDS CLUB LTD,NURSERY,Early Years Specialist Support,SEND - Childcare Access Funding,Independent School Placements
Cambridgeshire County Council,04-Oct-23,51302059943,949.50,ESPO,TRADE SUPPLIER,Libraries - Support,Support - Business Support,Furniture
Cambridgeshire County Council,04-Oct-23,51302076897,"1,000.00",Redacted Personal Data,PARENT/GUARDIAN,Children's Disability Direct Payments,CSC Direct Payments,Direct Payments
Cambridgeshire County Council,04-Oct-23,51302076869,"1,000.00",DIAMOND LEARNING PARTNERSHIP TRUST,TRUST (OTHER),Disability Clubs,CamPlay Holiday Clubs,Casual hire of facilities
Cambridgeshire County Council,04-Oct-23,51302076726,"1,015.97",Redacted Personal Data,FOSTER PARENT,Fostering,FCP allowances,Living support grants
Cambridgeshire County Council,04-Oct-23,51302077119,"1,044.00",Sensory Childcare,CARE ESTABLISHMENT,Children's Disability Direct Payments,CSC Direct Payments,Direct Payments
Cambridgeshire County Council,04-Oct-23,51302076927,"1,050.00",Redacted Personal Data,INDIVIDUAL,OPPD - Cost of Care - Fenland - Over 65,Older People - Fenland - Care,Direct Payments
Cambridgeshire County Council,04-Oct-23,51302076927,"1,050.00",Redacted Personal Data,INDIVIDUAL,OPPD - Cost of Care - Fenland - Over 65,Older People - Fenland - Care,Direct Payments
Cambridgeshire County Council,04-Oct-23,51302076927,"1,050.00",Redacted Personal Data,INDIVIDUAL,OPPD - Cost of Care - Fenland - Over 65,Older People - Fenland - Care,Direct Payments
Cambridgeshire County Council,04-Oct-23,51302076927,"1,050.00",Redacted Personal Data,INDIVIDUAL,OPPD - Cost of Care - Fenland - Over 65,Older People - Fenland - Care,Direct Payments
Cambridgeshire County Council,04-Oct-23,51302076927,"1,050.00",Redacted Personal Data,INDIVIDUAL,OPPD - Cost of Care - Fenland - Over 65,Older People - Fenland - Care,Direct Payments
Cambridgeshire County Council,04-Oct-23,51302076927,"1,050.00",Redacted Personal Data,INDIVIDUAL,OPPD - Cost of Care - Fenland - Over 65,Older People - Fenland - Care,Direct Payments
Cambridgeshire County Council,04-Oct-23,51302076927,"1,050.00",Redacted Personal Data,INDIVIDUAL,OPPD - Cost of Care - Fenland - Over 65,Older People - Fenland - Care,Direct Payments
Cambridgeshire County Council,04-Oct-23,51302076927,"1,050.00",Redacted Personal Data,INDIVIDUAL,OPPD - Cost of Care - Fenland - Over 65,Older People - Fenland - Care,Direct Payments
Cambridgeshire County Council,04-Oct-23,51302076927,"1,050.00",Redacted Personal Data,INDIVIDUAL,OPPD - Cost of Care - Fenland - Over 65,Older People - Fenland - Care,Direct Payments
Cambridgeshire County Council,04-Oct-23,51302076927,"1,050.00",Redacted Personal Data,INDIVIDUAL,OPPD - Cost of Care - Fenland - Over 65,Older People - Fenland - Care,Direct Payments
Cambridgeshire County Council,04-Oct-23,51302076927,"1,050.00",Redacted Personal Data,INDIVIDUAL,OPPD - Cost of Care - Fenland - Over 65,Older People - Fenland - Care,Direct Payments
Cambridgeshire County Council,04-Oct-23,51302076927,"1,050.00",Redacted Personal Data,INDIVIDUAL,OPPD - Cost of Care - Fenland - Over 65,Older People - Fenland - Care,Direct Payments
Cambridgeshire County Council,04-Oct-23,51302077130,"1,070.00",NCFE,EDUCATION,Cambridgeshire Skills HoS,Cambridgeshire Skills Management Team,Exam Fees
Cambridgeshire County Council,04-Oct-23,51302076727,"1,073.57",Redacted Personal Data,FOSTER PARENT,Fostering,FCP allowances,Living support grants
Cambridgeshire County Council,04-Oct-23,51302076468,"1,109.80",Redacted Personal Data,INDIVIDUAL,Cultural Services,Museum Partnership,Joint Partnership Funding
Cambridgeshire County Council,04-Oct-23,51302076931,"1,142.97",Redacted Personal Data,SERVICE USER,OPPD - Cost of Care - City South - Over 65,Older People - City & South - Care,Direct Payments
Cambridgeshire County Council,04-Oct-23,51302076931,"1,142.97",Redacted Personal Data,SERVICE USER,OPPD - Cost of Care - City South - Over 65,Older People - City & South - Care,Direct Payments
Cambridgeshire County Council,04-Oct-23,51302076931,"1,142.97",Redacted Personal Data,SERVICE USER,OPPD - Cost of Care - City South - Over 65,Older People - City & South - Care,Direct Payments
Cambridgeshire County Council,04-Oct-23,51302076931,"1,142.97",Redacted Personal Data,SERVICE USER,OPPD - Cost of Care - City South - Over 65,Older People - City & South - Care,Direct Payments
Cambridgeshire County Council,04-Oct-23,51302076931,"1,142.97",Redacted Personal Data,SERVICE USER,OPPD - Cost of Care - City South - Over 65,Older People - City & South - Care,Direct Payments
Cambridgeshire County Council,04-Oct-23,51302076931,"1,142.97",Redacted Personal Data,SERVICE USER,OPPD - Cost of Care - City South - Over 65,Older People - City & South - Care,Direct Payments
Cambridgeshire County Council,04-Oct-23,51302076931,"1,142.97",Redacted Personal Data,SERVICE USER,OPPD - Cost of Care - City South - Over 65,Older People - City & South - Care,Direct Payments
Cambridgeshire County Council,04-Oct-23,51302076931,"1,142.97",Redacted Personal Data,SERVICE USER,OPPD - Cost of Care - City South - Over 65,Older People - City & South - Care,Direct Payments
Cambridgeshire County Council,04-Oct-23,51302076735,"1,193.00",Redacted Personal Data,INDIVIDUAL,Fostering,FCP allowances,Living support grants
Cambridgeshire County Council,04-Oct-23,51302061715,"1,232.89",VETSPEED LTD T/A NOVUS ENVIRONMENTAL,TRADE SUPPLIER,Waste Disposal incl PFI,Waste Management,Specialist Waste Disposal
Cambridgeshire County Council,04-Oct-23,51302058899,"1,233.18",Pathfinder Legal Services Limited,TRADE SUPPLIER,Kennett Primary,Kennett Primary,Construction - External Professional Fees
Cambridgeshire County Council,04-Oct-23,51302076731,"1,349.18",Redacted Personal Data,PARENT/GUARDIAN,Fostering,FCP allowances,Living support grants
Cambridgeshire County Council,04-Oct-23,51302060455,"1,365.80",CAMBRIDGE UNIVERSITY HOSPITALS NHS FOUNDATION TRUST,TRUST (OTHER),Coroners,Coroners General,Payments to Other Establishments
Cambridgeshire County Council,04-Oct-23,51302076214,"1,381.64",CAMBRIDGESHIRE HOMECARE (J&M CARE LTD),CARE ESTABLISHMENT,Community Support Service,Community Support Service ECF,Grants to Voluntary Bodies
Cambridgeshire County Council,04-Oct-23,51302059921,"1,446.00",EVACU8,TRADE SUPPLIER,IHPS - Fenland,Victoria  Lodge,Staff Training & Development
Cambridgeshire County Council,04-Oct-23,51302076723,"1,452.22",Redacted Personal Data,FOSTER PARENT,Fostering,FCP allowances,Living support grants
Cambridgeshire County Council,04-Oct-23,51302076717,"1,480.43",Redacted Personal Data,FOSTER PARENT,Fostering,FCP allowances,Living support grants
Cambridgeshire County Council,04-Oct-23,51302076746,"1,492.30",Redacted Personal Data,FOSTER PARENT,Fostering,FCP allowances,Adoption Allowances
Cambridgeshire County Council,04-Oct-23,51302061713,"1,557.82",VETSPEED LTD T/A NOVUS ENVIRONMENTAL,TRADE SUPPLIER,Waste Disposal incl PFI,Waste Management,Specialist Waste Disposal
Cambridgeshire County Council,04-Oct-23,51302077118,"1,611.00",Redacted Personal Data,PARENT/GUARDIAN,Children's Disability Direct Payments,CSC Direct Payments,Direct Payments
Cambridgeshire County Council,04-Oct-23,51302073916,"1,648.50",CAMBRIDGE KIDS CLUB LTD,NURSERY,Early Years Specialist Support,SEND - Childcare Access Funding,Independent School Placements
Cambridgeshire County Council,04-Oct-23,51302077097,"1,762.00",LITTLE HANDS NURSERY SCHOOL (LINTON & BARTLOW),NURSERY,Nursery Schools,Early Years - Funded 3s/4s,Care & Ed Childcare Settings
Cambridgeshire County Council,04-Oct-23,51302077074,"1,806.31",Redacted Personal Data,INDIVIDUAL,Children's Disability Direct Payments,CSC Direct Payments,Direct Payments
Cambridgeshire County Council,04-Oct-23,51302077106,"1,810.00",PETERBOROUGH CITY COUNCIL,OTHER PUBLIC BODIES,Education Safeguarding,Education Safeguarding,Professional Fees and Hired Services
Cambridgeshire County Council,04-Oct-23,51302061716,"2,000.72",VETSPEED LTD T/A NOVUS ENVIRONMENTAL,TRADE SUPPLIER,Waste Disposal incl PFI,Waste Management,Specialist Waste Disposal
Cambridgeshire County Council,04-Oct-23,51302077139,"2,046.00",Targeted Provision Ltd,EDUCATION,Out of School Tuition,Out of School Provision EHCPs,Independent School Placements
Cambridgeshire County Council,04-Oct-23,51302076867,"2,069.90",Clearwater Technology Limited,COMPANY,Health & Safety,POD - Health & Safety,Building Structural Maintenance - Reactive
Cambridgeshire County Council,04-Oct-23,51302059963,"2,233.80",ATKINS LTD,COMPANY,GCP - Cambridge South East (A1307),GCP - Cambridge South East (A1307),Construction - External Professional Fees
Cambridgeshire County Council,04-Oct-23,51302077138,"2,244.00",Targeted Provision Ltd,EDUCATION,Out of School Tuition,Out of School Provision EHCPs,Independent School Placements
Cambridgeshire County Council,04-Oct-23,51302076874,"2,274.00",WALKER FIRE UK,TRADE SUPPLIER,Health & Safety,POD - Health & Safety,Fire Prevention Equipment
Cambridgeshire County Council,04-Oct-23,51302061717,"2,370.08",VETSPEED LTD T/A NOVUS ENVIRONMENTAL,TRADE SUPPLIER,Waste Disposal incl PFI,Waste Management,Specialist Waste Disposal
Cambridgeshire County Council,04-Oct-23,51302076216,"2,463.90",REED SPECIALIST RECRUITMENT LTD,TRADE SUPPLIER,Community Support Service,Community Support Service ECF,Grants to Voluntary Bodies
Cambridgeshire County Council,04-Oct-23,51302061711,"2,470.57",VETSPEED LTD T/A NOVUS ENVIRONMENTAL,TRADE SUPPLIER,Waste Disposal incl PFI,Waste Management,Specialist Waste Disposal
Cambridgeshire County Council,04-Oct-23,51302076929,"2,543.61",Redacted Personal Data,INDIVIDUAL,LD - Young Adults Team,LD - Young Adults - Care,Direct Payments
Cambridgeshire County Council,04-Oct-23,51302077135,"2,592.00",Targeted Provision Ltd,EDUCATION,Out of School Tuition,Out of School Provision EHCPs,Independent School Placements
Cambridgeshire County Council,04-Oct-23,51302077100,"2,643.00",STEPPING STONES DAY NURSERY ST IVES,NURSERY,Nursery Schools,Early Years - Funded 3s/4s,Care & Ed Childcare Settings
Cambridgeshire County Council,04-Oct-23,51302076915,"2,970.36",MELBOURN PLAYGROUP AND OUT OF SCHOOL CLUB,NURSERY,SEND High Needs Top Up,High Needs Top Up - Early Years,Independent School Placements
Cambridgeshire County Council,04-Oct-23,51302077049,"3,030.00",NEXUS FOSTERING LTD,CARE ESTABLISHMENT,LAC Placements,Placements - independent fostering,Agency Placements - In County
Cambridgeshire County Council,04-Oct-23,51302077136,"3,036.00",Targeted Provision Ltd,EDUCATION,Out of School Tuition,Out of School Provision EHCPs,Independent School Placements
Cambridgeshire County Council,04-Oct-23,51302076982,"3,097.24",QUALITY FOSTER CARE LTD,CARE ESTABLISHMENT,LAC Placements,Placements - independent fostering,Agency Placements - Out of  County
Cambridgeshire County Council,04-Oct-23,51302061718,"3,107.69",VETSPEED LTD T/A NOVUS ENVIRONMENTAL,TRADE SUPPLIER,Waste Disposal incl PFI,Waste Management,Specialist Waste Disposal
Cambridgeshire County Council,04-Oct-23,51302077040,"3,131.00",NEXUS FOSTERING LTD,CARE ESTABLISHMENT,LAC Placements,Placements - independent fostering,Agency Placements - In County
Cambridgeshire County Council,04-Oct-23,51302073924,"3,297.00",CAMBRIDGE KIDS CLUB LTD,NURSERY,Early Years Specialist Support,SEND - Childcare Access Funding,Independent School Placements
Cambridgeshire County Council,04-Oct-23,51302061714,"3,333.80",VETSPEED LTD T/A NOVUS ENVIRONMENTAL,TRADE SUPPLIER,Waste Disposal incl PFI,Waste Management,Specialist Waste Disposal
Cambridgeshire County Council,04-Oct-23,51302077051,"3,342.86",APEX Fostering,CARE ESTABLISHMENT,LAC Placements,Placements - independent fostering,Agency Placements - Out of  County
Cambridgeshire County Council,04-Oct-23,51302076200,"3,385.38",BEAUMONT HEALTHCARE LTD,CARE ESTABLISHMENT,Community Support Service,Community Support Service ECF,Grants to Voluntary Bodies
Cambridgeshire County Council,04-Oct-23,51302076985,"3,407.10",True Fostering Ltd,COMPANY,LAC Placements,Placements - independent fostering,Agency Placements - Out of  County
Cambridgeshire County Council,04-Oct-23,51302077058,"3,480.00",NEXUS FOSTERING LTD,CARE ESTABLISHMENT,LAC Placements,Placements - independent fostering,Agency Placements - In County
Cambridgeshire County Council,04-Oct-23,51302076979,"3,535.71",Eastern Family Services Ltd t/a Eastern Fostering Services,CARE ESTABLISHMENT,LAC Placements,Placements - independent fostering,Agency Placements - Out of  County
Cambridgeshire County Council,04-Oct-23,51302076977,"3,535.71",Eastern Family Services Ltd t/a Eastern Fostering Services,CARE ESTABLISHMENT,LAC Placements,Placements - independent fostering,Agency Placements - Out of  County
Cambridgeshire County Council,04-Oct-23,51302076981,"3,535.71",Eastern Family Services Ltd t/a Eastern Fostering Services,CARE ESTABLISHMENT,LAC Placements,Placements - independent fostering,Agency Placements - Out of  County
Cambridgeshire County Council,04-Oct-23,51302076984,"3,575.40",FUTURES FOR CHILDREN LTD,CARE ESTABLISHMENT,LAC Placements,Placements - independent fostering,Agency Placements - Out of  County
Cambridgeshire County Council,04-Oct-23,51302060333,"3,576.11",COMPASS MINERALS UK LIMITED,TRADE SUPPLIER,Winter Maintenance,East Winter,Salt for Highways
Cambridgeshire County Council,04-Oct-23,51302077001,"3,720.00",FOSTER CARE ASSOCIATES LTD (FCA),CARE ESTABLISHMENT,Unaccompanied Asylum Seeking Children,Separated Migrant Children < 18,Agency Placements - Out of  County
Cambridgeshire County Council,04-Oct-23,51302076983,"3,835.50",People Who Foster Ltd,CARE ESTABLISHMENT,LAC Placements,Placements - independent fostering,Agency Placements - Out of  County
Cambridgeshire County Council,04-Oct-23,51302060457,"4,362.12",CAMBRIDGE UNIVERSITY HOSPITALS NHS FOUNDATION TRUST,TRUST (OTHER),Coroners,Coroners General,Payments to Other Establishments
Cambridgeshire County Council,04-Oct-23,51302076882,"4,550.00",Fireflies Forest School,EDUCATION,Out of School Tuition,Out of School Provision EHCPs,Independent School Placements
Cambridgeshire County Council,04-Oct-23,51302076457,"4,999.40",Pathfinder Legal Services Limited,TRADE SUPPLIER,CHIC - Commercial Activity,This Land,External Legal Fees
Cambridgeshire County Council,04-Oct-23,51302076917,"5,040.00",FEVACA,CARE ESTABLISHMENT,LAC Placements,Placements - supported accommodation,Agency Placements - In County
Cambridgeshire County Council,04-Oct-23,51302062988,"5,085.60",St John's College School,EDUCATION,SEND High Needs Top Up,High Needs Top Up - Free Schools,Independent School Placements
Cambridgeshire County Council,04-Oct-23,51302077021,"6,000.00",Shining Stars Fostering Agency Ltd,COMPANY,Unaccompanied Asylum Seeking Children,Separated Migrant Children < 18,Agency Placements - Out of  County
Cambridgeshire County Council,04-Oct-23,51302059945,"6,050.00",ASSOCIATION OF DIRECTORS OF PUBLIC HEALTH,CHARITY,PH Public Health Directorate,Public Health Strategic Management,Subscriptions
Cambridgeshire County Council,04-Oct-23,51302057331,"6,403.76",24-7 Locks Ltd,COMPANY,Domestic Violence & Sexual Violence,DLUHC Grant,Professional Fees and Hired Services
Cambridgeshire County Council,04-Oct-23,51302076974,"6,600.00",Channels & Choices Therapeutic Fostering Ltd,CARE ESTABLISHMENT,LAC Placements,Placements - independent fostering,Agency Placements - Out of  County
Cambridgeshire County Council,04-Oct-23,51302060038,"7,020.00",ATKINS LTD,COMPANY,Manea Primary,Manea Primary Expansion,Construction - External Professional Fees
Cambridgeshire County Council,04-Oct-23,51302076880,"7,128.00",ATKINS LTD,COMPANY,TIPF - Strategy & Scheme Dev,TIPF - Strategy & Scheme Dev,Construction - External Professional Fees
Cambridgeshire County Council,04-Oct-23,51302077102,"8,664.61",Redacted Personal Data,INDIVIDUAL,SEND High Needs Top Up,Personal Budgets,Independent School Placements
Cambridgeshire County Council,04-Oct-23,51302061303,"9,600.00",Service Level Management Ltd,COMPANY,Information Management,Information Management,Equipment and Tools
Cambridgeshire County Council,04-Oct-23,51302059935,"9,999.67",RED BALLOON OF THE AIR,CARE ESTABLISHMENT,SEN Placements,Independent Education Placements,Independent School Placements
Cambridgeshire County Council,04-Oct-23,51302076502,"13,812.52",Infinigate Cloud UK Ltd,COMPANY,ICT Service,ICT Service Technical Support,Computer software - purchase
Cambridgeshire County Council,04-Oct-23,51302077055,"14,785.71",BREAK,CHARITY,LAC Placements,Placements - residential homes,Agency Placements - In County
Cambridgeshire County Council,04-Oct-23,51302060456,"15,023.33",CAMBRIDGE UNIVERSITY HOSPITALS NHS FOUNDATION TRUST,TRUST (OTHER),Coroners,Coroners General,Payments to Other Establishments
Cambridgeshire County Council,04-Oct-23,51302077053,"15,964.29",BREAK,CHARITY,LAC Placements,Placements - residential homes,Agency Placements - Out of  County
Cambridgeshire County Council,04-Oct-23,51302077024,"16,285.71",Acorn Homes UK Limited,CARE ESTABLISHMENT,LAC Placements,Placements - residential homes,Agency Placements - Out of  County
Cambridgeshire County Council,04-Oct-23,51302077057,"16,285.71",BREAK,CHARITY,LAC Placements,Placements - residential homes,Agency Placements - In County
Cambridgeshire County Council,04-Oct-23,51302076889,"17,560.90",BUSY BEES PRE-SCHOOL PLAYGROUP,NURSERY,SEND High Needs Top Up,High Needs Top Up - Early Years,Independent School Placements
Cambridgeshire County Council,04-Oct-23,51302077038,"18,000.00",Serenity Welfare Limited,CARE ESTABLISHMENT,LAC Placements,Placements - residential homes,Agency Placements - Out of  County
Cambridgeshire County Council,04-Oct-23,51302077043,"18,000.00",Surecare Residential Limited,EDUCATION,LAC Placements,Placements - residential homes,Agency Placements - Out of  County
Cambridgeshire County Council,04-Oct-23,51302076987,"18,835.71",4D CARE LIMITED,CARE ESTABLISHMENT,LAC Placements,Placements - residential homes,Agency Placements - In County
Cambridgeshire County Council,04-Oct-23,51302077042,"19,285.71",Surecare Residential Limited,EDUCATION,LAC Placements,Placements - residential homes,Agency Placements - Out of  County
Cambridgeshire County Council,04-Oct-23,51302077028,"21,428.57",Compass Children�s Homes Ltd,CARE ESTABLISHMENT,LAC Placements,Placements - residential homes,Agency Placements - Out of  County
Cambridgeshire County Council,04-Oct-23,51302077039,"21,600.00",Serenity Welfare Limited,CARE ESTABLISHMENT,LAC Placements,Placements - residential homes,Agency Placements - Out of  County
Cambridgeshire County Council,04-Oct-23,51302077032,"22,157.14",Higher Hopes Ltd,CARE ESTABLISHMENT,LAC Placements,Placements - residential homes,Agency Placements - In County
Cambridgeshire County Council,04-Oct-23,51302077025,"22,275.00",Channels & Choices LLP,CARE ESTABLISHMENT,LAC Placements,Placements - residential homes,Agency Placements - Out of  County
Cambridgeshire County Council,04-Oct-23,51302077034,"23,014.29",Higher Hopes Ltd,CARE ESTABLISHMENT,LAC Placements,Placements - residential homes,Agency Placements - In County
Cambridgeshire County Council,04-Oct-23,51302077026,"24,128.57",Childhood First,CARE ESTABLISHMENT,LAC Placements,Placements - residential homes,Agency Placements - Out of  County
Cambridgeshire County Council,04-Oct-23,51302077120,"25,524.00",Aegis Legal Limited General Clients Account,COMPANY,Insurance Fund,Liability,Insurance Claims Paid
Cambridgeshire County Council,04-Oct-23,51302071330,"25,750.00",WILDS LODGE SCHOOL LTD,EDUCATION,SEN Placements,Independent Education Placements,Independent School Placements
Cambridgeshire County Council,04-Oct-23,51302077045,"26,852.00",PETERBOROUGH CITY COUNCIL,OTHER PUBLIC BODIES,LAC Placements,Placements - secure accommodation,Agency Placements - Out of  County
Cambridgeshire County Council,04-Oct-23,51302077044,"26,852.00",PETERBOROUGH CITY COUNCIL,OTHER PUBLIC BODIES,LAC Placements,Placements - secure accommodation,Agency Placements - Out of  County
Cambridgeshire County Council,04-Oct-23,51302076916,"27,831.21",Focus Care Agency,CARE ESTABLISHMENT,LAC Placements,Placements - supported accommodation,Agency Placements - In County
Cambridgeshire County Council,04-Oct-23,51302076918,"29,245.80",Serenity Welfare Limited,CARE ESTABLISHMENT,LAC Placements,Placements - supported accommodation,Agency Placements - In County
Cambridgeshire County Council,04-Oct-23,51302076919,"29,245.80",Serenity Welfare Limited,CARE ESTABLISHMENT,LAC Placements,Placements - supported accommodation,Agency Placements - In County
Cambridgeshire County Council,04-Oct-23,51302077030,"33,578.57",Florinee Homes Ltd,CARE ESTABLISHMENT,LAC Placements,Placements - residential homes,Agency Placements - In County
Cambridgeshire County Council,04-Oct-23,51302076920,"34,977.00",Serenity Welfare Limited,CARE ESTABLISHMENT,LAC Placements,Placements - supported accommodation,Agency Placements - In County
Cambridgeshire County Council,04-Oct-23,51302076901,"35,488.44",CAMBRIDGESHIRE COMMUNITY SERVICES NHS TRUST,TRUST (OTHER),SH STI - PH Sexual Health & Health Checks,SH STI - Hospital SH Services - Out of Area Trusts,Professional Fees and Hired Services
Cambridgeshire County Council,04-Oct-23,51302054034,"36,705.00",TownsWeb Archiving Ltd,COMPANY,Shire Hall Relocation,Shire Hall Relocation,Storage and Archiving
Cambridgeshire County Council,04-Oct-23,51302077036,"42,064.29",Higher Hopes Ltd,CARE ESTABLISHMENT,LAC Placements,Placements - residential homes,Agency Placements - In County
Cambridgeshire County Council,04-Oct-23,51302077113,"42,469.76",TUSKERDIRECT LTD,TRADE SUPPLIER,Payroll & HR Transactions,Lease Car Scheme - salary sacrifice,Other Staff Deductions
Cambridgeshire County Council,04-Oct-23,51302076652,"57,417.25",BARNARDOS SERVICES LTD,CARE ESTABLISHMENT,Safeguarding East & South Cambs and Cambridge,Family Safeguarding,Professional Fees and Hired Services
Cambridgeshire County Council,04-Oct-23,51302077078,"60,216.00",East Cambridgeshire District Council,OTHER PUBLIC BODIES,Better Care Fund,Better Care Fund Financing,Grants
Cambridgeshire County Council,04-Oct-23,51302077080,"72,002.00",SOUTH CAMBRIDGESHIRE DISTRICT COUNCIL,OTHER PUBLIC BODIES,Better Care Fund,Better Care Fund Financing,Grants
Cambridgeshire County Council,04-Oct-23,51302077077,"73,948.00",CAMBRIDGE CITY COUNCIL,OTHER PUBLIC BODIES,Better Care Fund,Better Care Fund Financing,Grants
Cambridgeshire County Council,04-Oct-23,51302077076,"106,001.00",FENLAND DISTRICT COUNCIL,OTHER PUBLIC BODIES,Better Care Fund,Better Care Fund Financing,Grants
Cambridgeshire County Council,04-Oct-23,51302077079,"130,200.00",HUNTINGDONSHIRE DISTRICT COUNCIL,OTHER PUBLIC BODIES,Better Care Fund,Better Care Fund Financing,Grants
Cambridgeshire County Council,04-Oct-23,51302059860,"172,116.76",ATKINS LTD,COMPANY,Northstowe 2nd primary,Northstowe 2nd primary,Construction - External Professional Fees
Cambridgeshire County Council,04-Oct-23,51302076936,"1,658,994.62",KIER CONSTRUCTION,COMPANY,"Northstowe secondary, phase 2","Northstowe secondary, phase 2","New Construction, Conversion and Renovation"
Cambridgeshire County Council,06-Oct-23,51302077578,"-14,096.40",Medgen LTD,COMPANY,LAC Placements,Placements - supported accommodation,Agency Placements - In County
Cambridgeshire County Council,06-Oct-23,51302077569,"-2,500.00",MOVING UP CARE,CARE ESTABLISHMENT,LAC Placements,Placements - supported accommodation,Agency Placements - In County
Cambridgeshire County Council,06-Oct-23,51302077243,501.50,Breakthrough Therapy Solutions Ltd t/a Bursting with Potential,EDUCATION,Early Years Specialist Support,SEND - Independent Therapy,Independent School Placements
Cambridgeshire County Council,06-Oct-23,51302050758,550.00,Achieve Occupational Therapy Ltd,EDUCATION,Early Years Specialist Support,SEND - Independent Therapy,Independent School Placements
Cambridgeshire County Council,06-Oct-23,51302077416,557.43,ASKEWS AND HOLTS LIBRARY SERVICES LTD,TRADE SUPPLIER,Libraries - Stock & Distribution,Support - Stock & Distribution,Books and Multimedia Supplies
Cambridgeshire County Council,06-Oct-23,51302071380,579.36,AG FAMILY SUPPORT LTD,COMPANY,Contact,Contact Relief,Professional Fees and Hired Services
Cambridgeshire County Council,06-Oct-23,51302077399,581.99,ASKEWS AND HOLTS LIBRARY SERVICES LTD,TRADE SUPPLIER,Libraries - Stock & Distribution,Support - Stock & Distribution,Books and Multimedia Supplies
Cambridgeshire County Council,06-Oct-23,51302077539,600.00,Active First Aid Training Ltd,COMPANY,Outdoor Education,"Education, Health, Safety and Wellbeing - Outdoor Education",Professional Fees and Hired Services
Cambridgeshire County Council,06-Oct-23,51302077155,625.00,Redacted Personal Data,INDIVIDUAL,Insurance Fund,Liability,Insurance Claims Paid
Cambridgeshire County Council,06-Oct-23,51302061764,635.85,KIDZONE,NURSERY,Early Years Specialist Support,SEND - Childcare Access Funding,Independent School Placements
Cambridgeshire County Council,06-Oct-23,51302077417,663.93,ASKEWS AND HOLTS LIBRARY SERVICES LTD,TRADE SUPPLIER,Libraries - Stock & Distribution,Support - Stock & Distribution,Books and Multimedia Supplies
Cambridgeshire County Council,06-Oct-23,51302077604,665.00,DWP,OTHER PUBLIC BODIES,Insurance Fund,Liability,Insurance Claims Paid
Cambridgeshire County Council,06-Oct-23,51302077270,674.28,Redacted Personal Data,INDIVIDUAL,Children's Disability Direct Payments,CSC Direct Payments,Direct Payments
Cambridgeshire County Council,06-Oct-23,51302077308,690.93,Redacted Personal Data,INDIVIDUAL,LD - Fenland Locality - Cost of Care,LD - Fenland  - Care,Day Care
Cambridgeshire County Council,06-Oct-23,51302077425,696.80,ASKEWS AND HOLTS LIBRARY SERVICES LTD,TRADE SUPPLIER,Libraries - Stock & Distribution,Support - Stock & Distribution,Books and Multimedia Supplies
Cambridgeshire County Council,06-Oct-23,51302077385,724.76,ASKEWS AND HOLTS LIBRARY SERVICES LTD,TRADE SUPPLIER,Libraries - Stock & Distribution,Support - Stock & Distribution,Books and Multimedia Supplies
Cambridgeshire County Council,06-Oct-23,51302077309,749.22,Redacted Personal Data,INDIVIDUAL,LD - Fenland Locality - Cost of Care,LD - Fenland  - Care,Rehabilitation And Respite Care
Cambridgeshire County Council,06-Oct-23,51302077440,751.98,Pathfinder Legal Services Limited,TRADE SUPPLIER,School Organisation and Planning - Head of Service,Head of Infrastructure,External Legal Fees
Cambridgeshire County Council,06-Oct-23,51302060617,756.00,STENNIK ADVERTISING LIMITED,TRADE SUPPLIER,Road Safety,"Education, Training and Publicity",Staff Training & Development
Cambridgeshire County Council,06-Oct-23,51302071365,757.00,KEN TURNER,SOLETRADER,Highways - Rights of Way,Highways - Rights of Way,Highways - Bridges
Cambridgeshire County Council,06-Oct-23,51302071367,764.00,KEN TURNER,SOLETRADER,Highways - Rights of Way,Highways - Rights of Way,Highways - Bridges
Cambridgeshire County Council,06-Oct-23,51302077150,770.00,Redacted Personal Data,INDIVIDUAL,"General Prevention, Traveller Health",Travellers Project,Professional Fees and Hired Services
Cambridgeshire County Council,06-Oct-23,51302077469,776.23,WISBECH COMMUNITY DEVELOPMENT TRUST (THE OASIS CENTRE),TRUST (OTHER),Corporate Offices,Oasis Centre,Service Charges
Cambridgeshire County Council,06-Oct-23,51302071355,833.70,KSP Education Improvement Services Ltd,COMPANY,SIS Head of Service,SIS - Intervention,Professional Fees and Hired Services
Cambridgeshire County Council,06-Oct-23,51302077145,839.83,AG FAMILY SUPPORT LTD,COMPANY,Contact,Contact Relief,Professional Fees and Hired Services
Cambridgeshire County Council,06-Oct-23,51302071385,867.29,AG FAMILY SUPPORT LTD,COMPANY,Contact,Contact Relief,Professional Fees and Hired Services
Cambridgeshire County Council,06-Oct-23,51302062644,876.00,AVAILL HEALTHCARE,CARE ESTABLISHMENT,IHPS - South Accommodation Services,IHPS Jasmine House,Agency Staff
Cambridgeshire County Council,06-Oct-23,51302076185,888.75,SHARED LIVES PLUS,OTHER PUBLIC BODIES,Shared Lives,Cambridgshire Shared Lives,Professional Fees and Hired Services
Cambridgeshire County Council,06-Oct-23,51302077168,900.00,Redacted Personal Data,INDIVIDUAL,Early Years Specialist Support,"SEND - Legal, Tribunal & Mediation",Independent School Placements
Cambridgeshire County Council,06-Oct-23,51302077534,900.00,CITY AND GUILDS OF LONDON INSTITUTE,CHARITY,Cambridgeshire Skills HoS,Cambridgeshire Skills Direct Delivery,Exam Fees
Cambridgeshire County Council,06-Oct-23,51302074287,942.00,JLR PLAY,NURSERY,Early Years Specialist Support,SEND - Childcare Access Funding,Independent School Placements
Cambridgeshire County Council,06-Oct-23,51302076449,953.77,KIDZONE,NURSERY,Early Years Specialist Support,SEND - Childcare Access Funding,Independent School Placements
Cambridgeshire County Council,06-Oct-23,51302060426,958.00,BALFOUR BEATTY LIVING PLACES LIMITED,COMPANY,Connecting Cambs,Investment in Connecting Cambridgeshire,Construction - External Professional Fees
Cambridgeshire County Council,06-Oct-23,51302077350,960.00,Kaarbon Technology Ltd,COMPANY,Highways Maintenance,Highways Maintenance - Works,Gully Empty
Cambridgeshire County Council,06-Oct-23,51302077326,991.62,MANEA PRE SCHOOL,NURSERY,Early Years,SEND Specialist Services - SENIF,Care & Ed Partner Organisations
Cambridgeshire County Council,06-Oct-23,51302077205,"1,008.00",Apollo Business Finance Ltd Re. Premier Medical Staffing Limited,COMPANY,Unaccompanied Asylum Seeking Children,Separated Migrant Children > 18,Living Spport Grants - Financial Assistance 18+
Cambridgeshire County Council,06-Oct-23,51302062647,"1,016.14",AVAILL HEALTHCARE,CARE ESTABLISHMENT,IHPS - South Accommodation Services,40 & 44 Russell Street,Agency Staff
Cambridgeshire County Council,06-Oct-23,51302060612,"1,032.00",DIZIONS LIMITED,TRADE SUPPLIER,Support to Parents,SENDIASS,Books and Multimedia Supplies
Cambridgeshire County Council,06-Oct-23,51302074283,"1,059.75",JLR PLAY,NURSERY,Early Years Specialist Support,SEND - Childcare Access Funding,Independent School Placements
Cambridgeshire County Council,06-Oct-23,51302077370,"1,072.60",ASKEWS AND HOLTS LIBRARY SERVICES LTD,TRADE SUPPLIER,Libraries - Stock & Distribution,Support - Stock & Distribution,Books and Multimedia Supplies
Cambridgeshire County Council,06-Oct-23,51302069472,"1,106.56",FENLAND AREA COMMUNITY ENTERPRISE TRUST (FACET),TRUST (OTHER),SEND High Needs Top Up,High Needs Top Up - Post 16,Independent School Placements
Cambridgeshire County Council,06-Oct-23,51302077398,"1,106.87",ASKEWS AND HOLTS LIBRARY SERVICES LTD,TRADE SUPPLIER,Libraries - Stock & Distribution,Support - Stock & Distribution,Books and Multimedia Supplies
Cambridgeshire County Council,06-Oct-23,51302074277,"1,118.63",JLR PLAY,NURSERY,Early Years Specialist Support,SEND - Childcare Access Funding,Independent School Placements
Cambridgeshire County Council,06-Oct-23,51302077354,"1,177.20",CDW Ltd,COMPANY,Corporate IT Managed,Mobile phones,Computer hardware - purchase
Cambridgeshire County Council,06-Oct-23,51302077091,"1,200.00",Pathfinder Legal Services Limited,TRADE SUPPLIER,Strategic Management - Adults,Service Director - Adults and Safeguarding,External Legal Fees
Cambridgeshire County Council,06-Oct-23,51302077471,"1,284.60",G & S HUTCHINSON LTD,COMPANY,"School Condition, Maintenance & Suitability","School Condition, Maintenance & Suitability","New Construction, Conversion and Renovation"
Cambridgeshire County Council,06-Oct-23,51302077487,"1,288.24",YMCA Trinity Group,COMPANY,Unaccompanied Asylum Seeking Children,Separated Migrant Children < 18,Asylum Seekers
Cambridgeshire County Council,06-Oct-23,51302077542,"1,295.50",Redacted Personal Data,INDIVIDUAL,Coroners,Coroners General,Professional Fees and Hired Services
Cambridgeshire County Council,06-Oct-23,51302077245,"1,300.00",Redacted Personal Data,INDIVIDUAL,Coroners,Coroners General,Court Costs
Cambridgeshire County Council,06-Oct-23,51302077244,"1,346.00",Redacted Personal Data,INDIVIDUAL,Regional Adoption Agency,Adoption Support Fund,Professional Fees and Hired Services
Cambridgeshire County Council,06-Oct-23,51302076158,"1,413.00",JLR PLAY,NURSERY,Early Years Specialist Support,SEND - Childcare Access Funding,Independent School Placements
Cambridgeshire County Council,06-Oct-23,51302077325,"1,435.49",BUSY BEE DAY NURSERY,NURSERY,Early Years,SEND Specialist Services - SENIF,SEN Funding
Cambridgeshire County Council,06-Oct-23,51302077273,"1,435.49",ALPHABET DAY NURSERY SCHOOLS LTD,NURSERY,Early Years,SEND Specialist Services - SENIF,Care & Ed Partner Organisations
Cambridgeshire County Council,06-Oct-23,51302077488,"1,435.59",YMCA Trinity Group,COMPANY,Unaccompanied Asylum Seeking Children,Separated Migrant Children > 18,Living Spport Grants - Financial Assistance 18+
Cambridgeshire County Council,06-Oct-23,51302077491,"1,435.59",YMCA Trinity Group,COMPANY,Unaccompanied Asylum Seeking Children,Separated Migrant Children > 18,Living Spport Grants - Financial Assistance 18+
Cambridgeshire County Council,06-Oct-23,51302077489,"1,435.59",YMCA Trinity Group,COMPANY,Unaccompanied Asylum Seeking Children,Separated Migrant Children > 18,Living Spport Grants - Financial Assistance 18+
Cambridgeshire County Council,06-Oct-23,51302077490,"1,435.59",YMCA Trinity Group,COMPANY,Unaccompanied Asylum Seeking Children,Separated Migrant Children > 18,Living Spport Grants - Financial Assistance 18+
Cambridgeshire County Council,06-Oct-23,51302077087,"1,500.00",Pathfinder Legal Services Limited,TRADE SUPPLIER,Strategic Management - Adults,Service Director - Adults and Safeguarding,External Legal Fees
Cambridgeshire County Council,06-Oct-23,51302074284,"1,570.00",JLR PLAY,NURSERY,Early Years Specialist Support,SEND - Childcare Access Funding,Independent School Placements
Cambridgeshire County Council,06-Oct-23,51302060347,"1,596.60",Ricardo Rail Ltd,COMPANY,GCP - Cambridge South East (A1307),GCP - Cambridge South East (A1307),Construction - External Professional Fees
Cambridgeshire County Council,06-Oct-23,51302077647,"1,600.00",Redacted Personal Data,PARENT/GUARDIAN,Children's Disability Direct Payments,CSC Direct Payments,Direct Payments
Cambridgeshire County Council,06-Oct-23,51302077144,"1,612.67",ORACLE CORPORATION UK LTD,TRADE SUPPLIER,System Licences,System Software & Licences,Computer software - annual licence agreement
Cambridgeshire County Council,06-Oct-23,51302058959,"1,657.98",Pathfinder Legal Services Limited,TRADE SUPPLIER,School Organisation and Planning - Head of Service,Head of Infrastructure,External Legal Fees
Cambridgeshire County Council,06-Oct-23,51302074276,"1,766.25",JLR PLAY,NURSERY,Early Years Specialist Support,SEND - Childcare Access Funding,Independent School Placements
Cambridgeshire County Council,06-Oct-23,51302077219,"1,851.43",SUNBEAM FOSTERING AGENCY LTD,CARE ESTABLISHMENT,Unaccompanied Asylum Seeking Children,Separated Migrant Children < 18,Agency Placements - Out of  County
Cambridgeshire County Council,06-Oct-23,51302076649,"1,864.38",JLR PLAY,NURSERY,Early Years Specialist Support,SEND - Childcare Access Funding,Independent School Placements
Cambridgeshire County Council,06-Oct-23,51302074280,"1,864.38",JLR PLAY,NURSERY,Early Years Specialist Support,SEND - Childcare Access Funding,Independent School Placements
Cambridgeshire County Council,06-Oct-23,51302074285,"1,864.38",JLR PLAY,NURSERY,Early Years Specialist Support,SEND - Childcare Access Funding,Independent School Placements
Cambridgeshire County Council,06-Oct-23,51302076648,"1,864.38",JLR PLAY,NURSERY,Early Years Specialist Support,SEND - Childcare Access Funding,Independent School Placements
Cambridgeshire County Council,06-Oct-23,51302062578,"2,000.00",EAST OF ENGLAND LOCAL GOVERNMENT ASSOCIATION (EELGA),OTHER PUBLIC BODIES,Subscriptions,Corporate Subscriptions,Subscriptions
Cambridgeshire County Council,06-Oct-23,51302061030,"2,087.66",CAMBRIDGE CITY COUNCIL,OTHER PUBLIC BODIES,GCP - Communications,GCP - Strategic Communicatations,Staffing Recharges - External
Cambridgeshire County Council,06-Oct-23,51302062629,"2,157.00",Reading Agricultural Consultants Ltd,TRADE SUPPLIER,"County Planning, Minerals & Waste","County Planning, Minerals & Waste",Professional Fees and Hired Services
Cambridgeshire County Council,06-Oct-23,51302077514,"2,240.00",Elysium Health Care Ltd,EDUCATION,Recoupment,Other LA Hospitals,Independent School Placements
Cambridgeshire County Council,06-Oct-23,51302077288,"2,283.60",Redacted Personal Data,FOSTER PARENT,LD - Young Adults Team,LD - Young Adults - Care,Residential Care
Cambridgeshire County Council,06-Oct-23,51302062680,"2,404.51",BARTON PARISH COUNCIL,OTHER PUBLIC BODIES,Highways Maintenance,Highways Maintenance - Works,Village Maintenance
Cambridgeshire County Council,06-Oct-23,51302077570,"2,500.00",MOVING UP CARE,CARE ESTABLISHMENT,LAC Placements,Placements - supported accommodation,Agency Placements - In County
Cambridgeshire County Council,06-Oct-23,51302077566,"2,500.00",MOVING UP CARE,CARE ESTABLISHMENT,LAC Placements,Placements - supported accommodation,Agency Placements - In County
Cambridgeshire County Council,06-Oct-23,51302060602,"2,634.00",SUMMERS-INMAN CONSTRUCTION & PROPERTY CONSULTANTS LLP,EDUCATION,"School Condition, Maintenance & Suitability","School Condition, Maintenance & Suitability","New Construction, Conversion and Renovation"
Cambridgeshire County Council,06-Oct-23,51302060960,"2,649.60",Macildowie Associates Limited,COMPANY,ASC Workforce,Adult Social Care Workforce Development,Agency Staff
Cambridgeshire County Council,06-Oct-23,51302077300,"2,778.78",Redacted Personal Data,INDIVIDUAL,LD - Hunts Locality - Cost of Care,LD - Huntingdonshire - Care,Residential Care
Cambridgeshire County Council,06-Oct-23,51302077520,"2,811.00",Freeths LLP,PARTNERSHIP,Capital Receipts Expenses,Capital Receipts Expenses,Professional Fees and Hired Services
Cambridgeshire County Council,06-Oct-23,51302077299,"2,874.60",Redacted Personal Data,INDIVIDUAL,Autism and Adult Support - Cost of Care,Autism and Adult Support - Care,Residential Care
Cambridgeshire County Council,06-Oct-23,51302077301,"2,874.60",Redacted Personal Data,INDIVIDUAL,Autism and Adult Support - Cost of Care,Autism and Adult Support - Care,Residential Care
Cambridgeshire County Council,06-Oct-23,51302077316,"2,874.60",Redacted Personal Data,FOSTER PARENT,LD - Young Adults Team,LD - Young Adults - Care,Residential Care
Cambridgeshire County Council,06-Oct-23,51302077302,"2,874.60",Redacted Personal Data,PARENT/GUARDIAN,Autism and Adult Support - Cost of Care,Autism and Adult Support - Care,Residential Care
Cambridgeshire County Council,06-Oct-23,51302077303,"2,874.60",Redacted Personal Data,PARENT/GUARDIAN,Autism and Adult Support - Cost of Care,Autism and Adult Support - Care,Residential Care
Cambridgeshire County Council,06-Oct-23,51302077317,"2,874.60",Redacted Personal Data,INDIVIDUAL,LD - Young Adults Team,LD - Young Adults - Care,Residential Care
Cambridgeshire County Council,06-Oct-23,51302077307,"2,874.60",Redacted Personal Data,FOSTER PARENT,LD - Fenland Locality - Cost of Care,LD - Fenland  - Care,Residential Care
Cambridgeshire County Council,06-Oct-23,51302077295,"2,874.60",Redacted Personal Data,INDIVIDUAL,Shared Lives,Cambridgshire Shared Lives,Living support grants
Cambridgeshire County Council,06-Oct-23,51302077294,"2,874.60",Redacted Personal Data,INDIVIDUAL,Shared Lives,Cambridgshire Shared Lives,Living support grants
Cambridgeshire County Council,06-Oct-23,51302077541,"2,899.30",ASTALL PATHOLOGY SERVICES,COMPANY,Coroners,Coroners General,Professional Fees and Hired Services
Cambridgeshire County Council,06-Oct-23,51302077543,"3,108.00",Data Bear Ltd,COMPANY,Project Management,PD - Project Management,Professional Fees and Hired Services
Cambridgeshire County Council,06-Oct-23,51302077483,"3,132.00",NEXUS FOSTERING LTD,CARE ESTABLISHMENT,Unaccompanied Asylum Seeking Children,Separated Migrant Children < 18,Agency Placements - Out of  County
Cambridgeshire County Council,06-Oct-23,51302077334,"3,150.00",FAWCETT PRIMARY SCHOOL,EDUCATION,SIS Head of Service,SIS Staff,Professional Fees and Hired Services
Cambridgeshire County Council,06-Oct-23,51302077207,"3,214.29",Sunbeam Pride Fostering Service Ltd,CARE ESTABLISHMENT,Unaccompanied Asylum Seeking Children,Separated Migrant Children < 18,Agency Placements - Out of  County
Cambridgeshire County Council,06-Oct-23,51302077211,"3,214.29",Sunbeam Pride Fostering Service Ltd,CARE ESTABLISHMENT,Unaccompanied Asylum Seeking Children,Separated Migrant Children < 18,Agency Placements - Out of  County
Cambridgeshire County Council,06-Oct-23,51302077215,"3,214.29",Sunbeam Pride Fostering Service Ltd,CARE ESTABLISHMENT,Unaccompanied Asylum Seeking Children,Separated Migrant Children < 18,Agency Placements - Out of  County
Cambridgeshire County Council,06-Oct-23,51302077217,"3,214.29",SUNBEAM FOSTERING AGENCY LTD,CARE ESTABLISHMENT,Unaccompanied Asylum Seeking Children,Separated Migrant Children < 18,Agency Placements - Out of  County
Cambridgeshire County Council,06-Oct-23,51302077213,"3,214.29",Sunbeam Pride Fostering Service Ltd,CARE ESTABLISHMENT,Unaccompanied Asylum Seeking Children,Separated Migrant Children < 18,Agency Placements - Out of  County
Cambridgeshire County Council,06-Oct-23,51302077209,"3,214.29",Sunbeam Pride Fostering Service Ltd,CARE ESTABLISHMENT,Unaccompanied Asylum Seeking Children,Separated Migrant Children < 18,Agency Placements - Out of  County
Cambridgeshire County Council,06-Oct-23,51302060374,"3,227.40",SUMMERS-INMAN CONSTRUCTION & PROPERTY CONSULTANTS LLP,EDUCATION,Hawthorns,Hawthorns,"New Construction, Conversion and Renovation"
Cambridgeshire County Council,06-Oct-23,51302077260,"3,371.76",OVER NEW ROAD PRESCHOOL CIC,NURSERY,SEND High Needs Top Up,High Needs Top Up - Early Years,Independent School Placements
Cambridgeshire County Council,06-Oct-23,51302077199,"3,381.43",Fostering Innovations Ltd,CARE ESTABLISHMENT,Unaccompanied Asylum Seeking Children,Separated Migrant Children < 18,Agency Placements - Out of  County
Cambridgeshire County Council,06-Oct-23,51302077200,"3,381.43",Fostering Innovations Ltd,CARE ESTABLISHMENT,Unaccompanied Asylum Seeking Children,Separated Migrant Children < 18,Agency Placements - Out of  County
Cambridgeshire County Council,06-Oct-23,51302077196,"3,381.43",Fostering Innovations Ltd,CARE ESTABLISHMENT,Unaccompanied Asylum Seeking Children,Separated Migrant Children < 18,Agency Placements - Out of  County
Cambridgeshire County Council,06-Oct-23,51302077197,"3,381.43",Fostering Innovations Ltd,CARE ESTABLISHMENT,Unaccompanied Asylum Seeking Children,Separated Migrant Children < 18,Agency Placements - Out of  County
Cambridgeshire County Council,06-Oct-23,51302077198,"3,381.43",Fostering Innovations Ltd,CARE ESTABLISHMENT,Unaccompanied Asylum Seeking Children,Separated Migrant Children < 18,Agency Placements - Out of  County
Cambridgeshire County Council,06-Oct-23,51302077220,"3,385.71",UK Care Partnership Ltd,CARE ESTABLISHMENT,Unaccompanied Asylum Seeking Children,Separated Migrant Children > 18,Living Spport Grants - Financial Assistance 18+
Cambridgeshire County Council,06-Oct-23,51302077189,"3,407.14",Clover Fostering LTD,COMPANY,Unaccompanied Asylum Seeking Children,Separated Migrant Children < 18,Agency Placements - In County
Cambridgeshire County Council,06-Oct-23,51302077484,"3,480.00",NEXUS FOSTERING LTD,CARE ESTABLISHMENT,Unaccompanied Asylum Seeking Children,Separated Migrant Children < 18,Agency Placements - Out of  County
Cambridgeshire County Council,06-Oct-23,51302077486,"3,480.00",NEXUS FOSTERING LTD,CARE ESTABLISHMENT,Unaccompanied Asylum Seeking Children,Separated Migrant Children < 18,Agency Placements - Out of  County
Cambridgeshire County Council,06-Oct-23,51302077485,"3,480.00",NEXUS FOSTERING LTD,CARE ESTABLISHMENT,Unaccompanied Asylum Seeking Children,Separated Migrant Children < 18,Agency Placements - Out of  County
Cambridgeshire County Council,06-Oct-23,51302077149,"3,497.32",CAMBRIDGESHIRE COMMUNITY SERVICES NHS TRUST,TRUST (OTHER),Head of Fostering & Supervised Contact,Head of Fostering & Supervised Contact,Professional Fees and Hired Services
Cambridgeshire County Council,06-Oct-23,51302077148,"3,497.33",CAMBRIDGESHIRE COMMUNITY SERVICES NHS TRUST,TRUST (OTHER),Head of Fostering & Supervised Contact,Head of Fostering & Supervised Contact,Professional Fees and Hired Services
Cambridgeshire County Council,06-Oct-23,51302077568,"3,500.00",MOVING UP CARE,CARE ESTABLISHMENT,LAC Placements,Placements - supported accommodation,Agency Placements - In County
Cambridgeshire County Council,06-Oct-23,51302077571,"3,500.00",MOVING UP CARE,CARE ESTABLISHMENT,LAC Placements,Placements - supported accommodation,Agency Placements - In County
Cambridgeshire County Council,06-Oct-23,51302077567,"3,500.00",MOVING UP CARE,CARE ESTABLISHMENT,LAC Placements,Placements - supported accommodation,Agency Placements - In County
Cambridgeshire County Council,06-Oct-23,51302077572,"3,500.00",MOVING UP CARE,CARE ESTABLISHMENT,LAC Placements,Placements - supported accommodation,Agency Placements - In County
Cambridgeshire County Council,06-Oct-23,51302077581,"3,524.10",Medgen LTD,COMPANY,LAC Placements,Placements - supported accommodation,Agency Placements - In County
Cambridgeshire County Council,06-Oct-23,51302060607,"3,629.93",SC Electrical Contracting Ltd,COMPANY,County Farms,County Farms,County Farms Maintenance
Cambridgeshire County Council,06-Oct-23,51302062392,"3,751.84",ENTERPRISE FLEX-E-RENT,TRADE SUPPLIER,Corporate Offices,Pool Cars,Leased Vehicle Costs
Cambridgeshire County Council,06-Oct-23,51302077195,"3,880.71",Family First Fostering Ltd,COMPANY,Unaccompanied Asylum Seeking Children,Separated Migrant Children < 18,Agency Placements - In County
Cambridgeshire County Council,06-Oct-23,51302077190,"3,880.71",Family First Fostering Ltd,COMPANY,Unaccompanied Asylum Seeking Children,Separated Migrant Children < 18,Agency Placements - In County
Cambridgeshire County Council,06-Oct-23,51302077482,"3,930.00",BANYA FAMILY PLACEMENT AGENCY,CARE ESTABLISHMENT,Unaccompanied Asylum Seeking Children,Separated Migrant Children < 18,Agency Placements - Out of  County
Cambridgeshire County Council,06-Oct-23,51302077194,"4,071.43",Family First Fostering Ltd,COMPANY,Unaccompanied Asylum Seeking Children,Separated Migrant Children < 18,Agency Placements - In County
Cambridgeshire County Council,06-Oct-23,51302077191,"4,071.43",Family First Fostering Ltd,COMPANY,Unaccompanied Asylum Seeking Children,Separated Migrant Children < 18,Agency Placements - In County
Cambridgeshire County Council,06-Oct-23,51302077179,"4,219.61",Pathfinder Legal Services Limited,TRADE SUPPLIER,Legal Proceedings,Legal Proceedings,External Legal Fees
Cambridgeshire County Council,06-Oct-23,51302071363,"4,250.00",KEN TURNER,SOLETRADER,Highways - Rights of Way,Highways - Rights of Way,Highways - Bridges
Cambridgeshire County Council,06-Oct-23,51302069184,"4,626.00",Prospero Group,EDUCATION,Out of School Tuition,Out of School Provision EHCPs,Independent School Placements
Cambridgeshire County Council,06-Oct-23,51302077437,"5,619.60",LITTLE HANDS NURSERY SCHOOL (MELBOURN),NURSERY,SEND High Needs Top Up,High Needs Top Up - Early Years,Independent School Placements
Cambridgeshire County Council,06-Oct-23,51302077355,"5,639.46",CDW Ltd,COMPANY,Corporate IT Managed,Hardware & Infrastructure,Computer hardware - purchase
Cambridgeshire County Council,06-Oct-23,51302077516,"5,902.48",CHOICES COUNSELLING,VOLUNTEER SERVICES,Mental Health Commissioning,Mental Health Commissioning,Domiciliary Care
Cambridgeshire County Council,06-Oct-23,51302077438,"5,940.72",WILLINGHAM PRIMARY SCHOOL,EDUCATION,SEND High Needs Top Up,High Needs Top Up - Early Years,Independent School Placements
Cambridgeshire County Council,06-Oct-23,51302076227,"6,099.16",Pathfinder Legal Services Limited,TRADE SUPPLIER,Legal Proceedings,Legal Proceedings,External Legal Fees
Cambridgeshire County Council,06-Oct-23,51302077332,"6,384.56",CDW Ltd,COMPANY,Corporate IT Managed,Hardware & Infrastructure,Computer hardware - maintenance
Cambridgeshire County Council,06-Oct-23,51302077142,"8,592.44",ORACLE CORPORATION UK LTD,TRADE SUPPLIER,System Licences,System Software & Licences,Computer software - annual licence agreement
Cambridgeshire County Council,06-Oct-23,51302077470,"9,948.55",UK POWER NETWORKS (OPERATIONS) LTD,COMPANY,Environment Fund: Decarbonisation Fund - Council buildings Low Carbon Heating,St Neots Library low carbon heating,Utilities Set Up
Cambridgeshire County Council,06-Oct-23,51302071415,"9,992.40",IDOX SOFTWARE LTD,TRADE SUPPLIER,B&IPC Centre,B&IP Centre (Ext Fund),Computer software - annual licence agreement
Cambridgeshire County Council,06-Oct-23,51302077580,"10,572.31",Medgen LTD,COMPANY,LAC Placements,Placements - supported accommodation,Agency Placements - In County
Cambridgeshire County Council,06-Oct-23,51302060437,"10,941.60",Cobweb Information Limited,COMPANY,B&IPC Centre,B&IP Centre (Ext Fund),Computer software - annual licence agreement
Cambridgeshire County Council,06-Oct-23,51302071327,"11,629.44",Pathfinder Legal Services Limited,TRADE SUPPLIER,School Organisation and Planning,PPOS - Admissions Service,External Legal Fees
Cambridgeshire County Council,06-Oct-23,51302077683,"13,017.25",P WOODS CONSTRUCTION LTD,COMPANY,Environment Fund: Decarbonisation Fund - Council buildings Low Carbon Heating,Larkfield Resource Centre Renewable Heating,"New Construction, Conversion and Renovation"
Cambridgeshire County Council,06-Oct-23,51302077347,"13,049.22",BEDAZZLE EXPRESSIVE ARTS,EDUCATION,SEND High Needs Top Up,High Needs Top Up - Post 16,Independent School Placements
Cambridgeshire County Council,06-Oct-23,51302077346,"13,049.22",BEDAZZLE EXPRESSIVE ARTS,EDUCATION,SEND High Needs Top Up,High Needs Top Up - Post 16,Independent School Placements
Cambridgeshire County Council,06-Oct-23,51302077557,"14,217.60",Hazelton Advisory Ltd,COMPANY,Waste Disposal incl PFI,Waste PFI,Professional Fees and Hired Services
Cambridgeshire County Council,06-Oct-23,51302060999,"14,250.91",COMPASS MINERALS UK LIMITED,TRADE SUPPLIER,Winter Maintenance,East Winter,Salt for Highways
Cambridgeshire County Council,06-Oct-23,51302077447,"15,000.00",FENLAND ASSOCIATION FOR COMMUNITY TRANSPORT LTD (FACT),LOCAL CLUBS & GROUPS,Care Together,Care Together Roll Out,Supporting People
Cambridgeshire County Council,06-Oct-23,51302077529,"15,750.00",Eddisons Commercial Limited,COMPANY,Kitchen Ventilation,Kitchen Ventilation,Construction - External Professional Fees
Cambridgeshire County Council,06-Oct-23,51302077579,"16,915.68",Medgen LTD,COMPANY,LAC Placements,Placements - supported accommodation,Agency Placements - In County
Cambridgeshire County Council,06-Oct-23,65300040257,"18,214.29",Azalea Care Ltd,CARE ESTABLISHMENT,Control Accounts,Bank Account - Payables,Bank Account - Payables
Cambridgeshire County Council,06-Oct-23,51302077146,"18,427.07",CAMBRIDGESHIRE COMMUNITY SERVICES NHS TRUST,TRUST (OTHER),Head of Fostering & Supervised Contact,Head of Fostering & Supervised Contact,Professional Fees and Hired Services
Cambridgeshire County Council,06-Oct-23,51302077147,"18,427.07",CAMBRIDGESHIRE COMMUNITY SERVICES NHS TRUST,TRUST (OTHER),Head of Fostering & Supervised Contact,Head of Fostering & Supervised Contact,Professional Fees and Hired Services
Cambridgeshire County Council,06-Oct-23,51302071326,"18,475.44",Pathfinder Legal Services Limited,TRADE SUPPLIER,School Organisation and Planning,PPOS - Admissions Service,External Legal Fees
Cambridgeshire County Council,06-Oct-23,51302077561,"18,475.84",Kedleston (Wood Grove Childcare) Limited,CARE ESTABLISHMENT,LAC Placements,Placements - residential homes,Agency Placements - Out of  County
Cambridgeshire County Council,06-Oct-23,51302077563,"18,488.57",ARCHWAYS CARE LTD (BIRMINGHAM),CARE ESTABLISHMENT,LAC Placements,Placements - residential homes,Agency Placements - Out of  County
Cambridgeshire County Council,06-Oct-23,65300040259,"18,821.43",Azalea Care Ltd,CARE ESTABLISHMENT,Control Accounts,Bank Account - Payables,Bank Account - Payables
Cambridgeshire County Council,06-Oct-23,51302077574,"18,856.50",AURORA MELDRETH & ORCHARD MANOR,EDUCATION,LAC Placements,Placements - residential schools,Agency Placements - In County
Cambridgeshire County Council,06-Oct-23,51302077576,"18,856.50",AURORA MELDRETH & ORCHARD MANOR,EDUCATION,LAC Placements,Placements - residential schools,Agency Placements - In County
Cambridgeshire County Council,06-Oct-23,51302077560,"19,062.86",Amberleigh Care Ltd,CARE ESTABLISHMENT,LAC Placements,Placements - residential homes,Agency Placements - Out of  County
Cambridgeshire County Council,06-Oct-23,51302077575,"19,485.05",AURORA MELDRETH & ORCHARD MANOR,EDUCATION,LAC Placements,Placements - residential schools,Agency Placements - In County
Cambridgeshire County Council,06-Oct-23,51302077577,"19,485.05",AURORA MELDRETH & ORCHARD MANOR,EDUCATION,LAC Placements,Placements - residential schools,Agency Placements - In County
Cambridgeshire County Council,06-Oct-23,51302077564,"19,587.86",NEW REFLEXIONS REFLEXION CARE GROUP,CARE ESTABLISHMENT,LAC Placements,Placements - residential homes,Agency Placements - Out of  County
Cambridgeshire County Council,06-Oct-23,51302071122,"20,000.00",EAST CAMBRIDGESHIRE DISTRICT COUNCIL,OTHER PUBLIC BODIES,Authority-wide Miscellaneous,Council Tax: Counter Fraud & Compliance,Joint Partnership Funding
Cambridgeshire County Council,06-Oct-23,51302069530,"20,000.00",HUNTINGDONSHIRE DISTRICT COUNCIL,OTHER PUBLIC BODIES,Authority-wide Miscellaneous,Council Tax: Counter Fraud & Compliance,Joint Partnership Funding
Cambridgeshire County Council,06-Oct-23,51302069532,"20,000.00",FENLAND DISTRICT COUNCIL,OTHER PUBLIC BODIES,Authority-wide Miscellaneous,Council Tax: Counter Fraud & Compliance,Joint Partnership Funding
Cambridgeshire County Council,06-Oct-23,51302069534,"20,000.00",South Cambridgeshire District Council,OTHER PUBLIC BODIES,Authority-wide Miscellaneous,Council Tax: Counter Fraud & Compliance,Joint Partnership Funding
Cambridgeshire County Council,06-Oct-23,51302069531,"20,000.00",CAMBRIDGE CITY COUNCIL,OTHER PUBLIC BODIES,Authority-wide Miscellaneous,Council Tax: Counter Fraud & Compliance,Joint Partnership Funding
Cambridgeshire County Council,06-Oct-23,51302077274,"20,163.36",EAST SUFFOLK MIND,CARE ESTABLISHMENT,Mental Health Commissioning,Mental Health Commissioning,Grants to Voluntary Bodies
Cambridgeshire County Council,06-Oct-23,51302069451,"20,850.60",Freeths LLP,PARTNERSHIP,Large Energy Projects - Solar Farms,North Angle Solar Farm,Construction - External Professional Fees
Cambridgeshire County Council,06-Oct-23,51302077565,"23,571.43",Barracare Ltd,CARE ESTABLISHMENT,LAC Placements,Placements - residential homes,Agency Placements - Out of  County
Cambridgeshire County Council,06-Oct-23,51302076174,"25,363.72",R G CARTER CAMBRIDGE LTD,COMPANY,Benwick Primary,Benwick Primary,Construction - External Professional Fees
Cambridgeshire County Council,06-Oct-23,51302077272,"31,060.12",WCL UK LTD,TRADE SUPPLIER,ICT Service,ICT Service Sales,Materials for resale
Cambridgeshire County Council,06-Oct-23,51302077559,"36,985.71",Esland South Ltd,CARE ESTABLISHMENT,LAC Placements,Placements - residential homes,Agency Placements - Out of  County
Cambridgeshire County Council,06-Oct-23,51302077250,"62,713.93",CITY COLLEGE PETERBOROUGH,EDUCATION,SEND High Needs Top Up,High Needs Top Up - Post 16,Independent School Placements
Cambridgeshire County Council,06-Oct-23,51302077643,"64,923.10",MoreLife (UK) LTD,COMPANY,Post Covid weight management services,Post Covid tier 3 weight management services,Professional Fees and Hired Services
Cambridgeshire County Council,06-Oct-23,51302077465,"208,705.25",PETERBOROUGH CITY COUNCIL,OTHER PUBLIC BODIES,Trading Standards,Trading Standards,Joint Partnership Funding
Cambridgeshire County Council,06-Oct-23,51302077328,"224,100.74",UK POWER NETWORKS (OPERATIONS) LTD,COMPANY,Large Energy Projects - Solar Farms,North Angle Solar Farm,Construction - External Professional Fees
Cambridgeshire County Council,06-Oct-23,51302077329,"316,361.56",UK POWER NETWORKS (OPERATIONS) LTD,COMPANY,Large Energy Projects - Solar Farms,North Angle Solar Farm,Construction - External Professional Fees
Cambridgeshire County Council,09-Oct-23,51302078068,-860.00,Redacted Personal Data,INDIVIDUAL,Fostering,FCP allowances,Living support grants
Cambridgeshire County Council,09-Oct-23,51302078810,-545.15,Redacted Personal Data,FOSTER PARENT,Fostering,FCP allowances,Adoption Allowances
Cambridgeshire County Council,09-Oct-23,51302078808,-545.15,Redacted Personal Data,FOSTER PARENT,Fostering,FCP allowances,Adoption Allowances
Cambridgeshire County Council,09-Oct-23,51302078853,504.00,Redacted Personal Data,INDIVIDUAL,Fostering,FCP allowances,Adoption Allowances
Cambridgeshire County Council,09-Oct-23,51302078617,504.00,Redacted Personal Data,INDIVIDUAL,Fostering,FCP allowances,Childrens Lodgings
Cambridgeshire County Council,09-Oct-23,51302078817,504.00,Redacted Personal Data,FOSTER PARENT,Fostering,FCP allowances,Childrens Lodgings
Cambridgeshire County Council,09-Oct-23,51302078091,504.00,Redacted Personal Data,INDIVIDUAL,Fostering,FCP allowances,Adoption Allowances
Cambridgeshire County Council,09-Oct-23,51302078590,504.00,Redacted Personal Data,INDIVIDUAL,Fostering,FCP allowances,Adoption Allowances
Cambridgeshire County Council,09-Oct-23,51302078370,504.00,Redacted Personal Data,INDIVIDUAL,Fostering,FCP allowances,Childrens Lodgings
Cambridgeshire County Council,09-Oct-23,51302078382,508.40,Redacted Personal Data,FOSTER PARENT,Adoption Allowances,Adoption Allowances,Adoption Allowances
Cambridgeshire County Council,09-Oct-23,51302077467,514.50,PT Kids,EDUCATION,Early Years Specialist Support,SEND - Independent Therapy,Independent School Placements
Cambridgeshire County Council,09-Oct-23,51302077756,514.80,Pathfinder Legal Services Limited,TRADE SUPPLIER,Greenspaces,Greenspaces,External Legal Fees
Cambridgeshire County Council,09-Oct-23,51302078402,519.10,Redacted Personal Data,FOSTER PARENT,Adoption Allowances,Adoption Allowances,Adoption Allowances
Cambridgeshire County Council,09-Oct-23,51302078922,519.76,Redacted Personal Data,FOSTER PARENT,Adoption Allowances,Adoption Allowances,Adoption Allowances
Cambridgeshire County Council,09-Oct-23,51302077933,522.47,MEARS CARE LTD,CARE ESTABLISHMENT,Adults Commissioning-extra Care & DP,Extra Care,Supporting People
Cambridgeshire County Council,09-Oct-23,51302077946,522.47,MEARS CARE LTD,CARE ESTABLISHMENT,Adults Commissioning-extra Care & DP,Extra Care,Supporting People
Cambridgeshire County Council,09-Oct-23,51302069239,525.00,Ciara McClelland,SOLETRADER,Regional Adoption Agency,Adoption Support Fund,Professional Fees and Hired Services
Cambridgeshire County Council,09-Oct-23,51302077657,526.44,Pathfinder Legal Services Limited,TRADE SUPPLIER,Capital Receipts Expenses,Capital Receipts Expenses,External Legal Fees
Cambridgeshire County Council,09-Oct-23,51302078069,537.15,Redacted Personal Data,FOSTER PARENT,Fostering,FCP allowances,Living support grants
Cambridgeshire County Council,09-Oct-23,51302078089,537.15,Redacted Personal Data,INDIVIDUAL,Fostering,FCP allowances,Adoption Allowances
Cambridgeshire County Council,09-Oct-23,51302078080,540.00,Redacted Personal Data,FOSTER PARENT,Fostering,FCP allowances,Adoption Allowances
Cambridgeshire County Council,09-Oct-23,51302061423,540.00,COVERGOLD LTD,TRADE SUPPLIER,Libraries - Support,Support - Business Support,Specialist Equipment For Service Delivery
Cambridgeshire County Council,09-Oct-23,51302061697,540.00,Sugarman Group,EDUCATION,Out of School Tuition,Out of School Provision EHCPs,Independent School Placements
Cambridgeshire County Council,09-Oct-23,51302078077,546.00,Redacted Personal Data,PARENT/GUARDIAN,Fostering,FCP allowances,Adoption Allowances
Cambridgeshire County Council,09-Oct-23,51302078775,546.00,Redacted Personal Data,PARENT/GUARDIAN,Fostering,FCP allowances,Adoption Allowances
Cambridgeshire County Council,09-Oct-23,51302078014,546.00,Redacted Personal Data,INDIVIDUAL,Fostering,FCP allowances,Support and Grants to Foster Carers
Cambridgeshire County Council,09-Oct-23,51302077973,546.00,Redacted Personal Data,INDIVIDUAL,Fostering,FCP allowances,Childrens Lodgings
Cambridgeshire County Council,09-Oct-23,51302078554,546.00,Redacted Personal Data,INDIVIDUAL,Fostering,FCP allowances,Adoption Allowances
Cambridgeshire County Council,09-Oct-23,51302078012,546.00,Redacted Personal Data,INDIVIDUAL,Fostering,FCP allowances,Support and Grants to Foster Carers
Cambridgeshire County Council,09-Oct-23,51302078505,546.00,Redacted Personal Data,FOSTER PARENT,Fostering,FCP allowances,Adoption Allowances
Cambridgeshire County Council,09-Oct-23,51302078655,546.00,Redacted Personal Data,INDIVIDUAL,Fostering,FCP allowances,Adoption Allowances
Cambridgeshire County Council,09-Oct-23,51302078032,546.00,Redacted Personal Data,INDIVIDUAL,Fostering,FCP allowances,Childrens Lodgings
Cambridgeshire County Council,09-Oct-23,51302078028,546.00,Redacted Personal Data,INDIVIDUAL,Fostering,FCP allowances,Childrens Lodgings
Cambridgeshire County Council,09-Oct-23,51302078321,546.00,Redacted Personal Data,FOSTER PARENT,Fostering,FCP allowances,Adoption Allowances
Cambridgeshire County Council,09-Oct-23,51302077969,546.00,Redacted Personal Data,INDIVIDUAL,Fostering,FCP allowances,Support and Grants to Foster Carers
Cambridgeshire County Council,09-Oct-23,51302078033,546.00,Redacted Personal Data,INDIVIDUAL,Fostering,FCP allowances,Childrens Lodgings
Cambridgeshire County Council,09-Oct-23,51302078904,547.44,Redacted Personal Data,FOSTER PARENT,Fostering,FCP allowances,Enhanced Payments
Cambridgeshire County Council,09-Oct-23,51302078496,549.71,Redacted Personal Data,INDIVIDUAL,Fostering,FCP allowances,Adoption Allowances
Cambridgeshire County Council,09-Oct-23,51302061391,560.00,INFLATABLE THEATRE,COMPANY,Libraries - South Cambridgeshire,Libraries - Great Shelford,Professional Fees and Hired Services
Cambridgeshire County Council,09-Oct-23,51302078106,562.86,Redacted Personal Data,INDIVIDUAL,Fostering,FCP allowances,Adoption Allowances
Cambridgeshire County Council,09-Oct-23,51302078096,570.00,Redacted Personal Data,INDIVIDUAL,Fostering,FCP allowances,Adoption Allowances
Cambridgeshire County Council,09-Oct-23,51302078424,570.00,Redacted Personal Data,INDIVIDUAL,Fostering,FCP allowances,Adoption Allowances
Cambridgeshire County Council,09-Oct-23,51302078313,570.00,Redacted Personal Data,FOSTER PARENT,Fostering,FCP allowances,Childrens Lodgings
Cambridgeshire County Council,09-Oct-23,51302078104,570.00,Redacted Personal Data,INDIVIDUAL,Fostering,FCP allowances,Adoption Allowances
Cambridgeshire County Council,09-Oct-23,51302078748,570.00,Redacted Personal Data,FOSTER PARENT,Fostering,FCP allowances,Adoption Allowances
Cambridgeshire County Council,09-Oct-23,51302062795,573.26,CUSTOM GROUP LTD,COMPANY,Corporate Offices,"Hill Rise Childrens Home, Huntingdon","Fixtures, Fittings and Furnishings"
Cambridgeshire County Council,09-Oct-23,51302078401,586.40,Redacted Personal Data,FOSTER PARENT,Adoption Allowances,Adoption Allowances,Adoption Allowances
Cambridgeshire County Council,09-Oct-23,51302078459,592.00,Redacted Personal Data,FOSTER PARENT,Fostering,FCP allowances,Childrens Lodgings
Cambridgeshire County Council,09-Oct-23,51302078073,592.00,Redacted Personal Data,FOSTER PARENT,Fostering,FCP allowances,Adoption Allowances
Cambridgeshire County Council,09-Oct-23,51302078734,592.00,Redacted Personal Data,FOSTER PARENT,Fostering,FCP allowances,Adoption Allowances
Cambridgeshire County Council,09-Oct-23,51302078426,600.00,Redacted Personal Data,INDIVIDUAL,Fostering,FCP allowances,Adoption Allowances
Cambridgeshire County Council,09-Oct-23,51302060981,600.00,INFLATABLE THEATRE,CARE ESTABLISHMENT,Libraries - South Cambridgeshire,Libraries - Papworth Library,Professional Fees and Hired Services
Cambridgeshire County Council,09-Oct-23,51302078403,601.10,Redacted Personal Data,FOSTER PARENT,Adoption Allowances,Adoption Allowances,Adoption Allowances
Cambridgeshire County Council,09-Oct-23,51302073962,602.40,SECURITY GATES AND DOORS,COMPANY,County Farms,County Farms,County Farms Maintenance
Cambridgeshire County Council,09-Oct-23,51302078686,609.44,Redacted Personal Data,PARENT/GUARDIAN,Adoption Allowances,Adoption Allowances,Adoption Allowances
Cambridgeshire County Council,09-Oct-23,51302061705,612.30,KIDS R US @ ST MATTHEWS,LOCAL CLUBS & GROUPS,Early Years Specialist Support,SEND - Childcare Access Funding,Independent School Placements
Cambridgeshire County Council,09-Oct-23,51302061384,616.86,PEOPLESCOUT LIMITED,TRADE SUPPLIER,Permitting,TTRO Orders,Advertising / Publicity (non Recruitment)
Cambridgeshire County Council,09-Oct-23,51302062099,626.40,Quantec Consultants Ltd,COMPANY,County Farms,County Farms,County Farms Maintenance
Cambridgeshire County Council,09-Oct-23,51302062101,626.40,Quantec Consultants Ltd,COMPANY,County Farms,County Farms,County Farms Maintenance
Cambridgeshire County Council,09-Oct-23,51302062100,626.40,Quantec Consultants Ltd,COMPANY,County Farms,County Farms,County Farms Maintenance
Cambridgeshire County Council,09-Oct-23,51302078361,630.00,Redacted Personal Data,FOSTER PARENT,Adoption Allowances,Adoption Allowances,Adoption Allowances
Cambridgeshire County Council,09-Oct-23,51302078842,635.69,Redacted Personal Data,FOSTER PARENT,Adoption Allowances,Adoption Allowances,Adoption Allowances
Cambridgeshire County Council,09-Oct-23,51302058956,643.86,Pathfinder Legal Services Limited,TRADE SUPPLIER,School Organisation and Planning - Head of Service,Head of Infrastructure,External Legal Fees
Cambridgeshire County Council,09-Oct-23,51302077731,644.16,Pathfinder Legal Services Limited,TRADE SUPPLIER,Alconbury Weald secondary and Special,Alconbury Weald secondary and Special,Construction - External Professional Fees
Cambridgeshire County Council,09-Oct-23,51302078108,650.00,Redacted Personal Data,FOSTER PARENT,Fostering,FCP allowances,Adoption Allowances
Cambridgeshire County Council,09-Oct-23,51302078724,656.00,Redacted Personal Data,FOSTER PARENT,Fostering,FCP allowances,Adoption Allowances
Cambridgeshire County Council,09-Oct-23,51302078869,656.00,Redacted Personal Data,INDIVIDUAL,Fostering,FCP allowances,Adoption Allowances
Cambridgeshire County Council,09-Oct-23,51302078075,656.00,Redacted Personal Data,PARENT/GUARDIAN,Fostering,FCP allowances,Adoption Allowances
Cambridgeshire County Council,09-Oct-23,51302078723,656.00,Redacted Personal Data,FOSTER PARENT,Fostering,FCP allowances,Adoption Allowances
Cambridgeshire County Council,09-Oct-23,51302078458,656.00,Redacted Personal Data,FOSTER PARENT,Fostering,FCP allowances,Childrens Lodgings
Cambridgeshire County Council,09-Oct-23,51302078806,656.00,Redacted Personal Data,FOSTER PARENT,Fostering,FCP allowances,Adoption Allowances
Cambridgeshire County Council,09-Oct-23,51302078762,656.00,Redacted Personal Data,FOSTER PARENT,Fostering,FCP allowances,Adoption Allowances
Cambridgeshire County Council,09-Oct-23,51302078456,656.00,Redacted Personal Data,FOSTER PARENT,Fostering,FCP allowances,Childrens Lodgings
Cambridgeshire County Council,09-Oct-23,51302073910,661.50,Subconquest Ltd,EDUCATION,Cambridgeshire Alternative Education Service (SchFin),Alternative Education Service & EIO's,Professional Fees and Hired Services
Cambridgeshire County Council,09-Oct-23,51302077929,666.67,MEARS CARE LTD,CARE ESTABLISHMENT,Adults Commissioning-extra Care & DP,Extra Care,Supporting People
Cambridgeshire County Council,09-Oct-23,51302078555,688.20,Redacted Personal Data,FOSTER PARENT,Adoption Allowances,Adoption Allowances,Adoption Allowances
Cambridgeshire County Council,09-Oct-23,51302077928,691.67,RADIS COMMUNITY CARE,CARE ESTABLISHMENT,Adults Commissioning-extra Care & DP,Extra Care,Supporting People
Cambridgeshire County Council,09-Oct-23,51302078154,696.00,Redacted Personal Data,FOSTER PARENT,Head of Corporate Parenting,Staying Put,Living Spport Grants - Financial Assistance 18+
Cambridgeshire County Council,09-Oct-23,51302077964,702.00,Redacted Personal Data,INDIVIDUAL,Fostering,FCP allowances,Support and Grants to Foster Carers
Cambridgeshire County Council,09-Oct-23,51302078307,722.00,Redacted Personal Data,FOSTER PARENT,Fostering,FCP allowances,Adoption Allowances
Cambridgeshire County Council,09-Oct-23,51302078306,722.00,Redacted Personal Data,FOSTER PARENT,Fostering,FCP allowances,Adoption Allowances
Cambridgeshire County Council,09-Oct-23,51302078867,722.00,Redacted Personal Data,INDIVIDUAL,Fostering,FCP allowances,Adoption Allowances
Cambridgeshire County Council,09-Oct-23,51302078455,722.00,Redacted Personal Data,FOSTER PARENT,Fostering,FCP allowances,Childrens Lodgings
Cambridgeshire County Council,09-Oct-23,51302077960,748.00,Redacted Personal Data,INDIVIDUAL,Fostering,FCP allowances,Support and Grants to Foster Carers
Cambridgeshire County Council,09-Oct-23,51302078792,748.14,Redacted Personal Data,PARENT/GUARDIAN,Adoption Allowances,Adoption Allowances,Adoption Allowances
Cambridgeshire County Council,09-Oct-23,51302061383,749.39,PEOPLESCOUT LIMITED,TRADE SUPPLIER,Permitting,TTRO Orders,Advertising / Publicity (non Recruitment)
Cambridgeshire County Council,09-Oct-23,51302078463,750.00,Redacted Personal Data,INDIVIDUAL,Adoption Allowances,Adoption Allowances,Adoption Allowances
Cambridgeshire County Council,09-Oct-23,51302078464,750.00,Redacted Personal Data,INDIVIDUAL,Adoption Allowances,Adoption Allowances,Adoption Allowances
Cambridgeshire County Council,09-Oct-23,51302078938,752.58,Redacted Personal Data,INDIVIDUAL,Children's Disability Direct Payments,CSC Direct Payments,Direct Payments
Cambridgeshire County Council,09-Oct-23,51302077906,770.00,Redacted Personal Data,PARENT/GUARDIAN,Children's Disability Direct Payments,CSC Direct Payments,Direct Payments
Cambridgeshire County Council,09-Oct-23,51302077507,778.06,Family Fund Business Services,CHARITY,Anti-Poverty,Household Support Fund Grant,Electricity
Cambridgeshire County Council,09-Oct-23,51302077907,780.00,Redacted Personal Data,PARENT/GUARDIAN,Children's Disability Direct Payments,CSC Direct Payments,Direct Payments
Cambridgeshire County Council,09-Oct-23,51302078360,781.00,Redacted Personal Data,FOSTER PARENT,Adoption Allowances,Adoption Allowances,Adoption Allowances
Cambridgeshire County Council,09-Oct-23,51302078587,788.00,Redacted Personal Data,FOSTER PARENT,Fostering,FCP allowances,Adoption Allowances
Cambridgeshire County Council,09-Oct-23,51302078048,788.00,Redacted Personal Data,PARENT/GUARDIAN,Fostering,FCP allowances,Living support grants
Cambridgeshire County Council,09-Oct-23,51302078542,788.00,Redacted Personal Data,FOSTER PARENT,Fostering,FCP allowances,Adoption Allowances
Cambridgeshire County Council,09-Oct-23,51302078049,788.00,Redacted Personal Data,FOSTER PARENT,Fostering,FCP allowances,Living support grants
Cambridgeshire County Council,09-Oct-23,51302078814,788.00,Redacted Personal Data,FOSTER PARENT,Fostering,FCP allowances,Adoption Allowances
Cambridgeshire County Council,09-Oct-23,51302078568,788.00,Redacted Personal Data,FOSTER PARENT,Fostering,FCP allowances,Adoption Allowances
Cambridgeshire County Council,09-Oct-23,51302078722,788.00,Redacted Personal Data,FOSTER PARENT,Fostering,FCP allowances,Adoption Allowances
Cambridgeshire County Council,09-Oct-23,51302078081,788.00,Redacted Personal Data,FOSTER PARENT,Fostering,FCP allowances,Adoption Allowances
Cambridgeshire County Council,09-Oct-23,51302078099,788.00,Redacted Personal Data,FOSTER PARENT,Fostering,FCP allowances,Adoption Allowances
Cambridgeshire County Council,09-Oct-23,51302078088,788.00,Redacted Personal Data,FOSTER PARENT,Fostering,FCP allowances,Adoption Allowances
Cambridgeshire County Council,09-Oct-23,51302078331,788.00,Redacted Personal Data,INDIVIDUAL,Fostering,FCP allowances,Adoption Allowances
Cambridgeshire County Council,09-Oct-23,51302078103,788.00,Redacted Personal Data,INDIVIDUAL,Fostering,FCP allowances,Adoption Allowances
Cambridgeshire County Council,09-Oct-23,51302078712,788.00,Redacted Personal Data,FOSTER PARENT,Fostering,FCP allowances,Adoption Allowances
Cambridgeshire County Council,09-Oct-23,51302078741,788.00,Redacted Personal Data,FOSTER PARENT,Fostering,FCP allowances,Adoption Allowances
Cambridgeshire County Council,09-Oct-23,51302078812,788.00,Redacted Personal Data,FOSTER PARENT,Fostering,FCP allowances,Adoption Allowances
Cambridgeshire County Council,09-Oct-23,51302078567,788.00,Redacted Personal Data,FOSTER PARENT,Fostering,FCP allowances,Adoption Allowances
Cambridgeshire County Council,09-Oct-23,51302078061,788.00,Redacted Personal Data,FOSTER PARENT,Fostering,FCP allowances,Living support grants
Cambridgeshire County Council,09-Oct-23,51302078102,788.00,Redacted Personal Data,INDIVIDUAL,Fostering,FCP allowances,Adoption Allowances
Cambridgeshire County Council,09-Oct-23,51302078082,788.00,Redacted Personal Data,FOSTER PARENT,Fostering,FCP allowances,Adoption Allowances
Cambridgeshire County Council,09-Oct-23,51302078930,788.00,Redacted Personal Data,FOSTER PARENT,Fostering,FCP allowances,Adoption Allowances
Cambridgeshire County Council,09-Oct-23,51302078861,788.00,Redacted Personal Data,INDIVIDUAL,Fostering,FCP allowances,Adoption Allowances
Cambridgeshire County Council,09-Oct-23,51302078755,788.00,Redacted Personal Data,FOSTER PARENT,Fostering,FCP allowances,Adoption Allowances
Cambridgeshire County Council,09-Oct-23,51302078746,788.00,Redacted Personal Data,FOSTER PARENT,Fostering,FCP allowances,Adoption Allowances
Cambridgeshire County Council,09-Oct-23,51302078057,788.00,Redacted Personal Data,FOSTER PARENT,Fostering,FCP allowances,Living support grants
Cambridgeshire County Council,09-Oct-23,51302078062,788.00,Redacted Personal Data,FOSTER PARENT,Fostering,FCP allowances,Living support grants
Cambridgeshire County Council,09-Oct-23,51302078107,788.00,Redacted Personal Data,FOSTER PARENT,Fostering,FCP allowances,Adoption Allowances
Cambridgeshire County Council,09-Oct-23,51302078773,788.00,Redacted Personal Data,INDIVIDUAL,Fostering,FCP allowances,Adoption Allowances
Cambridgeshire County Council,09-Oct-23,51302078747,788.00,Redacted Personal Data,FOSTER PARENT,Fostering,FCP allowances,Adoption Allowances
Cambridgeshire County Council,09-Oct-23,51302078380,800.00,Redacted Personal Data,PARENT/GUARDIAN,Adoption Allowances,Adoption Allowances,Adoption Allowances
Cambridgeshire County Council,09-Oct-23,51302078379,800.00,Redacted Personal Data,PARENT/GUARDIAN,Adoption Allowances,Adoption Allowances,Adoption Allowances
Cambridgeshire County Council,09-Oct-23,51302077868,800.00,Redacted Personal Data,PARENT/GUARDIAN,Children's Disability Direct Payments,CSC Direct Payments,Direct Payments
Cambridgeshire County Council,09-Oct-23,51302077982,836.08,Redacted Personal Data,FOSTER PARENT,Adoption Allowances,Adoption Allowances,Adoption Allowances
Cambridgeshire County Council,09-Oct-23,51302077980,836.08,Redacted Personal Data,FOSTER PARENT,Adoption Allowances,Adoption Allowances,Adoption Allowances
Cambridgeshire County Council,09-Oct-23,51302077981,836.08,Redacted Personal Data,FOSTER PARENT,Adoption Allowances,Adoption Allowances,Adoption Allowances
Cambridgeshire County Council,09-Oct-23,51302078709,848.14,Redacted Personal Data,FOSTER PARENT,Fostering,Fostering Support and Supervision,Support and Grants to Foster Carers
Cambridgeshire County Council,09-Oct-23,51302061257,864.00,IT Works (Scotland) Ltd,COMPANY,Domestic Violence & Sexual Violence,DLUHC Grant,Computer software - annual licence agreement
Cambridgeshire County Council,09-Oct-23,51302078377,872.86,Redacted Personal Data,INDIVIDUAL,Fostering,FCP allowances,Adoption Allowances
Cambridgeshire County Council,09-Oct-23,51302078774,898.00,Redacted Personal Data,INDIVIDUAL,Fostering,FCP allowances,Adoption Allowances
Cambridgeshire County Council,09-Oct-23,51302078698,898.00,Redacted Personal Data,FOSTER PARENT,Fostering,FCP allowances,Adoption Allowances
Cambridgeshire County Council,09-Oct-23,51302078544,898.00,Redacted Personal Data,FOSTER PARENT,Fostering,FCP allowances,Adoption Allowances
Cambridgeshire County Council,09-Oct-23,51302078065,898.00,Redacted Personal Data,PARENT/GUARDIAN,Fostering,FCP allowances,Living support grants
Cambridgeshire County Council,09-Oct-23,51302078756,898.00,Redacted Personal Data,FOSTER PARENT,Fostering,FCP allowances,Adoption Allowances
Cambridgeshire County Council,09-Oct-23,51302078726,898.00,Redacted Personal Data,FOSTER PARENT,Fostering,FCP allowances,Adoption Allowances
Cambridgeshire County Council,09-Oct-23,51302078327,898.00,Redacted Personal Data,INDIVIDUAL,Fostering,FCP allowances,Adoption Allowances
Cambridgeshire County Council,09-Oct-23,51302078703,898.00,Redacted Personal Data,FOSTER PARENT,Fostering,FCP allowances,Adoption Allowances
Cambridgeshire County Council,09-Oct-23,51302078704,898.00,Redacted Personal Data,FOSTER PARENT,Fostering,FCP allowances,Adoption Allowances
Cambridgeshire County Council,09-Oct-23,51302078352,898.00,Redacted Personal Data,INDIVIDUAL,Fostering,FCP allowances,Adoption Allowances
Cambridgeshire County Council,09-Oct-23,51302078083,898.00,Redacted Personal Data,FOSTER PARENT,Fostering,FCP allowances,Adoption Allowances
Cambridgeshire County Council,09-Oct-23,51302078036,898.00,Redacted Personal Data,INDIVIDUAL,Fostering,FCP allowances,Childrens Lodgings
Cambridgeshire County Council,09-Oct-23,51302078699,898.00,Redacted Personal Data,FOSTER PARENT,Fostering,FCP allowances,Adoption Allowances
Cambridgeshire County Council,09-Oct-23,51302078351,898.00,Redacted Personal Data,INDIVIDUAL,Fostering,FCP allowances,Adoption Allowances
Cambridgeshire County Council,09-Oct-23,51302078139,898.00,Redacted Personal Data,FOSTER PARENT,Fostering,FCP allowances,Adoption Allowances
Cambridgeshire County Council,09-Oct-23,51302078101,898.00,Redacted Personal Data,INDIVIDUAL,Fostering,FCP allowances,Adoption Allowances
Cambridgeshire County Council,09-Oct-23,51302078713,898.00,Redacted Personal Data,FOSTER PARENT,Fostering,FCP allowances,Adoption Allowances
Cambridgeshire County Council,09-Oct-23,51302078818,898.00,Redacted Personal Data,FOSTER PARENT,Fostering,FCP allowances,Adoption Allowances
Cambridgeshire County Council,09-Oct-23,51302078325,898.00,Redacted Personal Data,FOSTER PARENT,Fostering,FCP allowances,Adoption Allowances
Cambridgeshire County Council,09-Oct-23,51302078378,898.00,Redacted Personal Data,INDIVIDUAL,Fostering,FCP allowances,Adoption Allowances
Cambridgeshire County Council,09-Oct-23,51302078793,898.00,Redacted Personal Data,PARENT/GUARDIAN,Fostering,FCP allowances,Adoption Allowances
Cambridgeshire County Council,09-Oct-23,51302078860,898.00,Redacted Personal Data,INDIVIDUAL,Fostering,FCP allowances,Adoption Allowances
Cambridgeshire County Council,09-Oct-23,51302078067,898.00,Redacted Personal Data,FOSTER PARENT,Fostering,FCP allowances,Living support grants
Cambridgeshire County Council,09-Oct-23,51302078711,898.00,Redacted Personal Data,FOSTER PARENT,Fostering,FCP allowances,Adoption Allowances
Cambridgeshire County Council,09-Oct-23,51302078708,898.00,Redacted Personal Data,FOSTER PARENT,Fostering,FCP allowances,Adoption Allowances
Cambridgeshire County Council,09-Oct-23,51302078824,898.00,Redacted Personal Data,FOSTER PARENT,Fostering,FCP allowances,Adoption Allowances
Cambridgeshire County Council,09-Oct-23,51302078329,898.00,Redacted Personal Data,INDIVIDUAL,Fostering,FCP allowances,Adoption Allowances
Cambridgeshire County Council,09-Oct-23,51302078066,898.00,Redacted Personal Data,PARENT/GUARDIAN,Fostering,FCP allowances,Living support grants
Cambridgeshire County Council,09-Oct-23,51302078766,898.00,Redacted Personal Data,PARENT/GUARDIAN,Fostering,FCP allowances,Adoption Allowances
Cambridgeshire County Council,09-Oct-23,51302061699,900.00,Sugarman Group,EDUCATION,Out of School Tuition,Out of School Provision EHCPs,Independent School Placements
Cambridgeshire County Council,09-Oct-23,51302078398,914.96,Redacted Personal Data,FOSTER PARENT,Adoption Allowances,Adoption Allowances,Adoption Allowances
Cambridgeshire County Council,09-Oct-23,51302077931,916.67,RADIS COMMUNITY CARE,CARE ESTABLISHMENT,Adults Commissioning-extra Care & DP,Extra Care,Supporting People
Cambridgeshire County Council,09-Oct-23,51302078966,936.00,NATIONAL TEACHING & ADVISORY SERVICE FOR LOOKED AFTER CHILDREN (NT & AS),OTHER PUBLIC BODIES,Out of School Tuition,Out of School Provision EHCPs,Independent School Placements
Cambridgeshire County Council,09-Oct-23,51302078312,940.00,Redacted Personal Data,PARENT/GUARDIAN,Fostering,FCP allowances,Adoption Allowances
Cambridgeshire County Council,09-Oct-23,51302078743,940.00,Redacted Personal Data,FOSTER PARENT,Fostering,FCP allowances,Adoption Allowances
Cambridgeshire County Council,09-Oct-23,51302078779,940.00,Redacted Personal Data,FOSTER PARENT,Fostering,FCP allowances,Adoption Allowances
Cambridgeshire County Council,09-Oct-23,51302078090,940.00,Redacted Personal Data,INDIVIDUAL,Fostering,FCP allowances,Adoption Allowances
Cambridgeshire County Council,09-Oct-23,51302078737,940.00,Redacted Personal Data,FOSTER PARENT,Fostering,FCP allowances,Adoption Allowances
Cambridgeshire County Council,09-Oct-23,51302078807,940.00,Redacted Personal Data,FOSTER PARENT,Fostering,FCP allowances,Adoption Allowances
Cambridgeshire County Council,09-Oct-23,51302078317,940.00,Redacted Personal Data,FOSTER PARENT,Fostering,FCP allowances,Adoption Allowances
Cambridgeshire County Council,09-Oct-23,51302078323,940.00,Redacted Personal Data,FOSTER PARENT,Fostering,FCP allowances,Adoption Allowances
Cambridgeshire County Council,09-Oct-23,51302078316,940.00,Redacted Personal Data,FOSTER PARENT,Fostering,FCP allowances,Adoption Allowances
Cambridgeshire County Council,09-Oct-23,51302078738,940.00,Redacted Personal Data,FOSTER PARENT,Fostering,FCP allowances,Adoption Allowances
Cambridgeshire County Council,09-Oct-23,51302078823,940.00,Redacted Personal Data,FOSTER PARENT,Fostering,FCP allowances,Adoption Allowances
Cambridgeshire County Council,09-Oct-23,51302078729,940.00,Redacted Personal Data,FOSTER PARENT,Fostering,FCP allowances,Adoption Allowances
Cambridgeshire County Council,09-Oct-23,51302078758,940.00,Redacted Personal Data,FOSTER PARENT,Fostering,FCP allowances,Adoption Allowances
Cambridgeshire County Council,09-Oct-23,51302078070,940.00,Redacted Personal Data,FOSTER PARENT,Fostering,FCP allowances,Living support grants
Cambridgeshire County Council,09-Oct-23,51302078053,940.00,Redacted Personal Data,FOSTER PARENT,Fostering,FCP allowances,Living support grants
Cambridgeshire County Council,09-Oct-23,51302078324,940.00,Redacted Personal Data,FOSTER PARENT,Fostering,FCP allowances,Adoption Allowances
Cambridgeshire County Council,09-Oct-23,51302078303,940.00,Redacted Personal Data,FOSTER PARENT,Fostering,FCP allowances,Adoption Allowances
Cambridgeshire County Council,09-Oct-23,51302078815,940.00,Redacted Personal Data,FOSTER PARENT,Fostering,FCP allowances,Adoption Allowances
Cambridgeshire County Council,09-Oct-23,51302078816,940.00,Redacted Personal Data,PARENT/GUARDIAN,Fostering,FCP allowances,Adoption Allowances
Cambridgeshire County Council,09-Oct-23,51302078750,940.00,Redacted Personal Data,FOSTER PARENT,Fostering,FCP allowances,Adoption Allowances
Cambridgeshire County Council,09-Oct-23,51302078759,940.00,Redacted Personal Data,FOSTER PARENT,Fostering,FCP allowances,Adoption Allowances
Cambridgeshire County Council,09-Oct-23,51302078739,940.00,Redacted Personal Data,FOSTER PARENT,Fostering,FCP allowances,Adoption Allowances
Cambridgeshire County Council,09-Oct-23,51302078543,940.00,Redacted Personal Data,FOSTER PARENT,Fostering,FCP allowances,Adoption Allowances
Cambridgeshire County Council,09-Oct-23,51302078780,940.00,Redacted Personal Data,FOSTER PARENT,Fostering,FCP allowances,Adoption Allowances
Cambridgeshire County Council,09-Oct-23,51302078056,940.00,Redacted Personal Data,FOSTER PARENT,Fostering,FCP allowances,Living support grants
Cambridgeshire County Council,09-Oct-23,51302078784,940.00,Redacted Personal Data,FOSTER PARENT,Fostering,FCP allowances,Adoption Allowances
Cambridgeshire County Council,09-Oct-23,51302078052,940.00,Redacted Personal Data,FOSTER PARENT,Fostering,FCP allowances,Living support grants
Cambridgeshire County Council,09-Oct-23,51302078736,940.00,Redacted Personal Data,FOSTER PARENT,Fostering,FCP allowances,Adoption Allowances
Cambridgeshire County Council,09-Oct-23,51302078782,940.00,Redacted Personal Data,FOSTER PARENT,Fostering,FCP allowances,Adoption Allowances
Cambridgeshire County Council,09-Oct-23,51302078721,940.00,Redacted Personal Data,FOSTER PARENT,Fostering,FCP allowances,Adoption Allowances
Cambridgeshire County Council,09-Oct-23,51302078697,940.00,Redacted Personal Data,FOSTER PARENT,Fostering,FCP allowances,Adoption Allowances
Cambridgeshire County Council,09-Oct-23,51302078717,940.00,Redacted Personal Data,FOSTER PARENT,Fostering,FCP allowances,Adoption Allowances
Cambridgeshire County Council,09-Oct-23,51302078740,940.00,Redacted Personal Data,FOSTER PARENT,Fostering,FCP allowances,Adoption Allowances
Cambridgeshire County Council,09-Oct-23,51302078145,940.00,Redacted Personal Data,FOSTER PARENT,Fostering,FCP allowances,Adoption Allowances
Cambridgeshire County Council,09-Oct-23,51302078310,940.00,Redacted Personal Data,PARENT/GUARDIAN,Fostering,FCP allowances,Adoption Allowances
Cambridgeshire County Council,09-Oct-23,51302078745,940.00,Redacted Personal Data,FOSTER PARENT,Fostering,FCP allowances,Adoption Allowances
Cambridgeshire County Council,09-Oct-23,51302078055,940.00,Redacted Personal Data,FOSTER PARENT,Fostering,FCP allowances,Living support grants
Cambridgeshire County Council,09-Oct-23,51302078769,940.00,Redacted Personal Data,PARENT/GUARDIAN,Fostering,FCP allowances,Adoption Allowances
Cambridgeshire County Council,09-Oct-23,51302078910,940.00,Redacted Personal Data,PARENT/GUARDIAN,Fostering,FCP allowances,Adoption Allowances
Cambridgeshire County Council,09-Oct-23,51302078765,940.00,Redacted Personal Data,FOSTER PARENT,Fostering,FCP allowances,Adoption Allowances
Cambridgeshire County Council,09-Oct-23,51302078770,940.00,Redacted Personal Data,FOSTER PARENT,Fostering,FCP allowances,Childrens Lodgings
Cambridgeshire County Council,09-Oct-23,51302078725,940.00,Redacted Personal Data,FOSTER PARENT,Fostering,FCP allowances,Adoption Allowances
Cambridgeshire County Council,09-Oct-23,51302078761,940.00,Redacted Personal Data,FOSTER PARENT,Fostering,FCP allowances,Adoption Allowances
Cambridgeshire County Council,09-Oct-23,51302078805,940.00,Redacted Personal Data,FOSTER PARENT,Fostering,FCP allowances,Adoption Allowances
Cambridgeshire County Council,09-Oct-23,51302078716,940.00,Redacted Personal Data,FOSTER PARENT,Fostering,FCP allowances,Adoption Allowances
Cambridgeshire County Council,09-Oct-23,51302078911,940.00,Redacted Personal Data,PARENT/GUARDIAN,Fostering,FCP allowances,Adoption Allowances
Cambridgeshire County Council,09-Oct-23,51302078302,940.00,Redacted Personal Data,FOSTER PARENT,Fostering,FCP allowances,Adoption Allowances
Cambridgeshire County Council,09-Oct-23,51302078146,940.00,Redacted Personal Data,FOSTER PARENT,Fostering,FCP allowances,Adoption Allowances
Cambridgeshire County Council,09-Oct-23,51302078826,940.00,Redacted Personal Data,FOSTER PARENT,Fostering,FCP allowances,Adoption Allowances
Cambridgeshire County Council,09-Oct-23,51302078427,940.00,Redacted Personal Data,INDIVIDUAL,Fostering,FCP allowances,Adoption Allowances
Cambridgeshire County Council,09-Oct-23,51302078701,940.00,Redacted Personal Data,FOSTER PARENT,Fostering,FCP allowances,Adoption Allowances
Cambridgeshire County Council,09-Oct-23,51302078764,940.00,Redacted Personal Data,FOSTER PARENT,Fostering,FCP allowances,Adoption Allowances
Cambridgeshire County Council,09-Oct-23,51302078695,940.00,Redacted Personal Data,PARENT/GUARDIAN,Fostering,FCP allowances,Adoption Allowances
Cambridgeshire County Council,09-Oct-23,51302078541,940.00,Redacted Personal Data,FOSTER PARENT,Fostering,FCP allowances,Adoption Allowances
Cambridgeshire County Council,09-Oct-23,51302078702,940.00,Redacted Personal Data,FOSTER PARENT,Fostering,FCP allowances,Adoption Allowances
Cambridgeshire County Council,09-Oct-23,51302078791,940.00,Redacted Personal Data,PARENT/GUARDIAN,Fostering,FCP allowances,Adoption Allowances
Cambridgeshire County Council,09-Oct-23,51302078751,940.00,Redacted Personal Data,FOSTER PARENT,Fostering,FCP allowances,Adoption Allowances
Cambridgeshire County Council,09-Oct-23,51302078811,940.00,Redacted Personal Data,FOSTER PARENT,Fostering,FCP allowances,Adoption Allowances
Cambridgeshire County Council,09-Oct-23,51302078051,940.00,Redacted Personal Data,FOSTER PARENT,Fostering,FCP allowances,Living support grants
Cambridgeshire County Council,09-Oct-23,51302078151,940.00,Redacted Personal Data,FOSTER PARENT,Fostering,FCP allowances,Adoption Allowances
Cambridgeshire County Council,09-Oct-23,51302078566,940.00,Redacted Personal Data,FOSTER PARENT,Fostering,FCP allowances,Adoption Allowances
Cambridgeshire County Council,09-Oct-23,51302078744,940.00,Redacted Personal Data,FOSTER PARENT,Fostering,FCP allowances,Adoption Allowances
Cambridgeshire County Council,09-Oct-23,51302078809,940.00,Redacted Personal Data,FOSTER PARENT,Fostering,FCP allowances,Adoption Allowances
Cambridgeshire County Council,09-Oct-23,51302078164,940.00,Redacted Personal Data,FOSTER PARENT,Fostering,FCP allowances,Adoption Allowances
Cambridgeshire County Council,09-Oct-23,51302078768,940.00,Redacted Personal Data,FOSTER PARENT,Fostering,FCP allowances,Adoption Allowances
Cambridgeshire County Council,09-Oct-23,51302078913,940.00,Redacted Personal Data,PARENT/GUARDIAN,Fostering,FCP allowances,Adoption Allowances
Cambridgeshire County Council,09-Oct-23,51302078682,940.00,Redacted Personal Data,PARENT/GUARDIAN,Fostering,FCP allowances,Childrens Lodgings
Cambridgeshire County Council,09-Oct-23,51302078143,940.00,Redacted Personal Data,FOSTER PARENT,Fostering,FCP allowances,Adoption Allowances
Cambridgeshire County Council,09-Oct-23,51302078706,940.00,Redacted Personal Data,FOSTER PARENT,Fostering,FCP allowances,Adoption Allowances
Cambridgeshire County Council,09-Oct-23,51302078707,940.00,Redacted Personal Data,FOSTER PARENT,Unaccompanied Asylum Seeking Children,Separated Migrant Children < 18,Adoption Allowances
Cambridgeshire County Council,09-Oct-23,51302078138,940.00,Redacted Personal Data,FOSTER PARENT,Unaccompanied Asylum Seeking Children,Separated Migrant Children < 18,Adoption Allowances
Cambridgeshire County Council,09-Oct-23,51302062796,942.61,CUSTOM GROUP LTD,COMPANY,Corporate Offices,"Hill Rise Childrens Home, Huntingdon","Fixtures, Fittings and Furnishings"
Cambridgeshire County Council,09-Oct-23,51302078428,965.04,Redacted Personal Data,FOSTER PARENT,Fostering,FCP allowances,Enhanced Payments
Cambridgeshire County Council,09-Oct-23,51302078679,965.04,Redacted Personal Data,FOSTER PARENT,Fostering,FCP allowances,Enhanced Payments
Cambridgeshire County Council,09-Oct-23,51302078794,965.04,Redacted Personal Data,FOSTER PARENT,Fostering,FCP allowances,Enhanced Payments
Cambridgeshire County Council,09-Oct-23,51302078060,988.00,Redacted Personal Data,FOSTER PARENT,Fostering,FCP allowances,Living support grants
Cambridgeshire County Council,09-Oct-23,51302078059,988.00,Redacted Personal Data,FOSTER PARENT,Fostering,FCP allowances,Living support grants
Cambridgeshire County Council,09-Oct-23,51302061461,"1,000.00",Jellyfish Theatre,COMPANY,Cultural Services,The Library Presents,Professional Fees and Hired Services
Cambridgeshire County Council,09-Oct-23,51302061763,"1,000.00",STRONGER PSYCHOLOGICAL SERVICES LTD,COMPANY,SEND Specialist Services - Education Psychology,SEND Specialist Services - Education Psychology,Professional Fees and Hired Services
Cambridgeshire County Council,09-Oct-23,51302061002,"1,000.00",V Psychology Ltd,COMPANY,SEND Specialist Services - Education Psychology,SEND Specialist Services - Education Psychology,Professional Fees and Hired Services
Cambridgeshire County Council,09-Oct-23,51302078098,"1,007.15",Redacted Personal Data,FOSTER PARENT,Fostering,FCP allowances,Grants and Support for other Service Users
Cambridgeshire County Council,09-Oct-23,51302078097,"1,007.15",Redacted Personal Data,FOSTER PARENT,Fostering,FCP allowances,Grants and Support for other Service Users
Cambridgeshire County Council,09-Oct-23,51302078084,"1,010.11",Redacted Personal Data,INDIVIDUAL,Fostering,FCP allowances,Adoption Allowances
Cambridgeshire County Council,09-Oct-23,51302077665,"1,013.76",Pathfinder Legal Services Limited,TRADE SUPPLIER,"The Shade Primary, Soham","The Shade Primary, Soham",Construction - External Professional Fees
Cambridgeshire County Council,09-Oct-23,51302078477,"1,026.00",Redacted Personal Data,INDIVIDUAL,Adoption Allowances,Adoption Allowances,Childcare Costs
Cambridgeshire County Council,09-Oct-23,51302077883,"1,043.28",Redacted Personal Data,FOSTER PARENT,Head of Corporate Parenting,Staying Put,Living Spport Grants - Financial Assistance 18+
Cambridgeshire County Council,09-Oct-23,51302077952,"1,122.00",Redacted Personal Data,INDIVIDUAL,Fostering,FCP allowances,Support and Grants to Foster Carers
Cambridgeshire County Council,09-Oct-23,51302078859,"1,132.18",Redacted Personal Data,FOSTER PARENT,Adoption Allowances,Adoption Allowances,Adoption Allowances
Cambridgeshire County Council,09-Oct-23,51302078396,"1,138.20",Redacted Personal Data,INDIVIDUAL,Adoption Allowances,Adoption Allowances,Childcare Costs
Cambridgeshire County Council,09-Oct-23,51302078516,"1,148.00",Redacted Personal Data,INDIVIDUAL,Adoption Allowances,Adoption Allowances,Adoption Allowances
Cambridgeshire County Council,09-Oct-23,51302069176,"1,152.00",DRAINCO SERVICES LTD,COMPANY,Park & Ride Parking,Park and Ride Admin,Cleaning and Domestic Supplies
Cambridgeshire County Council,09-Oct-23,51302078478,"1,170.00",Redacted Personal Data,INDIVIDUAL,Adoption Allowances,Adoption Allowances,Adoption Allowances
Cambridgeshire County Council,09-Oct-23,51302077983,"1,186.60",Redacted Personal Data,PARENT/GUARDIAN,Adoption Allowances,Adoption Allowances,Adoption Allowances
Cambridgeshire County Council,09-Oct-23,51302078996,"1,195.00",Redacted Personal Data,PARENT/GUARDIAN,Children's Disability Direct Payments,CSC Direct Payments,Direct Payments
Cambridgeshire County Council,09-Oct-23,51302077908,"1,200.00",Redacted Personal Data,PARENT/GUARDIAN,Children's Disability Direct Payments,CSC Direct Payments,Direct Payments
Cambridgeshire County Council,09-Oct-23,51302059982,"1,224.96",Pathfinder Legal Services Limited,TRADE SUPPLIER,Waste Disposal incl PFI,Waste PFI,Professional Fees and Hired Services
Cambridgeshire County Council,09-Oct-23,51302078074,"1,300.00",Redacted Personal Data,FOSTER PARENT,Fostering,FCP allowances,Adoption Allowances
Cambridgeshire County Council,09-Oct-23,51302077945,"1,350.50",RADIS COMMUNITY CARE,CARE ESTABLISHMENT,Adults Commissioning-extra Care & DP,Extra Care,Supporting People
Cambridgeshire County Council,09-Oct-23,51302061975,"1,395.00",TIHTC Limited,COMPANY,L&D Team,L&D Team,Staff Training & Development
Cambridgeshire County Council,09-Oct-23,51302077940,"1,458.34",RADIS COMMUNITY CARE,CARE ESTABLISHMENT,Adults Commissioning-extra Care & DP,Extra Care,Supporting People
Cambridgeshire County Council,09-Oct-23,51302058931,"1,485.84",Pathfinder Legal Services Limited,TRADE SUPPLIER,Kennett Primary,Kennett Primary,Construction - External Professional Fees
Cambridgeshire County Council,09-Oct-23,51302061684,"1,501.81",ENITIAL,TRADE SUPPLIER,Waste Disposal incl PFI,Closed Landfill Aftercare - various sites,Professional Fees and Hired Services
Cambridgeshire County Council,09-Oct-23,51302077954,"1,538.00",Redacted Personal Data,INDIVIDUAL,Fostering,FCP allowances,Support and Grants to Foster Carers
Cambridgeshire County Council,09-Oct-23,51302078968,"1,560.00",Closing the gap tuition,EDUCATION,Out of School Tuition,Out of School Provision EHCPs,Independent School Placements
Cambridgeshire County Council,09-Oct-23,51302061704,"1,570.00",KIDS R US @ ST MATTHEWS,LOCAL CLUBS & GROUPS,Early Years Specialist Support,SEND - Childcare Access Funding,Independent School Placements
Cambridgeshire County Council,09-Oct-23,51302077717,"1,588.50",Pathfinder Legal Services Limited,TRADE SUPPLIER,Kennett Primary,Kennett Primary,Construction - External Professional Fees
Cambridgeshire County Council,09-Oct-23,51302061389,"1,650.00",S. P. LANDSCAPES & TREE CONTRACTORS  LTD,COMPANY,Park & Ride Parking,Guided Busway,Grounds Maintenance
Cambridgeshire County Council,09-Oct-23,51302077109,"1,667.34",Pathfinder Legal Services Limited,TRADE SUPPLIER,Executive Director: Place & Sustainability,Executive Director - Place & Sustainability,External Legal Fees
Cambridgeshire County Council,09-Oct-23,51302062069,"1,772.48",COMPASS MINERALS UK LIMITED,TRADE SUPPLIER,Winter Maintenance,East Winter,Salt for Highways
Cambridgeshire County Council,09-Oct-23,51302078111,"1,788.78",Pathfinder Legal Services Limited,TRADE SUPPLIER,Strategic Management - Adults,Service Director - Adults and Safeguarding,External Legal Fees
Cambridgeshire County Council,09-Oct-23,51302077924,"1,797.50",MARSHFIELDS SCHOOL,EDUCATION,Recoupment,Other LA Special Schools & ER,Independent School Placements
Cambridgeshire County Council,09-Oct-23,51302077913,"1,797.50",MARSHFIELDS SCHOOL,EDUCATION,Recoupment,Other LA Special Schools & ER,Independent School Placements
Cambridgeshire County Council,09-Oct-23,51302077667,"1,798.80",Pathfinder Legal Services Limited,TRADE SUPPLIER,Estates,Estates,External Legal Fees
Cambridgeshire County Council,09-Oct-23,51302077864,"1,800.00",Anthony Douglas Consultancy Ltd,COMPANY,Strategic Management - Children & Safeguarding,Director of Children & Safeguarding,Agency Staff
Cambridgeshire County Council,09-Oct-23,51302061685,"1,802.70",J & G GROUNDWORKS & SURFACING,COMPANY,Highways - Rights of Way,Highways - Rights of Way,Highways - Bridges
Cambridgeshire County Council,09-Oct-23,51302062147,"1,809.00",PRESTIGE GIFTWARE LTD,TRADE SUPPLIER,Road Safety,"Education, Training and Publicity",Educational Materials
Cambridgeshire County Council,09-Oct-23,51302078933,"2,000.00",Redacted Personal Data,PARENT/GUARDIAN,Children's Disability Direct Payments,CSC Direct Payments,Direct Payments
Cambridgeshire County Council,09-Oct-23,51302077909,"2,000.00",Redacted Personal Data,PARENT/GUARDIAN,Children's Disability Direct Payments,CSC Direct Payments,Direct Payments
Cambridgeshire County Council,09-Oct-23,51302077878,"2,238.00",St Martin at Shouldham CofE Primary Academy,EDUCATION,Recoupment,Other LA Mainstream,Independent School Placements
Cambridgeshire County Council,09-Oct-23,51302078963,"2,238.00",NATIONAL TEACHING & ADVISORY SERVICE FOR LOOKED AFTER CHILDREN (NT & AS),OTHER PUBLIC BODIES,Out of School Tuition,Out of School Provision EHCPs,Independent School Placements
Cambridgeshire County Council,09-Oct-23,51302061456,"2,247.84",GREAT GRANSDEN PRE-SCHOOL PLAYGROUP,NURSERY,SEND High Needs Top Up,High Needs Top Up - Early Years,Independent School Placements
Cambridgeshire County Council,09-Oct-23,51302061708,"2,276.50",KIDS R US @ ST MATTHEWS,LOCAL CLUBS & GROUPS,Early Years Specialist Support,SEND - Childcare Access Funding,Independent School Placements
Cambridgeshire County Council,09-Oct-23,51302077927,"2,477.58",CHS GROUP,CARE ESTABLISHMENT,Adults Commissioning-extra Care & DP,Extra Care,Supporting People
Cambridgeshire County Council,09-Oct-23,51302069234,"2,500.00",Clinical Psychology Essentials Ltd,COMPANY,Regional Adoption Agency,Adoption Support Fund,Professional Fees and Hired Services
Cambridgeshire County Council,09-Oct-23,51302069488,"2,500.00",Sen Si Limited,COMPANY,Regional Adoption Agency,Adoption Support Fund,Professional Fees and Hired Services
Cambridgeshire County Council,09-Oct-23,51302077939,"2,592.08",FENLAND DISTRICT COUNCIL,OTHER PUBLIC BODIES,Housing Related Support Contracts � Adults & Children,Adults Housing Related Support,Supporting People
Cambridgeshire County Council,09-Oct-23,51302061649,"2,640.00",Panoramic Associates,COMPANY,PH COMF,PH - Contain Outbreak Management Fund,Professional Fees and Hired Services
Cambridgeshire County Council,09-Oct-23,51302077895,"2,798.62",Sunken Trampolines Ltd,COMPANY,Woodland Lodge Children's Home Essential Work,Woodland Lodge Children's Home Essential Work,"New Construction, Conversion and Renovation"
Cambridgeshire County Council,09-Oct-23,51302077914,"2,979.58",MARSHFIELDS SCHOOL,EDUCATION,Recoupment,Other LA Special Schools & ER,Independent School Placements
Cambridgeshire County Council,09-Oct-23,51302077922,"2,979.58",MARSHFIELDS SCHOOL,EDUCATION,Recoupment,Other LA Special Schools & ER,Independent School Placements
Cambridgeshire County Council,09-Oct-23,51302077923,"2,979.58",MARSHFIELDS SCHOOL,EDUCATION,Recoupment,Other LA Special Schools & ER,Independent School Placements
Cambridgeshire County Council,09-Oct-23,51302077921,"2,979.58",MARSHFIELDS SCHOOL,EDUCATION,Recoupment,Other LA Special Schools & ER,Independent School Placements
Cambridgeshire County Council,09-Oct-23,51302077912,"2,979.58",MARSHFIELDS SCHOOL,EDUCATION,Recoupment,Other LA Special Schools & ER,Independent School Placements
Cambridgeshire County Council,09-Oct-23,51302062017,"2,983.19",SC Electrical Contracting Ltd,COMPANY,County Farms,County Farms,County Farms Maintenance
Cambridgeshire County Council,09-Oct-23,51302061003,"3,080.23",GASKELL REFURBISHMENTS LTD,COMPANY,County Farms,County Farms,County Farms Maintenance unplanned
Cambridgeshire County Council,09-Oct-23,51302077771,"3,103.07",Compass Fostering East Ltd,CARE ESTABLISHMENT,LAC Placements,Placements - independent fostering,Agency Placements - Out of  County
Cambridgeshire County Council,09-Oct-23,51302077925,"3,263.25",ABBEYFIELD CAMBRIDGE VIETNAMESE SOCIETY,CARE ESTABLISHMENT,Housing Related Support Contracts � Adults & Children,Adults Housing Related Support,Supporting People
Cambridgeshire County Council,09-Oct-23,51302077847,"3,318.26",FOSTERING SOLUTIONS LTD,CARE ESTABLISHMENT,LAC Placements,Placements - independent fostering,Agency Placements - In County
Cambridgeshire County Council,09-Oct-23,51302077851,"3,318.26",FOSTERING SOLUTIONS LTD,CARE ESTABLISHMENT,LAC Placements,Placements - independent fostering,Agency Placements - In County
Cambridgeshire County Council,09-Oct-23,51302077828,"3,355.03",ALLIANCE FOSTER CARE LTD,CARE ESTABLISHMENT,LAC Placements,Placements - independent fostering,Agency Placements - In County
Cambridgeshire County Council,09-Oct-23,51302061424,"3,371.76",GREAT GRANSDEN PRE-SCHOOL PLAYGROUP,NURSERY,SEND High Needs Top Up,High Needs Top Up - Early Years,Independent School Placements
Cambridgeshire County Council,09-Oct-23,51302077818,"3,401.87",ALLIANCE FOSTER CARE LTD,CARE ESTABLISHMENT,LAC Placements,Placements - independent fostering,Agency Placements - Out of  County
Cambridgeshire County Council,09-Oct-23,51302077841,"3,423.04",FOSTERING SOLUTIONS LTD,CARE ESTABLISHMENT,LAC Placements,Placements - independent fostering,Agency Placements - Out of  County
Cambridgeshire County Council,09-Oct-23,51302077789,"3,443.27",FOSTERING SOLUTIONS LTD,CARE ESTABLISHMENT,LAC Placements,Placements - independent fostering,Agency Placements - Out of  County
Cambridgeshire County Council,09-Oct-23,51302077785,"3,443.27",FOSTERING SOLUTIONS LTD,CARE ESTABLISHMENT,LAC Placements,Placements - independent fostering,Agency Placements - Out of  County
Cambridgeshire County Council,09-Oct-23,51302077820,"3,471.43",ALLIANCE FOSTER CARE LTD,CARE ESTABLISHMENT,LAC Placements,Placements - independent fostering,Agency Placements - Out of  County
Cambridgeshire County Council,09-Oct-23,51302077822,"3,471.43",ALLIANCE FOSTER CARE LTD,CARE ESTABLISHMENT,LAC Placements,Placements - independent fostering,Agency Placements - Out of  County
Cambridgeshire County Council,09-Oct-23,51302077791,"3,517.33",FOSTERING SOLUTIONS LTD,CARE ESTABLISHMENT,LAC Placements,Placements - independent fostering,Agency Placements - Out of  County
Cambridgeshire County Council,09-Oct-23,51302077784,"3,517.33",FOSTERING SOLUTIONS LTD,CARE ESTABLISHMENT,LAC Placements,Placements - independent fostering,Agency Placements - Out of  County
Cambridgeshire County Council,09-Oct-23,51302077930,"3,544.75",RADIS COMMUNITY CARE,CARE ESTABLISHMENT,Adults Commissioning-extra Care & DP,Extra Care,Supporting People
Cambridgeshire County Council,09-Oct-23,51302077803,"3,567.17",FOSTERING SOLUTIONS LTD,CARE ESTABLISHMENT,LAC Placements,Placements - independent fostering,Agency Placements - Out of  County
Cambridgeshire County Council,09-Oct-23,51302077938,"3,577.34",CHORUS HOMES LIMITED,COMPANY,Housing Related Support Contracts � Adults & Children,Adults Housing Related Support,Supporting People
Cambridgeshire County Council,09-Oct-23,51302077817,"3,591.21",ALLIANCE FOSTER CARE LTD,CARE ESTABLISHMENT,LAC Placements,Placements - independent fostering,Agency Placements - In County
Cambridgeshire County Council,09-Oct-23,51302077826,"3,591.21",ALLIANCE FOSTER CARE LTD,CARE ESTABLISHMENT,LAC Placements,Placements - independent fostering,Agency Placements - Out of  County
Cambridgeshire County Council,09-Oct-23,51302077813,"3,591.21",ALLIANCE FOSTER CARE LTD,CARE ESTABLISHMENT,LAC Placements,Placements - independent fostering,Agency Placements - In County
Cambridgeshire County Council,09-Oct-23,51302077838,"3,594.21",FOSTERING SOLUTIONS LTD,CARE ESTABLISHMENT,LAC Placements,Placements - independent fostering,Agency Placements - Out of  County
Cambridgeshire County Council,09-Oct-23,51302077811,"3,601.71",ALLIANCE FOSTER CARE LTD,CARE ESTABLISHMENT,LAC Placements,Placements - independent fostering,Agency Placements - Out of  County
Cambridgeshire County Council,09-Oct-23,51302077808,"3,601.71",ALLIANCE FOSTER CARE LTD,CARE ESTABLISHMENT,LAC Placements,Placements - independent fostering,Agency Placements - In County
Cambridgeshire County Council,09-Oct-23,51302077830,"3,604.97",ALLIANCE FOSTER CARE LTD,CARE ESTABLISHMENT,LAC Placements,Placements - independent fostering,Agency Placements - In County
Cambridgeshire County Council,09-Oct-23,51302077805,"3,652.24",FOSTERING SOLUTIONS LTD,CARE ESTABLISHMENT,LAC Placements,Placements - independent fostering,Agency Placements - In County
Cambridgeshire County Council,09-Oct-23,51302063006,"3,660.00",Bombina Services,TRADE SUPPLIER,Greenspaces,Greenspaces,Grounds Maintenance
Cambridgeshire County Council,09-Oct-23,51302077734,"3,682.80",University of Nottingham,EDUCATION,HR Advisory,Human Resources Unit,Staff Training & Development
Cambridgeshire County Council,09-Oct-23,51302062018,"3,710.65",SC Electrical Contracting Ltd,COMPANY,County Farms,County Farms,County Farms Maintenance
Cambridgeshire County Council,09-Oct-23,51302077797,"3,754.97",FOSTERING SOLUTIONS LTD,CARE ESTABLISHMENT,LAC Placements,Placements - independent fostering,Agency Placements - Out of  County
Cambridgeshire County Council,09-Oct-23,51302077788,"3,754.97",FOSTERING SOLUTIONS LTD,CARE ESTABLISHMENT,LAC Placements,Placements - independent fostering,Agency Placements - Out of  County
Cambridgeshire County Council,09-Oct-23,51302077768,"3,810.00",FOSTERPLUS LTD,CARE ESTABLISHMENT,LAC Placements,Placements - independent fostering,Agency Placements - Out of  County
Cambridgeshire County Council,09-Oct-23,51302077769,"3,810.00",FOSTERPLUS LTD,CARE ESTABLISHMENT,LAC Placements,Placements - independent fostering,Agency Placements - Out of  County
Cambridgeshire County Council,09-Oct-23,51302077849,"3,835.71",FOSTERING SOLUTIONS LTD,CARE ESTABLISHMENT,LAC Placements,Placements - independent fostering,Agency Placements - In County
Cambridgeshire County Council,09-Oct-23,51302077840,"3,835.71",FOSTERING SOLUTIONS LTD,CARE ESTABLISHMENT,LAC Placements,Placements - independent fostering,Agency Placements - In County
Cambridgeshire County Council,09-Oct-23,51302078118,"3,896.94",Redacted Personal Data,INDIVIDUAL,Insurance Fund,Liability,Insurance Claims Paid
Cambridgeshire County Council,09-Oct-23,51302077800,"3,897.30",FOSTERING SOLUTIONS LTD,CARE ESTABLISHMENT,LAC Placements,Placements - independent fostering,Agency Placements - Out of  County
Cambridgeshire County Council,09-Oct-23,51302077794,"3,897.30",FOSTERING SOLUTIONS LTD,CARE ESTABLISHMENT,LAC Placements,Placements - independent fostering,Agency Placements - Out of  County
Cambridgeshire County Council,09-Oct-23,51302078945,"4,000.00",HMCTS,OTHER PUBLIC BODIES,Parking Enforcement,Civil Parking Enforcement,Court Costs
Cambridgeshire County Council,09-Oct-23,51302077842,"4,193.27",FOSTERING SOLUTIONS LTD,CARE ESTABLISHMENT,LAC Placements,Placements - independent fostering,Agency Placements - Out of  County
Cambridgeshire County Council,09-Oct-23,51302061339,"4,362.01",ATKINS LTD,COMPANY,TIPF - Strategy & Scheme Dev,TIPF - Strategy & Scheme Dev,Construction - External Professional Fees
Cambridgeshire County Council,09-Oct-23,51302060023,"4,656.96",Pathfinder Legal Services Limited,TRADE SUPPLIER,Transforming Cities Fund,TCF - Mill Road,Construction - External Professional Fees
Cambridgeshire County Council,09-Oct-23,51302077832,"4,661.06",FOSTERING SOLUTIONS LTD,CARE ESTABLISHMENT,LAC Placements,Placements - independent fostering,Agency Placements - Out of  County
Cambridgeshire County Council,09-Oct-23,51302077824,"4,683.00",ALLIANCE FOSTER CARE LTD,CARE ESTABLISHMENT,LAC Placements,Placements - independent fostering,Agency Placements - In County
Cambridgeshire County Council,09-Oct-23,51302077834,"4,698.86",FOSTERING SOLUTIONS LTD,CARE ESTABLISHMENT,LAC Placements,Placements - independent fostering,Agency Placements - In County
Cambridgeshire County Council,09-Oct-23,51302077815,"4,778.57",ALLIANCE FOSTER CARE LTD,CARE ESTABLISHMENT,LAC Placements,Placements - independent fostering,Agency Placements - Out of  County
Cambridgeshire County Council,09-Oct-23,51302077836,"4,800.00",FOSTERING SOLUTIONS LTD,CARE ESTABLISHMENT,LAC Placements,Placements - independent fostering,Agency Placements - Out of  County
Cambridgeshire County Council,09-Oct-23,51302061647,"4,806.00",Tile Hill Interim & Executive Ltd,COMPANY,Executive Director,Executive Director CEF,Agency Staff
Cambridgeshire County Council,09-Oct-23,51302077512,"4,920.00",Family Fund Business Services,CHARITY,Anti-Poverty,Household Support Fund Grant,Electricity
Cambridgeshire County Council,09-Oct-23,51302078944,"5,000.00",HMCTS,OTHER PUBLIC BODIES,Parking Enforcement,Bus Route Enforcement,Court Costs
Cambridgeshire County Council,09-Oct-23,51302061269,"5,307.50",COMPASS MINERALS UK LIMITED,TRADE SUPPLIER,Winter Maintenance,West Winter,Salt for Highways
Cambridgeshire County Council,09-Oct-23,51302077947,"5,343.75",MARSHFIELDS SCHOOL,EDUCATION,Recoupment,Other LA Special Schools & ER,Independent School Placements
Cambridgeshire County Council,09-Oct-23,51302077920,"5,343.75",MARSHFIELDS SCHOOL,EDUCATION,Recoupment,Other LA Special Schools & ER,Independent School Placements
Cambridgeshire County Council,09-Oct-23,51302077916,"5,343.75",MARSHFIELDS SCHOOL,EDUCATION,Recoupment,Other LA Special Schools & ER,Independent School Placements
Cambridgeshire County Council,09-Oct-23,51302078126,"5,365.00",Smiths Funeral Directors Ltd,COMPANY,Coroners,Coroners General,Transportion Services
Cambridgeshire County Council,09-Oct-23,51302077773,"5,366.66",Compass Fostering East Ltd,CARE ESTABLISHMENT,LAC Placements,Placements - independent fostering,Agency Placements - Out of  County
Cambridgeshire County Council,09-Oct-23,51302077845,"5,377.37",FOSTERING SOLUTIONS LTD,CARE ESTABLISHMENT,LAC Placements,Placements - independent fostering,Agency Placements - In County
Cambridgeshire County Council,09-Oct-23,51302077782,"5,628.21",Compass Fostering South Ltd,CARE ESTABLISHMENT,LAC Placements,Placements - independent fostering,Agency Placements - Out of  County
Cambridgeshire County Council,09-Oct-23,51302061750,"5,939.44",PETERBOROUGH CITY COUNCIL,OTHER PUBLIC BODIES,High Demand Families,Parenting - High Demand Families,Staffing Recharges - External
Cambridgeshire County Council,09-Oct-23,51302076893,"5,940.72",ROMSEY MILL TRUST LTD,TRUST (OTHER),SEND High Needs Top Up,High Needs Top Up - Early Years,Independent School Placements
Cambridgeshire County Council,09-Oct-23,51302078127,"5,970.00",Smiths Funeral Directors Ltd,COMPANY,Coroners,Coroners General,Transportion Services
Cambridgeshire County Council,09-Oct-23,51302077765,"5,991.43",CREDO CARE,CARE ESTABLISHMENT,LAC Placements,Placements - independent fostering,Agency Placements - Out of  County
Cambridgeshire County Council,09-Oct-23,51302077835,"6,111.00",FOSTERING SOLUTIONS LTD,CARE ESTABLISHMENT,LAC Placements,Placements - independent fostering,Agency Placements - In County
Cambridgeshire County Council,09-Oct-23,51302077748,"6,264.00",International Parking Systems (UK) Limited,COMPANY,Parking Enforcement,On Street Parking,Professional Fees and Hired Services
Cambridgeshire County Council,09-Oct-23,51302077353,"6,270.00",CDW Ltd,COMPANY,Corporate IT Managed,Hardware & Infrastructure,Computer software - purchase
Cambridgeshire County Council,09-Oct-23,51302071144,"6,270.49",Acorn Care & Education Ltd,EDUCATION,SEN Placements,Independent Education Placements,Independent School Placements
Cambridgeshire County Council,09-Oct-23,51302077780,"6,642.86",Following Whispers Family Service Consultancy Ltd,CARE ESTABLISHMENT,LAC Placements,Placements - independent fostering,Agency Placements - Out of  County
Cambridgeshire County Council,09-Oct-23,51302078128,"6,645.00",Smiths Funeral Directors Ltd,COMPANY,Coroners,Coroners General,Transportion Services
Cambridgeshire County Council,09-Oct-23,51302060939,"6,731.16",CAE Technology Servcies,COMPANY,ICT Service,ICT Service Sales,Materials for resale
Cambridgeshire County Council,09-Oct-23,51302061677,"7,129.82",COMPASS MINERALS UK LIMITED,TRADE SUPPLIER,Winter Maintenance,West Winter,Salt for Highways
Cambridgeshire County Council,09-Oct-23,51302077742,"7,200.00",HILDERSHAM PARISH COUNCIL,OTHER PUBLIC BODIES,GCP - Cambridge South East (A1307),GCP - Cambridge South East (A1307),Construction - External Professional Fees
Cambridgeshire County Council,09-Oct-23,51302060958,"7,800.00",ATKINS LTD,COMPANY,GCP Greenway Development,GCP Greenway development,Construction - External Professional Fees
Cambridgeshire County Council,09-Oct-23,51302078113,"8,227.46",Acorn Care & Education Ltd,EDUCATION,SEN Placements,Independent Education Placements,Independent School Placements
Cambridgeshire County Council,09-Oct-23,51302061013,"8,400.00",Cinolla Software Ltd,COMPANY,Grafham Water,Grafham Water Centre,Professional Fees and Hired Services
Cambridgeshire County Council,09-Oct-23,51302077915,"8,889.58",MARSHFIELDS SCHOOL,EDUCATION,Recoupment,Other LA Special Schools & ER,Independent School Placements
Cambridgeshire County Council,09-Oct-23,51302077458,"9,000.00",Pathfinder Legal Services Limited,TRADE SUPPLIER,Large Energy Projects - Solar Farms,North Angle Solar Farm,Utilities Set Up
Cambridgeshire County Council,09-Oct-23,51302077869,"9,169.20",CDW Ltd,COMPANY,Corporate IT Managed,Hardware & Infrastructure,Computer hardware - purchase
Cambridgeshire County Council,09-Oct-23,51302061308,"9,542.59",PETERBOROUGH CITY COUNCIL,OTHER PUBLIC BODIES,Fostering,Fostering Support and Supervision,Agency Staff
Cambridgeshire County Council,09-Oct-23,51302061268,"10,566.41",COMPASS MINERALS UK LIMITED,TRADE SUPPLIER,Winter Maintenance,East Winter,Salt for Highways
Cambridgeshire County Council,09-Oct-23,51302062068,"10,616.24",COMPASS MINERALS UK LIMITED,TRADE SUPPLIER,Winter Maintenance,West Winter,Salt for Highways
Cambridgeshire County Council,09-Oct-23,51302071318,"10,675.79",ROYAL MAIL,TRADE SUPPLIER,Information Management,Resources Franking Machine,Postage & Carriage
Cambridgeshire County Council,09-Oct-23,51302061468,"10,880.74",ATKINS LTD,COMPANY,GCP Haslingfield Greenway,GCP Haslingfield Greenway,Construction - External Professional Fees
Cambridgeshire County Council,09-Oct-23,51302061033,"10,922.88",ATKINS LTD,COMPANY,GCP Haslingfield Greenway,GCP Haslingfield Greenway,Construction - External Professional Fees
Cambridgeshire County Council,09-Oct-23,51302062630,"11,243.88",HAYS SPECIALIST RECRUITMENT,COMPANY,Facilities Management,Facilities Management,Recruitment Costs
Cambridgeshire County Council,09-Oct-23,51302077943,"12,955.50",CHS GROUP,CARE ESTABLISHMENT,Housing Related Support Contracts � Adults & Children,Support Contracts,Supporting People
Cambridgeshire County Council,09-Oct-23,51302077356,"13,110.00",CDW Ltd,COMPANY,Corporate IT Managed,Hardware & Infrastructure,Computer software - purchase
Cambridgeshire County Council,09-Oct-23,51302077887,"13,971.00",Gable Healthcare Services,CARE ESTABLISHMENT,OPPD - Cost of Care - East Cambs - Under 65,OPPD - Under 65 - East Cambs,Domiciliary Care
Cambridgeshire County Council,09-Oct-23,51302062070,"15,193.86",SUFFOLK COUNTY COUNCIL,OTHER PUBLIC BODIES,Executive Director,Executive Director CEF,Joint Partnership Funding
Cambridgeshire County Council,09-Oct-23,51302071143,"15,450.80",Acorn Care & Education Ltd,EDUCATION,SEN Placements,Independent Education Placements,Independent School Placements
Cambridgeshire County Council,09-Oct-23,51302074263,"15,666.66",INTEGRATED SERVICES PROGRAMME (ISP),CARE ESTABLISHMENT,SEN Placements,Independent Education Placements,Independent School Placements
Cambridgeshire County Council,09-Oct-23,51302077926,"16,742.57",CAMBRIDGE CITY COUNCIL,OTHER PUBLIC BODIES,Housing Related Support Contracts � Adults & Children,Adults Housing Related Support,Supporting People
Cambridgeshire County Council,09-Oct-23,51302077741,"18,283.69",Acorn Care & Education Ltd,EDUCATION,SEN Placements,Independent Education Placements,Independent School Placements
Cambridgeshire County Council,09-Oct-23,51302061485,"18,333.33","Area Camden Ltd, t/a Selwyn Hall School",EDUCATION,SEN Placements,Independent Education Placements,Independent School Placements
Cambridgeshire County Council,09-Oct-23,51302077778,"18,821.43",Azalea Care Ltd,CARE ESTABLISHMENT,LAC Placements,Placements - residential homes,Agency Placements - Out of  County
Cambridgeshire County Council,09-Oct-23,51302069148,"18,855.20",Aurora Fairway School (Beechkeys Ltd ),EDUCATION,SEN Placements,Independent Education Placements,Independent School Placements
Cambridgeshire County Council,09-Oct-23,51302062075,"20,940.72",GSH Group Company,COMPANY,BM - Corporate Offices,Building Maintenance,Building alterations
Cambridgeshire County Council,09-Oct-23,51302077932,"24,834.81",SOUTH CAMBRIDGESHIRE DISTRICT COUNCIL,OTHER PUBLIC BODIES,Housing Related Support Contracts � Adults & Children,Adults Housing Related Support,Supporting People
Cambridgeshire County Council,09-Oct-23,51302061484,"26,833.33","Area Camden Ltd, t/a Selwyn Hall School",EDUCATION,SEN Placements,Independent Education Placements,Independent School Placements
Cambridgeshire County Council,09-Oct-23,51302061486,"26,833.33","Area Camden Ltd, t/a Selwyn Hall School",EDUCATION,SEN Placements,Independent Education Placements,Independent School Placements
Cambridgeshire County Council,09-Oct-23,51302078130,"27,373.34",Acorn Care & Education Ltd,EDUCATION,SEN Placements,Independent Education Placements,Independent School Placements
Cambridgeshire County Council,09-Oct-23,51302077090,"27,779.45",Wrightspace Ltd,COMPANY,Temporary Accommodation,Temporary Accommodation,Mobile - Buildings
Cambridgeshire County Council,09-Oct-23,51302077445,"29,812.14",Pathfinder Legal Services Limited,TRADE SUPPLIER,Early Years Specialist Support,"SEND - Legal, Tribunal & Mediation",Independent School Placements
Cambridgeshire County Council,09-Oct-23,51302077935,"29,907.80",THE FERRY PROJECT LTD,CHARITY,Housing Related Support Contracts � Adults & Children,Mental Health Homelessness,Supporting People
Cambridgeshire County Council,09-Oct-23,51302077941,"36,940.40",LONGHURST GROUP LTD,CARE ESTABLISHMENT,Housing Related Support Contracts � Adults & Children,Support Contracts,Supporting People
Cambridgeshire County Council,09-Oct-23,51302077934,"38,857.55",People Potential Possibilities t/a P3,CHARITY,Housing Related Support Contracts � Adults & Children,Adults Housing Related Support,Supporting People
Cambridgeshire County Council,09-Oct-23,51302077942,"44,125.20",LONGHURST GROUP LTD,CARE ESTABLISHMENT,Housing Related Support Contracts � Adults & Children,Support Contracts,Supporting People
Cambridgeshire County Council,09-Oct-23,51302062023,"50,145.17",WSP UK LTD T/A WSP INTEGRATED BUILDING SERVICES,TRADE SUPPLIER,GCP - Cambourne to Cambridge (A428),GCP - Cambourne to Cambridge (A428),Construction - External Professional Fees
Cambridgeshire County Council,09-Oct-23,51302062925,"61,029.04",G & S HUTCHINSON LTD,COMPANY,LA maintained Early Years Provision,LA maintained Early Years Provision,Buildings - Structure
Cambridgeshire County Council,09-Oct-23,51302062676,"74,114.10",Jones Bros. Ruthin (Civil Engineering) Co. Ltd,COMPANY,PD - Kings Dyke,MID - Kings Dyke,Construction - External Professional Fees
Cambridgeshire County Council,09-Oct-23,51302077937,"83,038.72",People Potential Possibilities t/a P3,CHARITY,Housing Related Support Contracts � Adults & Children,Adults Housing Related Support,Supporting People
Cambridgeshire County Council,09-Oct-23,51302077108,"87,297.50",Wrightspace Ltd,COMPANY,Temporary Accommodation,Temporary Accommodation,Mobile - Buildings
Cambridgeshire County Council,09-Oct-23,51302077944,"110,833.75",THE RIVERSIDE GROUP LTD,CARE ESTABLISHMENT,Housing Related Support Contracts � Adults & Children,Support Contracts,Supporting People
Cambridgeshire County Council,09-Oct-23,51302077936,"229,108.38",THE RIVERSIDE GROUP LTD,CARE ESTABLISHMENT,Housing Related Support Contracts � Adults & Children,Mental Health Homelessness,Supporting People
Cambridgeshire County Council,09-Oct-23,51302077885,"432,385.75",OPUS LGSS (PEOPLE SOLUTIONS) LTD,TRADE SUPPLIER,Corporate Services Default,Opus agency charges - central allocation,Agency Staff
Cambridgeshire County Council,11-Oct-23,51302079283,"-167,749.62",THORNBURY NURSING SERVICES,CARE ESTABLISHMENT,LAC Placements,Placements - secure accommodation,Agency Placements - Out of  County
Cambridgeshire County Council,11-Oct-23,51302079285,"-113,924.42",THORNBURY NURSING SERVICES,CARE ESTABLISHMENT,LAC Placements,Placements - secure accommodation,Agency Placements - Out of  County
Cambridgeshire County Council,11-Oct-23,51302062999,"-159,143.75",WSP UK Limited,COMPANY,GCP - Waterbeach Railway Station,GCP - Waterbeach Railway Station,Construction - External Professional Fees
Cambridgeshire County Council,11-Oct-23,51302063000,"-38,791.18",WSP UK Limited,COMPANY,GCP Greenway Development,GCP Greenway development,Construction - External Professional Fees
Cambridgeshire County Council,11-Oct-23,51302079566,"-5,296.96",CONSENSUS COMMUNITY SUPPORT LTD,CARE ESTABLISHMENT,LD - South Locality - Cost of Care,LD - South Cambs - Special Needs,Residential Care
Cambridgeshire County Council,11-Oct-23,51302079566,"-5,296.96",CONSENSUS COMMUNITY SUPPORT LTD,CARE ESTABLISHMENT,LD - South Locality - Cost of Care,LD - South Cambs - Special Needs,Residential Care
Cambridgeshire County Council,11-Oct-23,51302079566,"-5,296.96",CONSENSUS COMMUNITY SUPPORT LTD,CARE ESTABLISHMENT,LD - South Locality - Cost of Care,LD - South Cambs - Special Needs,Residential Care
Cambridgeshire County Council,11-Oct-23,51302079566,"-5,296.96",CONSENSUS COMMUNITY SUPPORT LTD,CARE ESTABLISHMENT,LD - South Locality - Cost of Care,LD - South Cambs - Special Needs,Residential Care
Cambridgeshire County Council,11-Oct-23,51302079566,"-5,296.96",CONSENSUS COMMUNITY SUPPORT LTD,CARE ESTABLISHMENT,LD - South Locality - Cost of Care,LD - South Cambs - Special Needs,Residential Care
Cambridgeshire County Council,11-Oct-23,51302079566,"-5,296.96",CONSENSUS COMMUNITY SUPPORT LTD,CARE ESTABLISHMENT,LD - South Locality - Cost of Care,LD - South Cambs - Special Needs,Residential Care
Cambridgeshire County Council,11-Oct-23,51302079566,"-5,296.96",CONSENSUS COMMUNITY SUPPORT LTD,CARE ESTABLISHMENT,LD - South Locality - Cost of Care,LD - South Cambs - Special Needs,Residential Care
Cambridgeshire County Council,11-Oct-23,51302079566,"-5,296.96",CONSENSUS COMMUNITY SUPPORT LTD,CARE ESTABLISHMENT,LD - South Locality - Cost of Care,LD - South Cambs - Special Needs,Residential Care
Cambridgeshire County Council,11-Oct-23,51302079566,"-5,296.96",CONSENSUS COMMUNITY SUPPORT LTD,CARE ESTABLISHMENT,LD - South Locality - Cost of Care,LD - South Cambs - Special Needs,Residential Care
Cambridgeshire County Council,11-Oct-23,51302079566,"-5,296.96",CONSENSUS COMMUNITY SUPPORT LTD,CARE ESTABLISHMENT,LD - South Locality - Cost of Care,LD - South Cambs - Special Needs,Residential Care
Cambridgeshire County Council,11-Oct-23,51302079566,"-5,296.96",CONSENSUS COMMUNITY SUPPORT LTD,CARE ESTABLISHMENT,LD - South Locality - Cost of Care,LD - South Cambs - Special Needs,Residential Care
Cambridgeshire County Council,11-Oct-23,51302079566,"-5,296.96",CONSENSUS COMMUNITY SUPPORT LTD,CARE ESTABLISHMENT,LD - South Locality - Cost of Care,LD - South Cambs - Special Needs,Residential Care
Cambridgeshire County Council,11-Oct-23,51302079566,"-5,296.96",CONSENSUS COMMUNITY SUPPORT LTD,CARE ESTABLISHMENT,LD - South Locality - Cost of Care,LD - South Cambs - Special Needs,Residential Care
Cambridgeshire County Council,11-Oct-23,51302079566,"-5,296.96",CONSENSUS COMMUNITY SUPPORT LTD,CARE ESTABLISHMENT,LD - South Locality - Cost of Care,LD - South Cambs - Special Needs,Residential Care
Cambridgeshire County Council,11-Oct-23,51302079566,"-5,296.96",CONSENSUS COMMUNITY SUPPORT LTD,CARE ESTABLISHMENT,LD - South Locality - Cost of Care,LD - South Cambs - Special Needs,Residential Care
Cambridgeshire County Council,11-Oct-23,51302079566,"-5,296.96",CONSENSUS COMMUNITY SUPPORT LTD,CARE ESTABLISHMENT,LD - South Locality - Cost of Care,LD - South Cambs - Special Needs,Residential Care
Cambridgeshire County Council,11-Oct-23,51302079566,"-5,296.96",CONSENSUS COMMUNITY SUPPORT LTD,CARE ESTABLISHMENT,LD - South Locality - Cost of Care,LD - South Cambs - Special Needs,Residential Care
Cambridgeshire County Council,11-Oct-23,51302079566,"-5,296.96",CONSENSUS COMMUNITY SUPPORT LTD,CARE ESTABLISHMENT,LD - South Locality - Cost of Care,LD - South Cambs - Special Needs,Residential Care
Cambridgeshire County Council,11-Oct-23,51302079566,"-5,296.96",CONSENSUS COMMUNITY SUPPORT LTD,CARE ESTABLISHMENT,LD - South Locality - Cost of Care,LD - South Cambs - Special Needs,Residential Care
Cambridgeshire County Council,11-Oct-23,51302079566,"-5,296.96",CONSENSUS COMMUNITY SUPPORT LTD,CARE ESTABLISHMENT,LD - South Locality - Cost of Care,LD - South Cambs - Special Needs,Residential Care
Cambridgeshire County Council,11-Oct-23,51302079566,"-5,296.96",CONSENSUS COMMUNITY SUPPORT LTD,CARE ESTABLISHMENT,LD - South Locality - Cost of Care,LD - South Cambs - Special Needs,Residential Care
Cambridgeshire County Council,11-Oct-23,51302079566,"-5,296.96",CONSENSUS COMMUNITY SUPPORT LTD,CARE ESTABLISHMENT,LD - South Locality - Cost of Care,LD - South Cambs - Special Needs,Residential Care
Cambridgeshire County Council,11-Oct-23,51302079566,"-5,296.96",CONSENSUS COMMUNITY SUPPORT LTD,CARE ESTABLISHMENT,LD - South Locality - Cost of Care,LD - South Cambs - Special Needs,Residential Care
Cambridgeshire County Council,11-Oct-23,51302079566,"-5,296.96",CONSENSUS COMMUNITY SUPPORT LTD,CARE ESTABLISHMENT,LD - South Locality - Cost of Care,LD - South Cambs - Special Needs,Residential Care
Cambridgeshire County Council,11-Oct-23,51302079566,"-5,296.96",CONSENSUS COMMUNITY SUPPORT LTD,CARE ESTABLISHMENT,LD - South Locality - Cost of Care,LD - South Cambs - Special Needs,Residential Care
Cambridgeshire County Council,11-Oct-23,51302079566,"-5,296.96",CONSENSUS COMMUNITY SUPPORT LTD,CARE ESTABLISHMENT,LD - South Locality - Cost of Care,LD - South Cambs - Special Needs,Residential Care
Cambridgeshire County Council,11-Oct-23,51302079566,"-5,296.96",CONSENSUS COMMUNITY SUPPORT LTD,CARE ESTABLISHMENT,LD - South Locality - Cost of Care,LD - South Cambs - Special Needs,Residential Care
Cambridgeshire County Council,11-Oct-23,51302079594,"-4,468.24",CONSENSUS COMMUNITY SUPPORT LTD,CARE ESTABLISHMENT,LD - Young Adults Team,LD - Young Adults - Special Needs,Residential Care
Cambridgeshire County Council,11-Oct-23,51302079594,"-4,468.24",CONSENSUS COMMUNITY SUPPORT LTD,CARE ESTABLISHMENT,LD - Young Adults Team,LD - Young Adults - Special Needs,Residential Care
Cambridgeshire County Council,11-Oct-23,51302079594,"-4,468.24",CONSENSUS COMMUNITY SUPPORT LTD,CARE ESTABLISHMENT,LD - Young Adults Team,LD - Young Adults - Special Needs,Residential Care
Cambridgeshire County Council,11-Oct-23,51302079594,"-4,468.24",CONSENSUS COMMUNITY SUPPORT LTD,CARE ESTABLISHMENT,LD - Young Adults Team,LD - Young Adults - Special Needs,Residential Care
Cambridgeshire County Council,11-Oct-23,51302079594,"-4,468.24",CONSENSUS COMMUNITY SUPPORT LTD,CARE ESTABLISHMENT,LD - Young Adults Team,LD - Young Adults - Special Needs,Residential Care
Cambridgeshire County Council,11-Oct-23,51302079594,"-4,468.24",CONSENSUS COMMUNITY SUPPORT LTD,CARE ESTABLISHMENT,LD - Young Adults Team,LD - Young Adults - Special Needs,Residential Care
Cambridgeshire County Council,11-Oct-23,51302079594,"-4,468.24",CONSENSUS COMMUNITY SUPPORT LTD,CARE ESTABLISHMENT,LD - Young Adults Team,LD - Young Adults - Special Needs,Residential Care
Cambridgeshire County Council,11-Oct-23,51302079594,"-4,468.24",CONSENSUS COMMUNITY SUPPORT LTD,CARE ESTABLISHMENT,LD - Young Adults Team,LD - Young Adults - Special Needs,Residential Care
Cambridgeshire County Council,11-Oct-23,51302079594,"-4,468.24",CONSENSUS COMMUNITY SUPPORT LTD,CARE ESTABLISHMENT,LD - Young Adults Team,LD - Young Adults - Special Needs,Residential Care
Cambridgeshire County Council,11-Oct-23,51302079594,"-4,468.24",CONSENSUS COMMUNITY SUPPORT LTD,CARE ESTABLISHMENT,LD - Young Adults Team,LD - Young Adults - Special Needs,Residential Care
Cambridgeshire County Council,11-Oct-23,51302079594,"-4,468.24",CONSENSUS COMMUNITY SUPPORT LTD,CARE ESTABLISHMENT,LD - Young Adults Team,LD - Young Adults - Special Needs,Residential Care
Cambridgeshire County Council,11-Oct-23,51302079594,"-4,468.24",CONSENSUS COMMUNITY SUPPORT LTD,CARE ESTABLISHMENT,LD - Young Adults Team,LD - Young Adults - Special Needs,Residential Care
Cambridgeshire County Council,11-Oct-23,51302079594,"-4,468.24",CONSENSUS COMMUNITY SUPPORT LTD,CARE ESTABLISHMENT,LD - Young Adults Team,LD - Young Adults - Special Needs,Residential Care
Cambridgeshire County Council,11-Oct-23,51302079594,"-4,468.24",CONSENSUS COMMUNITY SUPPORT LTD,CARE ESTABLISHMENT,LD - Young Adults Team,LD - Young Adults - Special Needs,Residential Care
Cambridgeshire County Council,11-Oct-23,51302079594,"-4,468.24",CONSENSUS COMMUNITY SUPPORT LTD,CARE ESTABLISHMENT,LD - Young Adults Team,LD - Young Adults - Special Needs,Residential Care
Cambridgeshire County Council,11-Oct-23,51302079594,"-4,468.24",CONSENSUS COMMUNITY SUPPORT LTD,CARE ESTABLISHMENT,LD - Young Adults Team,LD - Young Adults - Special Needs,Residential Care
Cambridgeshire County Council,11-Oct-23,51302079594,"-4,468.24",CONSENSUS COMMUNITY SUPPORT LTD,CARE ESTABLISHMENT,LD - Young Adults Team,LD - Young Adults - Special Needs,Residential Care
Cambridgeshire County Council,11-Oct-23,51302079594,"-4,468.24",CONSENSUS COMMUNITY SUPPORT LTD,CARE ESTABLISHMENT,LD - Young Adults Team,LD - Young Adults - Special Needs,Residential Care
Cambridgeshire County Council,11-Oct-23,51302079594,"-4,468.24",CONSENSUS COMMUNITY SUPPORT LTD,CARE ESTABLISHMENT,LD - Young Adults Team,LD - Young Adults - Special Needs,Residential Care
Cambridgeshire County Council,11-Oct-23,51302079594,"-4,468.24",CONSENSUS COMMUNITY SUPPORT LTD,CARE ESTABLISHMENT,LD - Young Adults Team,LD - Young Adults - Special Needs,Residential Care
Cambridgeshire County Council,11-Oct-23,51302079594,"-4,468.24",CONSENSUS COMMUNITY SUPPORT LTD,CARE ESTABLISHMENT,LD - Young Adults Team,LD - Young Adults - Special Needs,Residential Care
Cambridgeshire County Council,11-Oct-23,51302079594,"-4,468.24",CONSENSUS COMMUNITY SUPPORT LTD,CARE ESTABLISHMENT,LD - Young Adults Team,LD - Young Adults - Special Needs,Residential Care
Cambridgeshire County Council,11-Oct-23,51302079594,"-4,468.24",CONSENSUS COMMUNITY SUPPORT LTD,CARE ESTABLISHMENT,LD - Young Adults Team,LD - Young Adults - Special Needs,Residential Care
Cambridgeshire County Council,11-Oct-23,51302079594,"-4,468.24",CONSENSUS COMMUNITY SUPPORT LTD,CARE ESTABLISHMENT,LD - Young Adults Team,LD - Young Adults - Special Needs,Residential Care
Cambridgeshire County Council,11-Oct-23,51302079594,"-4,468.24",CONSENSUS COMMUNITY SUPPORT LTD,CARE ESTABLISHMENT,LD - Young Adults Team,LD - Young Adults - Special Needs,Residential Care
Cambridgeshire County Council,11-Oct-23,51302079594,"-4,468.24",CONSENSUS COMMUNITY SUPPORT LTD,CARE ESTABLISHMENT,LD - Young Adults Team,LD - Young Adults - Special Needs,Residential Care
Cambridgeshire County Council,11-Oct-23,51302079594,"-4,468.24",CONSENSUS COMMUNITY SUPPORT LTD,CARE ESTABLISHMENT,LD - Young Adults Team,LD - Young Adults - Special Needs,Residential Care
Cambridgeshire County Council,11-Oct-23,51302079564,"-3,576.38",CONSENSUS COMMUNITY SUPPORT LTD,CARE ESTABLISHMENT,LD - East Locality - Cost of Care,LD - East Cambs - Care,Residential Care
